Workbook

Sheet التسويات
A1: قانون79 | B1: نعم | BD1: ش. البداية | BE1: ش.النهاية | BP1: =TODAY() -> 2022-03-31 | BQ1: =IF(MONTH(BP1)<7,YEAR(BP1)-1,YEAR(BP1)) -> 2021 | BR1: =DATE(BQ1,7,1) -> 2021-07-01 | BW1: فحص نهائي المدد الساقطة | BX1: ت.ب.ف.ساقطة1 | BY1: ت.ن.ف.ساقطة1 | CB1: فحص ساقطة 1 | CC1: ت.ب.ف.ساقطة2 | CD1: ت.ن.ف.ساقطة2 | CG1: فحص ساقطة 2 | CH1: ت.ب.ف.ساقطة3 | CI1: ت.ن.ف.ساقطة3 | CL1: فحص ساقطة 3
A2: قانون108 دون عمال | B2: لا | BD2: =W9 -> 2022-01-01 | BE2: =W14 -> 2022-03-01 | BF2: =VLOOKUP(BI2,AE5:AF140,2) ->  | BG2: =VLOOKUP(BI2,التسويات!$AU$5:$AX$59,2) -> 1.8 | BH2: =IF(K6="نعم",BF2,BG2) -> 1.8 | BI2: 1976-07-01 | BJ2: =IF(BI2>=BD2,1,0) -> 0 | BK2: =IF(BI2<=BE2,1,0) -> 1 | BL2: =IF(BW2=1,0,IF(BJ2+BK2=2,BH2,0)) -> 0 | BM2: =VLOOKUP(BI2,التسويات!$AL$5:$AM$139,2) -> 0.005 | BN2: =BL2 -> 0 | BO2: =IF((BN2-BT2)<0,0,BN2-BT2) -> 0 | BP2: =IF(BI2>=T15,0,BM2*BO2) -> 0 | BQ2: =IF(BI2<BR1,BL2,0) -> 0 | BR2: =IF(BI2<BR1,BP2,0) -> 0 | BS2: =IFERROR(VLOOKUP(BI2,AP6:AQ138,2,FALSE),0) -> 0 | BT2: =BS2 -> 0 | BU2: =IF(BI2<BR1,BS2,0) -> 0 | BW2: =IF((CB2+CG2+CL2)>0,1,0) -> 0 | BX2: =DATE(R17,Q17,1) -> 1970-01-01 | BY2: =DATE(V17,U17,1) -> 1970-01-01 | BZ2: =IF(BI2>=BX2,1,0) -> 1 | CA2: =IF(BI2<=BY2,1,0) -> 0 | CB2: =IF((BZ2+CA2)=2,1,0) -> 0 | CC2: =DATE(R18,Q18,1) -> 1970-01-01 | CD2: =DATE(V18,U18,1) -> 1970-01-01 | CE2: =IF(BI2>=CC2,1,0) -> 1 | CF2: =IF(BI2<=CD2,1,0) -> 0 | CG2: =IF((CE2+CF2)=2,1,0) -> 0 | CH2: =DATE(R19,Q19,1) -> 1970-01-01 | CI2: =DATE(V19,U19,1) -> 1970-01-01 | CJ2: =IF(BI2>=CH2,1,0) -> 1 | CK2: =IF(BI2<=CI2,1,0) -> 0 | CL2: =IF((CJ2+CK2)=2,1,0) -> 0
A3: قانون 108 بعمال | AX3: قانون 108 | BD3: =W9 -> 2022-01-01 | BE3: =W14 -> 2022-03-01 | BF3: =VLOOKUP(BI3,AE5:AF140,2) ->  | BG3: =VLOOKUP(BI3,التسويات!$AU$5:$AX$59,2) -> 1.8 | BH3: =IF(K6="نعم",BF3,BG3) -> 1.8 | BI3: 1976-08-01 | BJ3: 0 | BK3: 1 | BL3: 0 | BM3: =VLOOKUP(BI3,التسويات!$AL$5:$AM$139,2) -> 0.005 | BN3: =BN2+BL3 -> 0 | BO3: 0 | BP3: =IF(BI3>=T15,0,BM3*BO3) -> 0 | BQ3: =IF(BI3<BR1,BL3,0) -> 0 | BR3: =IF(BI3<BR1,BP3,0) -> 0 | BS3: =IFERROR(VLOOKUP(BI3,AP6:AQ138,2,FALSE),0) -> 0 | BT3: =BT2+BS3 -> 0 | BU3: =IF(BI3<BR1,BS3,0) -> 0 | BW3: 0 | BX3: =DATE(R17,Q17,1) -> 1970-01-01 | BY3: =DATE(V17,U17,1) -> 1970-01-01 | BZ3: 1 | CA3: 0 | CB3: 0 | CC3: =DATE(R18,Q18,1) -> 1970-01-01 | CD3: =DATE(V18,U18,1) -> 1970-01-01 | CE3: 1 | CF3: 0 | CG3: 0 | CH3: =DATE(R19,Q19,1) -> 1970-01-01 | CI3: =DATE(V19,U19,1) -> 1970-01-01 | CJ3: 1 | CK3: 0 | CL3: 0
E4: القانون | K4: قانون108 دون عمال | N4: الدرجة | T4: =K4 -> قانون108 دون عمال | W4: =T4 -> قانون108 دون عمال | AA4: المبلغ | AB4: شامل | AC4: أساسي2 | AD4: متغير | AE4: التاريخ | AF4: عمود4 | AH4: تحديث معدل الفائدة بعد 1/8/2021 | AL4: عمود1 | AM4: عمود2 | AO4: السدادات | AU4: عمود1 | AV4: عمود12 | AW4: عمود2 | AX4: عمود3 | AZ4: ش. عامل | BA4: أجور عامل | BB4: ش.ص.ع1 | BC4: أجور ص.ع.1 | BD4: =W9 -> 2022-01-01 | BE4: =W14 -> 2022-03-01 | BF4: =VLOOKUP(BI4,AE5:AF140,2) ->  | BG4: =VLOOKUP(BI4,التسويات!$AU$5:$AX$59,2) -> 1.8 | BH4: =IF(K6="نعم",BF4,BG4) -> 1.8 | BI4: 1976-09-01 | BJ4: 0 | BK4: 1 | BL4: 0 | BM4: =VLOOKUP(BI4,التسويات!$AL$5:$AM$139,2) -> 0.005 | BN4: 0 | BO4: 0 | BP4: =IF(BI4>=T15,0,BM4*BO4) -> 0 | BQ4: =IF(BI4<BR1,BL4,0) -> 0 | BR4: =IF(BI4<BR1,BP4,0) -> 0 | BS4: =IFERROR(VLOOKUP(BI4,AP6:AQ138,2,FALSE),0) -> 0 | BT4: 0 | BU4: =IF(BI4<BR1,BS4,0) -> 0 | BW4: 0 | BX4: =DATE(R17,Q17,1) -> 1970-01-01 | BY4: =DATE(V17,U17,1) -> 1970-01-01 | BZ4: 1 | CA4: 0 | CB4: 0 | CC4: =DATE(R18,Q18,1) -> 1970-01-01 | CD4: =DATE(V18,U18,1) -> 1970-01-01 | CE4: 1 | CF4: 0 | CG4: 0 | CH4: =DATE(R19,Q19,1) -> 1970-01-01 | CI4: =DATE(V19,U19,1) -> 1970-01-01 | CJ4: 1 | CK4: 0 | CL4: 0
AA5: 500 | AE5: 2019-01-01 | AF5: =(IF($K$4="قانون79",(AB5*0.2975)+(AC5*0.4)+(AD5*0.35),(AB5*21%)+(AC5*15%)))+AA5 -> 500 | AH5: 2021-08-01 | AJ5: 1.34 | AL5: 1976-01-01 | AM5: 0.005 | AO5: التاريخ | AP5: التاريخ | AQ5: المبلغ | AS5: 7 | AT5: 1976 | AU5: =DATE(AT5,AS5,1) -> 1976-07-01 | AV5: =IF(K4="قانون79",AW5,AX5) -> 1.8 | AW5: =AZ5 -> 0 | AX5: =BB5 -> 1.8 | AZ5: =BA5*40% -> 0 | BA5: 0 | BB5: =BC5*15% -> 1.8 | BC5: 12 | BD5: =W9 -> 2022-01-01 | BE5: =W14 -> 2022-03-01 | BF5: =VLOOKUP(BI5,AE5:AF140,2) ->  | BG5: =VLOOKUP(BI5,التسويات!$AU$5:$AX$59,2) -> 1.8 | BH5: =IF(K6="نعم",BF5,BG5) -> 1.8 | BI5: 1976-10-01 | BJ5: 0 | BK5: 1 | BL5: 0 | BM5: =VLOOKUP(BI5,التسويات!$AL$5:$AM$139,2) -> 0.005 | BN5: 0 | BO5: 0 | BP5: =IF(BI5>=T15,0,BM5*BO5) -> 0 | BQ5: =IF(BI5<BR1,BL5,0) -> 0 | BR5: =IF(BI5<BR1,BP5,0) -> 0 | BS5: =IFERROR(VLOOKUP(BI5,AP6:AQ138,2,FALSE),0) -> 0 | BT5: 0 | BU5: =IF(BI5<BR1,BS5,0) -> 0 | BW5: 0 | BX5: =DATE(R17,Q17,1) -> 1970-01-01 | BY5: =DATE(V17,U17,1) -> 1970-01-01 | BZ5: 1 | CA5: 0 | CB5: 0 | CC5: =DATE(R18,Q18,1) -> 1970-01-01 | CD5: =DATE(V18,U18,1) -> 1970-01-01 | CE5: 1 | CF5: 0 | CG5: 0 | CH5: =DATE(R19,Q19,1) -> 1970-01-01 | CI5: =DATE(V19,U19,1) -> 1970-01-01 | CJ5: 1 | CK5: 0 | CL5: 0
E6: إذا كانت الأجور تختلف عن الحد الأدني أختر نعم | K6: لا | AA6: 700 | AE6: 2019-07-01 | AF6: 700 | AH6: 2021-09-01 | AJ6: 1.34 | AL6: 2001-07-01 | AM6: 0.01 | AP6: =DATE(YEAR(AO6),IF(DAY(AO6)>15,MONTH(AO6)+1,MONTH(AO6)),1) -> 1900-01-01 | AS6: 7 | AT6: 1977 | AU6: 1977-07-01 | AV6: =IF(K4="قانون79",AW6,AX6) -> 1.8 | AW6: 4.8 | AX6: 1.8 | AZ6: 4.8 | BA6: 12 | BB6: 1.8 | BC6: 12 | BD6: =W9 -> 2022-01-01 | BE6: =W14 -> 2022-03-01 | BF6: =VLOOKUP(BI6,AE5:AF140,2) ->  | BG6: =VLOOKUP(BI6,التسويات!$AU$5:$AX$59,2) -> 1.8 | BH6: =IF(K6="نعم",BF6,BG6) -> 1.8 | BI6: 1976-11-01 | BJ6: 0 | BK6: 1 | BL6: 0 | BM6: =VLOOKUP(BI6,التسويات!$AL$5:$AM$139,2) -> 0.005 | BN6: 0 | BO6: 0 | BP6: =IF(BI6>=T15,0,BM6*BO6) -> 0 | BQ6: =IF(BI6<BR1,BL6,0) -> 0 | BR6: =IF(BI6<BR1,BP6,0) -> 0 | BS6: =IFERROR(VLOOKUP(BI6,AP6:AQ138,2,FALSE),0) -> 0 | BT6: 0 | BU6: =IF(BI6<BR1,BS6,0) -> 0 | BW6: 0 | BX6: =DATE(R17,Q17,1) -> 1970-01-01 | BY6: =DATE(V17,U17,1) -> 1970-01-01 | BZ6: 1 | CA6: 0 | CB6: 0 | CC6: =DATE(R18,Q18,1) -> 1970-01-01 | CD6: =DATE(V18,U18,1) -> 1970-01-01 | CE6: 1 | CF6: 0 | CG6: 0 | CH6: =DATE(R19,Q19,1) -> 1970-01-01 | CI6: =DATE(V19,U19,1) -> 1970-01-01 | CJ6: 1 | CK6: 0 | CL6: 0
AA7: 1000 | AE7: 2020-01-01 | AF7: 1000 | AH7: 2021-10-01 | AJ7: 1.34 | AL7: 2003-07-01 | AM7: 0.015 | AP7: 1900-01-01 | AS7: 7 | AT7: 1978 | AU7: 1978-07-01 | AV7: =IF(K4="قانون79",AW7,AX7) -> 1.8 | AW7: 6 | AX7: 1.8 | AZ7: 6 | BA7: 15 | BB7: 1.8 | BC7: 12 | BD7: =W9 -> 2022-01-01 | BE7: =W14 -> 2022-03-01 | BF7: =VLOOKUP(BI7,AE5:AF140,2) ->  | BG7: =VLOOKUP(BI7,التسويات!$AU$5:$AX$59,2) -> 1.8 | BH7: =IF(K6="نعم",BF7,BG7) -> 1.8 | BI7: 1976-12-01 | BJ7: 0 | BK7: 1 | BL7: 0 | BM7: =VLOOKUP(BI7,التسويات!$AL$5:$AM$139,2) -> 0.005 | BN7: 0 | BO7: 0 | BP7: =IF(BI7>=T15,0,BM7*BO7) -> 0 | BQ7: =IF(BI7<BR1,BL7,0) -> 0 | BR7: =IF(BI7<BR1,BP7,0) -> 0 | BS7: =IFERROR(VLOOKUP(BI7,AP6:AQ138,2,FALSE),0) -> 0 | BT7: 0 | BU7: =IF(BI7<BR1,BS7,0) -> 0 | BW7: 0 | BX7: =DATE(R17,Q17,1) -> 1970-01-01 | BY7: =DATE(V17,U17,1) -> 1970-01-01 | BZ7: 1 | CA7: 0 | CB7: 0 | CC7: =DATE(R18,Q18,1) -> 1970-01-01 | CD7: =DATE(V18,U18,1) -> 1970-01-01 | CE7: 1 | CF7: 0 | CG7: 0 | CH7: =DATE(R19,Q19,1) -> 1970-01-01 | CI7: =DATE(V19,U19,1) -> 1970-01-01 | CJ7: 1 | CK7: 0 | CL7: 0
AA8: 1100 | AE8: 2020-07-01 | AF8: 1100 | AH8: 2021-11-01 | AJ8: 1.34 | AL8: 2004-07-01 | AM8: 0.03 | AP8: 1900-01-01 | AS8: 7 | AT8: 1979 | AU8: 1979-07-01 | AV8: =IF(K4="قانون79",AW8,AX8) -> 1.8 | AW8: 6 | AX8: 1.8 | AZ8: 6 | BA8: 15 | BB8: 1.8 | BC8: 12 | BD8: =W9 -> 2022-01-01 | BE8: =W14 -> 2022-03-01 | BF8: =VLOOKUP(BI8,AE5:AF140,2) ->  | BG8: =VLOOKUP(BI8,التسويات!$AU$5:$AX$59,2) -> 1.8 | BH8: =IF(K6="نعم",BF8,BG8) -> 1.8 | BI8: 1977-01-01 | BJ8: 0 | BK8: 1 | BL8: 0 | BM8: =VLOOKUP(BI8,التسويات!$AL$5:$AM$139,2) -> 0.005 | BN8: 0 | BO8: 0 | BP8: =IF(BI8>=T15,0,BM8*BO8) -> 0 | BQ8: =IF(BI8<BR1,BL8,0) -> 0 | BR8: =IF(BI8<BR1,BP8,0) -> 0 | BS8: =IFERROR(VLOOKUP(BI8,AP6:AQ138,2,FALSE),0) -> 0 | BT8: 0 | BU8: =IF(BI8<BR1,BS8,0) -> 0 | BW8: 0 | BX8: =DATE(R17,Q17,1) -> 1970-01-01 | BY8: =DATE(V17,U17,1) -> 1970-01-01 | BZ8: 1 | CA8: 0 | CB8: 0 | CC8: =DATE(R18,Q18,1) -> 1970-01-01 | CD8: =DATE(V18,U18,1) -> 1970-01-01 | CE8: 1 | CF8: 0 | CG8: 0 | CH8: =DATE(R19,Q19,1) -> 1970-01-01 | CI8: =DATE(V19,U19,1) -> 1970-01-01 | CJ8: 1 | CK8: 0 | CL8: 0
E9: شهر البداية المراد احتسابه | K9: 1 | L9: 1 | M9: 2022 | N9: شهر البداية المراد احتسابه | T9: =IF(K9>0,K9,0) -> 1 | U9: 1 | V9: 2022 | W9: =DATE(V9,U9,1) -> 2022-01-01 | AF9: 0 | AH9: 2021-12-01 | AJ9: 1.34 | AL9: 2006-07-01 | AM9: 0.015 | AP9: 1900-01-01 | AS9: 7 | AT9: 1980 | AU9: 1980-07-01 | AV9: =IF(K4="قانون79",AW9,AX9) -> 1.8 | AW9: 6 | AX9: 1.8 | AZ9: 6 | BA9: 15 | BB9: 1.8 | BC9: 12 | BD9: =W9 -> 2022-01-01 | BE9: =W14 -> 2022-03-01 | BF9: =VLOOKUP(BI9,AE5:AF140,2) ->  | BG9: =VLOOKUP(BI9,التسويات!$AU$5:$AX$59,2) -> 1.8 | BH9: =IF(K6="نعم",BF9,BG9) -> 1.8 | BI9: 1977-02-01 | BJ9: 0 | BK9: 1 | BL9: 0 | BM9: =VLOOKUP(BI9,التسويات!$AL$5:$AM$139,2) -> 0.005 | BN9: 0 | BO9: 0 | BP9: =IF(BI9>=T15,0,BM9*BO9) -> 0 | BQ9: =IF(BI9<BR1,BL9,0) -> 0 | BR9: =IF(BI9<BR1,BP9,0) -> 0 | BS9: =IFERROR(VLOOKUP(BI9,AP6:AQ138,2,FALSE),0) -> 0 | BT9: 0 | BU9: =IF(BI9<BR1,BS9,0) -> 0 | BW9: 0 | BX9: =DATE(R17,Q17,1) -> 1970-01-01 | BY9: =DATE(V17,U17,1) -> 1970-01-01 | BZ9: 1 | CA9: 0 | CB9: 0 | CC9: =DATE(R18,Q18,1) -> 1970-01-01 | CD9: =DATE(V18,U18,1) -> 1970-01-01 | CE9: 1 | CF9: 0 | CG9: 0 | CH9: =DATE(R19,Q19,1) -> 1970-01-01 | CI9: =DATE(V19,U19,1) -> 1970-01-01 | CJ9: 1 | CK9: 0 | CL9: 0
AF10: 0 | AH10: 2022-01-01 | AJ10: 1.34 | AL10: 2007-01-01 | AM10: 0.009166666667 | AP10: 1900-01-01 | AS10: 7 | AT10: 1981 | AU10: 1981-07-01 | AV10: =IF(K4="قانون79",AW10,AX10) -> 3.75 | AW10: 10 | AX10: 3.75 | AZ10: 10 | BA10: 25 | BB10: 3.75 | BC10: 25 | BD10: =W9 -> 2022-01-01 | BE10: =W14 -> 2022-03-01 | BF10: =VLOOKUP(BI10,AE5:AF140,2) ->  | BG10: =VLOOKUP(BI10,التسويات!$AU$5:$AX$59,2) -> 1.8 | BH10: =IF(K6="نعم",BF10,BG10) -> 1.8 | BI10: 1977-03-01 | BJ10: 0 | BK10: 1 | BL10: 0 | BM10: =VLOOKUP(BI10,التسويات!$AL$5:$AM$139,2) -> 0.005 | BN10: 0 | BO10: 0 | BP10: =IF(BI10>=T15,0,BM10*BO10) -> 0 | BQ10: =IF(BI10<BR1,BL10,0) -> 0 | BR10: =IF(BI10<BR1,BP10,0) -> 0 | BS10: =IFERROR(VLOOKUP(BI10,AP6:AQ138,2,FALSE),0) -> 0 | BT10: 0 | BU10: =IF(BI10<BR1,BS10,0) -> 0 | BW10: 0 | BX10: =DATE(R17,Q17,1) -> 1970-01-01 | BY10: =DATE(V17,U17,1) -> 1970-01-01 | BZ10: 1 | CA10: 0 | CB10: 0 | CC10: =DATE(R18,Q18,1) -> 1970-01-01 | CD10: =DATE(V18,U18,1) -> 1970-01-01 | CE10: 1 | CF10: 0 | CG10: 0 | CH10: =DATE(R19,Q19,1) -> 1970-01-01 | CI10: =DATE(V19,U19,1) -> 1970-01-01 | CJ10: 1 | CK10: 0 | CL10: 0
E11: شهر النهاية المراد احتسابه | K11: 30 | L11: 3 | M11: 2022 | AF11: 0 | AH11: 2022-02-01 | AJ11: 1.34 | AL11: 2009-01-01 | AM11: 0.01 | AP11: 1900-01-01 | AS11: 7 | AT11: 1982 | AU11: 1982-07-01 | AV11: =IF(K4="قانون79",AW11,AX11) -> 3.75 | AW11: 10 | AX11: 3.75 | AZ11: 10 | BA11: 25 | BB11: 3.75 | BC11: 25 | BD11: =W9 -> 2022-01-01 | BE11: =W14 -> 2022-03-01 | BF11: =VLOOKUP(BI11,AE5:AF140,2) ->  | BG11: =VLOOKUP(BI11,التسويات!$AU$5:$AX$59,2) -> 1.8 | BH11: =IF(K6="نعم",BF11,BG11) -> 1.8 | BI11: 1977-04-01 | BJ11: 0 | BK11: 1 | BL11: 0 | BM11: =VLOOKUP(BI11,التسويات!$AL$5:$AM$139,2) -> 0.005 | BN11: 0 | BO11: 0 | BP11: =IF(BI11>=T15,0,BM11*BO11) -> 0 | BQ11: =IF(BI11<BR1,BL11,0) -> 0 | BR11: =IF(BI11<BR1,BP11,0) -> 0 | BS11: =IFERROR(VLOOKUP(BI11,AP6:AQ138,2,FALSE),0) -> 0 | BT11: 0 | BU11: =IF(BI11<BR1,BS11,0) -> 0 | BW11: 0 | BX11: =DATE(R17,Q17,1) -> 1970-01-01 | BY11: =DATE(V17,U17,1) -> 1970-01-01 | BZ11: 1 | CA11: 0 | CB11: 0 | CC11: =DATE(R18,Q18,1) -> 1970-01-01 | CD11: =DATE(V18,U18,1) -> 1970-01-01 | CE11: 1 | CF11: 0 | CG11: 0 | CH11: =DATE(R19,Q19,1) -> 1970-01-01 | CI11: =DATE(V19,U19,1) -> 1970-01-01 | CJ11: 1 | CK11: 0 | CL11: 0
N12: شهر النهاية المراد احتسابه | T12: =IF(K11>0,K11,0) -> 30 | U12: 3 | V12: 2022 | AF12: 0 | AH12: 2022-03-01 | AJ12: 1.34 | AL12: 2010-01-01 | AM12: 0.0108 | AP12: 1900-01-01 | AS12: 7 | AT12: 1983 | AU12: 1983-07-01 | AV12: =IF(K4="قانون79",AW12,AX12) -> 4.5 | AW12: 10 | AX12: 4.5 | AZ12: 10 | BA12: 25 | BB12: 4.5 | BC12: 30 | BD12: =W9 -> 2022-01-01 | BE12: =W14 -> 2022-03-01 | BF12: =VLOOKUP(BI12,AE5:AF140,2) ->  | BG12: =VLOOKUP(BI12,التسويات!$AU$5:$AX$59,2) -> 1.8 | BH12: =IF(K6="نعم",BF12,BG12) -> 1.8 | BI12: 1977-05-01 | BJ12: 0 | BK12: 1 | BL12: 0 | BM12: =VLOOKUP(BI12,التسويات!$AL$5:$AM$139,2) -> 0.005 | BN12: 0 | BO12: 0 | BP12: =IF(BI12>=T15,0,BM12*BO12) -> 0 | BQ12: =IF(BI12<BR1,BL12,0) -> 0 | BR12: =IF(BI12<BR1,BP12,0) -> 0 | BS12: =IFERROR(VLOOKUP(BI12,AP6:AQ138,2,FALSE),0) -> 0 | BT12: 0 | BU12: =IF(BI12<BR1,BS12,0) -> 0 | BW12: 0 | BX12: =DATE(R17,Q17,1) -> 1970-01-01 | BY12: =DATE(V17,U17,1) -> 1970-01-01 | BZ12: 1 | CA12: 0 | CB12: 0 | CC12: =DATE(R18,Q18,1) -> 1970-01-01 | CD12: =DATE(V18,U18,1) -> 1970-01-01 | CE12: 1 | CF12: 0 | CG12: 0 | CH12: =DATE(R19,Q19,1) -> 1970-01-01 | CI12: =DATE(V19,U19,1) -> 1970-01-01 | CJ12: 1 | CK12: 0 | CL12: 0
E13: شهر إيقاف احتساب الفوائد | K13: 17 | L13: 3 | M13: 2022 | AF13: 0 | AL13: 2011-01-01 | AM13: 0.01 | AP13: 1900-01-01 | AS13: 7 | AT13: 1984 | AU13: 1984-07-01 | AV13: =IF(K4="قانون79",AW13,AX13) -> 6 | AW13: 14 | AX13: 6 | AZ13: 14 | BA13: 35 | BB13: 6 | BC13: 40 | BD13: =W9 -> 2022-01-01 | BE13: =W14 -> 2022-03-01 | BF13: =VLOOKUP(BI13,AE5:AF140,2) ->  | BG13: =VLOOKUP(BI13,التسويات!$AU$5:$AX$59,2) -> 1.8 | BH13: =IF(K6="نعم",BF13,BG13) -> 1.8 | BI13: 1977-06-01 | BJ13: 0 | BK13: 1 | BL13: 0 | BM13: =VLOOKUP(BI13,التسويات!$AL$5:$AM$139,2) -> 0.005 | BN13: 0 | BO13: 0 | BP13: =IF(BI13>=T15,0,BM13*BO13) -> 0 | BQ13: =IF(BI13<BR1,BL13,0) -> 0 | BR13: =IF(BI13<BR1,BP13,0) -> 0 | BS13: =IFERROR(VLOOKUP(BI13,AP6:AQ138,2,FALSE),0) -> 0 | BT13: 0 | BU13: =IF(BI13<BR1,BS13,0) -> 0 | BW13: 0 | BX13: =DATE(R17,Q17,1) -> 1970-01-01 | BY13: =DATE(V17,U17,1) -> 1970-01-01 | BZ13: 1 | CA13: 0 | CB13: 0 | CC13: =DATE(R18,Q18,1) -> 1970-01-01 | CD13: =DATE(V18,U18,1) -> 1970-01-01 | CE13: 1 | CF13: 0 | CG13: 0 | CH13: =DATE(R19,Q19,1) -> 1970-01-01 | CI13: =DATE(V19,U19,1) -> 1970-01-01 | CJ13: 1 | CK13: 0 | CL13: 0
W14: =DATE(V12,U12,1) -> 2022-03-01 | AF14: 0 | AL14: 2013-04-01 | AM14: 0.0102 | AP14: 1900-01-01 | AS14: 7 | AT14: 1985 | AU14: 1985-07-01 | AV14: =IF(K4="قانون79",AW14,AX14) -> 6 | AW14: 14 | AX14: 6 | AZ14: 14 | BA14: 35 | BB14: 6 | BC14: 40 | BD14: =W9 -> 2022-01-01 | BE14: =W14 -> 2022-03-01 | BF14: =VLOOKUP(BI14,AE5:AF140,2) ->  | BG14: =VLOOKUP(BI14,التسويات!$AU$5:$AX$59,2) -> 1.8 | BH14: =IF(K6="نعم",BF14,BG14) -> 1.8 | BI14: 1977-07-01 | BJ14: 0 | BK14: 1 | BL14: 0 | BM14: =VLOOKUP(BI14,التسويات!$AL$5:$AM$139,2) -> 0.005 | BN14: 0 | BO14: 0 | BP14: =IF(BI14>=T15,0,BM14*BO14) -> 0 | BQ14: =IF(BI14<BR1,BL14,0) -> 0 | BR14: =IF(BI14<BR1,BP14,0) -> 0 | BS14: =IFERROR(VLOOKUP(BI14,AP6:AQ138,2,FALSE),0) -> 0 | BT14: 0 | BU14: =IF(BI14<BR1,BS14,0) -> 0 | BW14: 0 | BX14: =DATE(R17,Q17,1) -> 1970-01-01 | BY14: =DATE(V17,U17,1) -> 1970-01-01 | BZ14: 1 | CA14: 0 | CB14: 0 | CC14: =DATE(R18,Q18,1) -> 1970-01-01 | CD14: =DATE(V18,U18,1) -> 1970-01-01 | CE14: 1 | CF14: 0 | CG14: 0 | CH14: =DATE(R19,Q19,1) -> 1970-01-01 | CI14: =DATE(V19,U19,1) -> 1970-01-01 | CJ14: 1 | CK14: 0 | CL14: 0
E15: الفترات الساقطة | F15: من | J15: إلى | N15: شهر النهاية المراد احتسابه | T15: =DATE(M13,L13,K13) -> 2022-03-17 | AF15: 0 | AL15: 2013-08-01 | AM15: 0.0098 | AP15: 1900-01-01 | AS15: 7 | AT15: 1986 | AU15: 1986-07-01 | AV15: =IF(K4="قانون79",AW15,AX15) -> 6 | AW15: 14 | AX15: 6 | AZ15: 14 | BA15: 35 | BB15: 6 | BC15: 40 | BD15: =W9 -> 2022-01-01 | BE15: =W14 -> 2022-03-01 | BF15: =VLOOKUP(BI15,AE5:AF140,2) ->  | BG15: =VLOOKUP(BI15,التسويات!$AU$5:$AX$59,2) -> 1.8 | BH15: =IF(K6="نعم",BF15,BG15) -> 1.8 | BI15: 1977-08-01 | BJ15: 0 | BK15: 1 | BL15: 0 | BM15: =VLOOKUP(BI15,التسويات!$AL$5:$AM$139,2) -> 0.005 | BN15: 0 | BO15: 0 | BP15: =IF(BI15>=T15,0,BM15*BO15) -> 0 | BQ15: =IF(BI15<BR1,BL15,0) -> 0 | BR15: =IF(BI15<BR1,BP15,0) -> 0 | BS15: =IFERROR(VLOOKUP(BI15,AP6:AQ138,2,FALSE),0) -> 0 | BT15: 0 | BU15: =IF(BI15<BR1,BS15,0) -> 0 | BW15: 0 | BX15: =DATE(R17,Q17,1) -> 1970-01-01 | BY15: =DATE(V17,U17,1) -> 1970-01-01 | BZ15: 1 | CA15: 0 | CB15: 0 | CC15: =DATE(R18,Q18,1) -> 1970-01-01 | CD15: =DATE(V18,U18,1) -> 1970-01-01 | CE15: 1 | CF15: 0 | CG15: 0 | CH15: =DATE(R19,Q19,1) -> 1970-01-01 | CI15: =DATE(V19,U19,1) -> 1970-01-01 | CJ15: 1 | CK15: 0 | CL15: 0
F16: من | J16: إلى | AF16: 0 | AL16: 2013-10-01 | AM16: 0.0094 | AP16: 1900-01-01 | AS16: 7 | AT16: 1987 | AU16: 1987-07-01 | AV16: =IF(K4="قانون79",AW16,AX16) -> 6 | AW16: 14 | AX16: 6 | AZ16: 14 | BA16: 35 | BB16: 6 | BC16: 40 | BD16: =W9 -> 2022-01-01 | BE16: =W14 -> 2022-03-01 | BF16: =VLOOKUP(BI16,AE5:AF140,2) ->  | BG16: =VLOOKUP(BI16,التسويات!$AU$5:$AX$59,2) -> 1.8 | BH16: =IF(K6="نعم",BF16,BG16) -> 1.8 | BI16: 1977-09-01 | BJ16: 0 | BK16: 1 | BL16: 0 | BM16: =VLOOKUP(BI16,التسويات!$AL$5:$AM$139,2) -> 0.005 | BN16: 0 | BO16: 0 | BP16: =IF(BI16>=T15,0,BM16*BO16) -> 0 | BQ16: =IF(BI16<BR1,BL16,0) -> 0 | BR16: =IF(BI16<BR1,BP16,0) -> 0 | BS16: =IFERROR(VLOOKUP(BI16,AP6:AQ138,2,FALSE),0) -> 0 | BT16: 0 | BU16: =IF(BI16<BR1,BS16,0) -> 0 | BW16: 0 | BX16: =DATE(R17,Q17,1) -> 1970-01-01 | BY16: =DATE(V17,U17,1) -> 1970-01-01 | BZ16: 1 | CA16: 0 | CB16: 0 | CC16: =DATE(R18,Q18,1) -> 1970-01-01 | CD16: =DATE(V18,U18,1) -> 1970-01-01 | CE16: 1 | CF16: 0 | CG16: 0 | CH16: =DATE(R19,Q19,1) -> 1970-01-01 | CI16: =DATE(V19,U19,1) -> 1970-01-01 | CJ16: 1 | CK16: 0 | CL16: 0
F17: من | J17: إلى | N17: الفترات الساقطة | O17: من | P17: =IF(G15>0,G15,1) -> 1 | Q17: 1 | R17: =IF(I15>0,I15,1970) -> 1970 | S17: إلى | T17: =IF(K15>0,K15,1) -> 1 | U17: 1 | V17: =IF(M15>0,M15,1970) -> 1970 | W17: =BZ610*0.1 -> 0.1 | AF17: 0 | AL17: 2013-12-01 | AM17: 0.00895 | AP17: 1900-01-01 | AS17: 7 | AT17: 1988 | AU17: 1988-07-01 | AV17: =IF(K4="قانون79",AW17,AX17) -> 6 | AW17: 14 | AX17: 6 | AZ17: 14 | BA17: 35 | BB17: 6 | BC17: 40 | BD17: =W9 -> 2022-01-01 | BE17: =W14 -> 2022-03-01 | BF17: =VLOOKUP(BI17,AE5:AF140,2) ->  | BG17: =VLOOKUP(BI17,التسويات!$AU$5:$AX$59,2) -> 1.8 | BH17: =IF(K6="نعم",BF17,BG17) -> 1.8 | BI17: 1977-10-01 | BJ17: 0 | BK17: 1 | BL17: 0 | BM17: =VLOOKUP(BI17,التسويات!$AL$5:$AM$139,2) -> 0.005 | BN17: 0 | BO17: 0 | BP17: =IF(BI17>=T15,0,BM17*BO17) -> 0 | BQ17: =IF(BI17<BR1,BL17,0) -> 0 | BR17: =IF(BI17<BR1,BP17,0) -> 0 | BS17: =IFERROR(VLOOKUP(BI17,AP6:AQ138,2,FALSE),0) -> 0 | BT17: 0 | BU17: =IF(BI17<BR1,BS17,0) -> 0 | BW17: 0 | BX17: =DATE(R17,Q17,1) -> 1970-01-01 | BY17: =DATE(V17,U17,1) -> 1970-01-01 | BZ17: 1 | CA17: 0 | CB17: 0 | CC17: =DATE(R18,Q18,1) -> 1970-01-01 | CD17: =DATE(V18,U18,1) -> 1970-01-01 | CE17: 1 | CF17: 0 | CG17: 0 | CH17: =DATE(R19,Q19,1) -> 1970-01-01 | CI17: =DATE(V19,U19,1) -> 1970-01-01 | CJ17: 1 | CK17: 0 | CL17: 0
E18: جملة الإشتراكات | F18: سابق | I18: =BQ620-BU620 -> 0 | K18: =BL620-BS620 -> 882 | O18: من | P18: 1 | Q18: 1 | R18: 1970 | S18: إلى | T18: 1 | U18: 1 | V18: 1970 | AF18: 0 | AL18: 2015-01-01 | AM18: 0.0094 | AP18: 1900-01-01 | AS18: 7 | AT18: 1989 | AU18: 1989-07-01 | AV18: =IF(K4="قانون79",AW18,AX18) -> 6 | AW18: 14 | AX18: 6 | AZ18: 14 | BA18: 35 | BB18: 6 | BC18: 40 | BD18: =W9 -> 2022-01-01 | BE18: =W14 -> 2022-03-01 | BF18: =VLOOKUP(BI18,AE5:AF140,2) ->  | BG18: =VLOOKUP(BI18,التسويات!$AU$5:$AX$59,2) -> 1.8 | BH18: =IF(K6="نعم",BF18,BG18) -> 1.8 | BI18: 1977-11-01 | BJ18: 0 | BK18: 1 | BL18: 0 | BM18: =VLOOKUP(BI18,التسويات!$AL$5:$AM$139,2) -> 0.005 | BN18: 0 | BO18: 0 | BP18: =IF(BI18>=T15,0,BM18*BO18) -> 0 | BQ18: =IF(BI18<BR1,BL18,0) -> 0 | BR18: =IF(BI18<BR1,BP18,0) -> 0 | BS18: =IFERROR(VLOOKUP(BI18,AP6:AQ138,2,FALSE),0) -> 0 | BT18: 0 | BU18: =IF(BI18<BR1,BS18,0) -> 0 | BW18: 0 | BX18: =DATE(R17,Q17,1) -> 1970-01-01 | BY18: =DATE(V17,U17,1) -> 1970-01-01 | BZ18: 1 | CA18: 0 | CB18: 0 | CC18: =DATE(R18,Q18,1) -> 1970-01-01 | CD18: =DATE(V18,U18,1) -> 1970-01-01 | CE18: 1 | CF18: 0 | CG18: 0 | CH18: =DATE(R19,Q19,1) -> 1970-01-01 | CI18: =DATE(V19,U19,1) -> 1970-01-01 | CJ18: 1 | CK18: 0 | CL18: 0
F19: حالي | I19: =BL620-I18 -> 882 | O19: من | P19: 1 | Q19: 1 | R19: 1970 | S19: إلى | T19: 1 | U19: 1 | V19: 1970 | AA19: 0 | AF19: 0 | AL19: 2016-07-01 | AM19: 0.0119 | AP19: 1900-01-01 | AS19: 7 | AT19: 1990 | AU19: 1990-07-01 | AV19: =IF(K4="قانون79",AW19,AX19) -> 6 | AW19: 14 | AX19: 6 | AZ19: 14 | BA19: 35 | BB19: 6 | BC19: 40 | BD19: =W9 -> 2022-01-01 | BE19: =W14 -> 2022-03-01 | BF19: =VLOOKUP(BI19,AE5:AF140,2) ->  | BG19: =VLOOKUP(BI19,التسويات!$AU$5:$AX$59,2) -> 1.8 | BH19: =IF(K6="نعم",BF19,BG19) -> 1.8 | BI19: 1977-12-01 | BJ19: 0 | BK19: 1 | BL19: 0 | BM19: =VLOOKUP(BI19,التسويات!$AL$5:$AM$139,2) -> 0.005 | BN19: 0 | BO19: 0 | BP19: =IF(BI19>=T15,0,BM19*BO19) -> 0 | BQ19: =IF(BI19<BR1,BL19,0) -> 0 | BR19: =IF(BI19<BR1,BP19,0) -> 0 | BS19: =IFERROR(VLOOKUP(BI19,AP6:AQ138,2,FALSE),0) -> 0 | BT19: 0 | BU19: =IF(BI19<BR1,BS19,0) -> 0 | BW19: 0 | BX19: =DATE(R17,Q17,1) -> 1970-01-01 | BY19: =DATE(V17,U17,1) -> 1970-01-01 | BZ19: 1 | CA19: 0 | CB19: 0 | CC19: =DATE(R18,Q18,1) -> 1970-01-01 | CD19: =DATE(V18,U18,1) -> 1970-01-01 | CE19: 1 | CF19: 0 | CG19: 0 | CH19: =DATE(R19,Q19,1) -> 1970-01-01 | CI19: =DATE(V19,U19,1) -> 1970-01-01 | CJ19: 1 | CK19: 0 | CL19: 0
E20: جملة الفوائد | F20: سابق | I20: =BR620 -> 0 | K20: =BP620 -> 23.6376 | N20: جملة الإشتراكات | T20: =W17 -> 0.1 | AF20: 0 | AL20: 2016-11-01 | AM20: 0.0144 | AP20: 1900-01-01 | AS20: 7 | AT20: 1991 | AU20: 1991-07-01 | AV20: =IF(K4="قانون79",AW20,AX20) -> 6 | AW20: 14 | AX20: 6 | AZ20: 14 | BA20: 35 | BB20: 6 | BC20: 40 | BD20: =W9 -> 2022-01-01 | BE20: =W14 -> 2022-03-01 | BF20: =VLOOKUP(BI20,AE5:AF140,2) ->  | BG20: =VLOOKUP(BI20,التسويات!$AU$5:$AX$59,2) -> 1.8 | BH20: =IF(K6="نعم",BF20,BG20) -> 1.8 | BI20: 1978-01-01 | BJ20: 0 | BK20: 1 | BL20: 0 | BM20: =VLOOKUP(BI20,التسويات!$AL$5:$AM$139,2) -> 0.005 | BN20: 0 | BO20: 0 | BP20: =IF(BI20>=T15,0,BM20*BO20) -> 0 | BQ20: =IF(BI20<BR1,BL20,0) -> 0 | BR20: =IF(BI20<BR1,BP20,0) -> 0 | BS20: =IFERROR(VLOOKUP(BI20,AP6:AQ138,2,FALSE),0) -> 0 | BT20: 0 | BU20: =IF(BI20<BR1,BS20,0) -> 0 | BW20: 0 | BX20: =DATE(R17,Q17,1) -> 1970-01-01 | BY20: =DATE(V17,U17,1) -> 1970-01-01 | BZ20: 1 | CA20: 0 | CB20: 0 | CC20: =DATE(R18,Q18,1) -> 1970-01-01 | CD20: =DATE(V18,U18,1) -> 1970-01-01 | CE20: 1 | CF20: 0 | CG20: 0 | CH20: =DATE(R19,Q19,1) -> 1970-01-01 | CI20: =DATE(V19,U19,1) -> 1970-01-01 | CJ20: 1 | CK20: 0 | CL20: 0
F21: حالي | I21: =BP620-I20 -> 23.6376 | AF21: 0 | AL21: 2017-06-01 | AM21: 0.016 | AP21: 1900-01-01 | AS21: 7 | AT21: 1992 | AU21: 1992-07-01 | AV21: =IF(K4="قانون79",AW21,AX21) -> 6 | AW21: 16.8 | AX21: 6 | AZ21: 16.8 | BA21: 42 | BB21: 6 | BC21: 40 | BD21: =W9 -> 2022-01-01 | BE21: =W14 -> 2022-03-01 | BF21: =VLOOKUP(BI21,AE5:AF140,2) ->  | BG21: =VLOOKUP(BI21,التسويات!$AU$5:$AX$59,2) -> 1.8 | BH21: =IF(K6="نعم",BF21,BG21) -> 1.8 | BI21: 1978-02-01 | BJ21: 0 | BK21: 1 | BL21: 0 | BM21: =VLOOKUP(BI21,التسويات!$AL$5:$AM$139,2) -> 0.005 | BN21: 0 | BO21: 0 | BP21: =IF(BI21>=T15,0,BM21*BO21) -> 0 | BQ21: =IF(BI21<BR1,BL21,0) -> 0 | BR21: =IF(BI21<BR1,BP21,0) -> 0 | BS21: =IFERROR(VLOOKUP(BI21,AP6:AQ138,2,FALSE),0) -> 0 | BT21: 0 | BU21: =IF(BI21<BR1,BS21,0) -> 0 | BW21: 0 | BX21: =DATE(R17,Q17,1) -> 1970-01-01 | BY21: =DATE(V17,U17,1) -> 1970-01-01 | BZ21: 1 | CA21: 0 | CB21: 0 | CC21: =DATE(R18,Q18,1) -> 1970-01-01 | CD21: =DATE(V18,U18,1) -> 1970-01-01 | CE21: 1 | CF21: 0 | CG21: 0 | CH21: =DATE(R19,Q19,1) -> 1970-01-01 | CI21: =DATE(V19,U19,1) -> 1970-01-01 | CJ21: 1 | CK21: 0 | CL21: 0
E22: جملة التسوية | K22: =K18+K20 -> 905.6376 | AF22: 0 | AL22: 2017-07-01 | AM22: 0.0177 | AP22: 1900-01-01 | AS22: 7 | AT22: 1993 | AU22: 1993-07-01 | AV22: =IF(K4="قانون79",AW22,AX22) -> 6 | AW22: 18.9 | AX22: 6 | AZ22: 18.9 | BA22: 47.25 | BB22: 6 | BC22: 40 | BD22: =W9 -> 2022-01-01 | BE22: =W14 -> 2022-03-01 | BF22: =VLOOKUP(BI22,AE5:AF140,2) ->  | BG22: =VLOOKUP(BI22,التسويات!$AU$5:$AX$59,2) -> 1.8 | BH22: =IF(K6="نعم",BF22,BG22) -> 1.8 | BI22: 1978-03-01 | BJ22: 0 | BK22: 1 | BL22: 0 | BM22: =VLOOKUP(BI22,التسويات!$AL$5:$AM$139,2) -> 0.005 | BN22: 0 | BO22: 0 | BP22: =IF(BI22>=T15,0,BM22*BO22) -> 0 | BQ22: =IF(BI22<BR1,BL22,0) -> 0 | BR22: =IF(BI22<BR1,BP22,0) -> 0 | BS22: =IFERROR(VLOOKUP(BI22,AP6:AQ138,2,FALSE),0) -> 0 | BT22: 0 | BU22: =IF(BI22<BR1,BS22,0) -> 0 | BW22: 0 | BX22: =DATE(R17,Q17,1) -> 1970-01-01 | BY22: =DATE(V17,U17,1) -> 1970-01-01 | BZ22: 1 | CA22: 0 | CB22: 0 | CC22: =DATE(R18,Q18,1) -> 1970-01-01 | CD22: =DATE(V18,U18,1) -> 1970-01-01 | CE22: 1 | CF22: 0 | CG22: 0 | CH22: =DATE(R19,Q19,1) -> 1970-01-01 | CI22: =DATE(V19,U19,1) -> 1970-01-01 | CJ22: 1 | CK22: 0 | CL22: 0
AF23: 0 | AL23: 2018-02-01 | AM23: 0.0169 | AP23: 1900-01-01 | AS23: 7 | AT23: 1994 | AU23: 1994-07-01 | AV23: =IF(K4="قانون79",AW23,AX23) -> 7.5 | AW23: 21 | AX23: 7.5 | AZ23: 21 | BA23: 52.5 | BB23: 7.5 | BC23: 50 | BD23: =W9 -> 2022-01-01 | BE23: =W14 -> 2022-03-01 | BF23: =VLOOKUP(BI23,AE5:AF140,2) ->  | BG23: =VLOOKUP(BI23,التسويات!$AU$5:$AX$59,2) -> 1.8 | BH23: =IF(K6="نعم",BF23,BG23) -> 1.8 | BI23: 1978-04-01 | BJ23: 0 | BK23: 1 | BL23: 0 | BM23: =VLOOKUP(BI23,التسويات!$AL$5:$AM$139,2) -> 0.005 | BN23: 0 | BO23: 0 | BP23: =IF(BI23>=T15,0,BM23*BO23) -> 0 | BQ23: =IF(BI23<BR1,BL23,0) -> 0 | BR23: =IF(BI23<BR1,BP23,0) -> 0 | BS23: =IFERROR(VLOOKUP(BI23,AP6:AQ138,2,FALSE),0) -> 0 | BT23: 0 | BU23: =IF(BI23<BR1,BS23,0) -> 0 | BW23: 0 | BX23: =DATE(R17,Q17,1) -> 1970-01-01 | BY23: =DATE(V17,U17,1) -> 1970-01-01 | BZ23: 1 | CA23: 0 | CB23: 0 | CC23: =DATE(R18,Q18,1) -> 1970-01-01 | CD23: =DATE(V18,U18,1) -> 1970-01-01 | CE23: 1 | CF23: 0 | CG23: 0 | CH23: =DATE(R19,Q19,1) -> 1970-01-01 | CI23: =DATE(V19,U19,1) -> 1970-01-01 | CJ23: 1 | CK23: 0 | CL23: 0
AF24: 0 | AL24: 2018-04-01 | AM24: 0.016 | AP24: 1900-01-01 | AS24: 7 | AT24: 1995 | AU24: 1995-07-01 | AV24: =IF(K4="قانون79",AW24,AX24) -> 7.5 | AW24: 23.1 | AX24: 7.5 | AZ24: 23.1 | BA24: 57.75 | BB24: 7.5 | BC24: 50 | BD24: =W9 -> 2022-01-01 | BE24: =W14 -> 2022-03-01 | BF24: =VLOOKUP(BI24,AE5:AF140,2) ->  | BG24: =VLOOKUP(BI24,التسويات!$AU$5:$AX$59,2) -> 1.8 | BH24: =IF(K6="نعم",BF24,BG24) -> 1.8 | BI24: 1978-05-01 | BJ24: 0 | BK24: 1 | BL24: 0 | BM24: =VLOOKUP(BI24,التسويات!$AL$5:$AM$139,2) -> 0.005 | BN24: 0 | BO24: 0 | BP24: =IF(BI24>=T15,0,BM24*BO24) -> 0 | BQ24: =IF(BI24<BR1,BL24,0) -> 0 | BR24: =IF(BI24<BR1,BP24,0) -> 0 | BS24: =IFERROR(VLOOKUP(BI24,AP6:AQ138,2,FALSE),0) -> 0 | BT24: 0 | BU24: =IF(BI24<BR1,BS24,0) -> 0 | BW24: 0 | BX24: =DATE(R17,Q17,1) -> 1970-01-01 | BY24: =DATE(V17,U17,1) -> 1970-01-01 | BZ24: 1 | CA24: 0 | CB24: 0 | CC24: =DATE(R18,Q18,1) -> 1970-01-01 | CD24: =DATE(V18,U18,1) -> 1970-01-01 | CE24: 1 | CF24: 0 | CG24: 0 | CH24: =DATE(R19,Q19,1) -> 1970-01-01 | CI24: =DATE(V19,U19,1) -> 1970-01-01 | CJ24: 1 | CK24: 0 | CL24: 0
AF25: 0 | AL25: 2019-02-01 | AM25: 0.0152 | AP25: 1900-01-01 | AS25: 7 | AT25: 1996 | AU25: 1996-07-01 | AV25: =IF(K4="قانون79",AW25,AX25) -> 7.5 | AW25: 25.2 | AX25: 7.5 | AZ25: 25.2 | BA25: 63 | BB25: 7.5 | BC25: 50 | BD25: =W9 -> 2022-01-01 | BE25: =W14 -> 2022-03-01 | BF25: =VLOOKUP(BI25,AE5:AF140,2) ->  | BG25: =VLOOKUP(BI25,التسويات!$AU$5:$AX$59,2) -> 1.8 | BH25: =IF(K6="نعم",BF25,BG25) -> 1.8 | BI25: 1978-06-01 | BJ25: 0 | BK25: 1 | BL25: 0 | BM25: =VLOOKUP(BI25,التسويات!$AL$5:$AM$139,2) -> 0.005 | BN25: 0 | BO25: 0 | BP25: =IF(BI25>=T15,0,BM25*BO25) -> 0 | BQ25: =IF(BI25<BR1,BL25,0) -> 0 | BR25: =IF(BI25<BR1,BP25,0) -> 0 | BS25: =IFERROR(VLOOKUP(BI25,AP6:AQ138,2,FALSE),0) -> 0 | BT25: 0 | BU25: =IF(BI25<BR1,BS25,0) -> 0 | BW25: 0 | BX25: =DATE(R17,Q17,1) -> 1970-01-01 | BY25: =DATE(V17,U17,1) -> 1970-01-01 | BZ25: 1 | CA25: 0 | CB25: 0 | CC25: =DATE(R18,Q18,1) -> 1970-01-01 | CD25: =DATE(V18,U18,1) -> 1970-01-01 | CE25: 1 | CF25: 0 | CG25: 0 | CH25: =DATE(R19,Q19,1) -> 1970-01-01 | CI25: =DATE(V19,U19,1) -> 1970-01-01 | CJ25: 1 | CK25: 0 | CL25: 0
AF26: 0 | AL26: 2019-09-01 | AM26: 0.014 | AP26: 1900-01-01 | AS26: 7 | AT26: 1997 | AU26: 1997-07-01 | AV26: =IF(K4="قانون79",AW26,AX26) -> 7.5 | AW26: 28 | AX26: 7.5 | AZ26: 28 | BA26: 70 | BB26: 7.5 | BC26: 50 | BD26: =W9 -> 2022-01-01 | BE26: =W14 -> 2022-03-01 | BF26: =VLOOKUP(BI26,AE5:AF140,2) ->  | BG26: =VLOOKUP(BI26,التسويات!$AU$5:$AX$59,2) -> 1.8 | BH26: =IF(K6="نعم",BF26,BG26) -> 1.8 | BI26: 1978-07-01 | BJ26: 0 | BK26: 1 | BL26: 0 | BM26: =VLOOKUP(BI26,التسويات!$AL$5:$AM$139,2) -> 0.005 | BN26: 0 | BO26: 0 | BP26: =IF(BI26>=T15,0,BM26*BO26) -> 0 | BQ26: =IF(BI26<BR1,BL26,0) -> 0 | BR26: =IF(BI26<BR1,BP26,0) -> 0 | BS26: =IFERROR(VLOOKUP(BI26,AP6:AQ138,2,FALSE),0) -> 0 | BT26: 0 | BU26: =IF(BI26<BR1,BS26,0) -> 0 | BW26: 0 | BX26: =DATE(R17,Q17,1) -> 1970-01-01 | BY26: =DATE(V17,U17,1) -> 1970-01-01 | BZ26: 1 | CA26: 0 | CB26: 0 | CC26: =DATE(R18,Q18,1) -> 1970-01-01 | CD26: =DATE(V18,U18,1) -> 1970-01-01 | CE26: 1 | CF26: 0 | CG26: 0 | CH26: =DATE(R19,Q19,1) -> 1970-01-01 | CI26: =DATE(V19,U19,1) -> 1970-01-01 | CJ26: 1 | CK26: 0 | CL26: 0
AF27: 0 | AL27: 2019-10-01 | AM27: 0.013 | AP27: 1900-01-01 | AS27: 7 | AT27: 1998 | AU27: 1998-07-01 | AV27: =IF(K4="قانون79",AW27,AX27) -> 7.5 | AW27: 29.4 | AX27: 7.5 | AZ27: 29.4 | BA27: 73.5 | BB27: 7.5 | BC27: 50 | BD27: =W9 -> 2022-01-01 | BE27: =W14 -> 2022-03-01 | BF27: =VLOOKUP(BI27,AE5:AF140,2) ->  | BG27: =VLOOKUP(BI27,التسويات!$AU$5:$AX$59,2) -> 1.8 | BH27: =IF(K6="نعم",BF27,BG27) -> 1.8 | BI27: 1978-08-01 | BJ27: 0 | BK27: 1 | BL27: 0 | BM27: =VLOOKUP(BI27,التسويات!$AL$5:$AM$139,2) -> 0.005 | BN27: 0 | BO27: 0 | BP27: =IF(BI27>=T15,0,BM27*BO27) -> 0 | BQ27: =IF(BI27<BR1,BL27,0) -> 0 | BR27: =IF(BI27<BR1,BP27,0) -> 0 | BS27: =IFERROR(VLOOKUP(BI27,AP6:AQ138,2,FALSE),0) -> 0 | BT27: 0 | BU27: =IF(BI27<BR1,BS27,0) -> 0 | BW27: 0 | BX27: =DATE(R17,Q17,1) -> 1970-01-01 | BY27: =DATE(V17,U17,1) -> 1970-01-01 | BZ27: 1 | CA27: 0 | CB27: 0 | CC27: =DATE(R18,Q18,1) -> 1970-01-01 | CD27: =DATE(V18,U18,1) -> 1970-01-01 | CE27: 1 | CF27: 0 | CG27: 0 | CH27: =DATE(R19,Q19,1) -> 1970-01-01 | CI27: =DATE(V19,U19,1) -> 1970-01-01 | CJ27: 1 | CK27: 0 | CL27: 0
AF28: 0 | AL28: 2019-11-01 | AM28: 0.0123 | AP28: 1900-01-01 | AS28: 7 | AT28: 1999 | AU28: 1999-07-01 | AV28: =IF(K4="قانون79",AW28,AX28) -> 7.5 | AW28: 30.8 | AX28: 7.5 | AZ28: 30.8 | BA28: 77 | BB28: 7.5 | BC28: 50 | BD28: =W9 -> 2022-01-01 | BE28: =W14 -> 2022-03-01 | BF28: =VLOOKUP(BI28,AE5:AF140,2) ->  | BG28: =VLOOKUP(BI28,التسويات!$AU$5:$AX$59,2) -> 1.8 | BH28: =IF(K6="نعم",BF28,BG28) -> 1.8 | BI28: 1978-09-01 | BJ28: 0 | BK28: 1 | BL28: 0 | BM28: =VLOOKUP(BI28,التسويات!$AL$5:$AM$139,2) -> 0.005 | BN28: 0 | BO28: 0 | BP28: =IF(BI28>=T15,0,BM28*BO28) -> 0 | BQ28: =IF(BI28<BR1,BL28,0) -> 0 | BR28: =IF(BI28<BR1,BP28,0) -> 0 | BS28: =IFERROR(VLOOKUP(BI28,AP6:AQ138,2,FALSE),0) -> 0 | BT28: 0 | BU28: =IF(BI28<BR1,BS28,0) -> 0 | BW28: 0 | BX28: =DATE(R17,Q17,1) -> 1970-01-01 | BY28: =DATE(V17,U17,1) -> 1970-01-01 | BZ28: 1 | CA28: 0 | CB28: 0 | CC28: =DATE(R18,Q18,1) -> 1970-01-01 | CD28: =DATE(V18,U18,1) -> 1970-01-01 | CE28: 1 | CF28: 0 | CG28: 0 | CH28: =DATE(R19,Q19,1) -> 1970-01-01 | CI28: =DATE(V19,U19,1) -> 1970-01-01 | CJ28: 1 | CK28: 0 | CL28: 0
AF29: 0 | AL29: 2020-09-01 | AM29: 0.0125 | AP29: 1900-01-01 | AS29: 7 | AT29: 2000 | AU29: 2000-07-01 | AV29: =IF(K4="قانون79",AW29,AX29) -> 7.5 | AW29: 32.2 | AX29: 7.5 | AZ29: 32.2 | BA29: 80.5 | BB29: 7.5 | BC29: 50 | BD29: =W9 -> 2022-01-01 | BE29: =W14 -> 2022-03-01 | BF29: =VLOOKUP(BI29,AE5:AF140,2) ->  | BG29: =VLOOKUP(BI29,التسويات!$AU$5:$AX$59,2) -> 1.8 | BH29: =IF(K6="نعم",BF29,BG29) -> 1.8 | BI29: 1978-10-01 | BJ29: 0 | BK29: 1 | BL29: 0 | BM29: =VLOOKUP(BI29,التسويات!$AL$5:$AM$139,2) -> 0.005 | BN29: 0 | BO29: 0 | BP29: =IF(BI29>=T15,0,BM29*BO29) -> 0 | BQ29: =IF(BI29<BR1,BL29,0) -> 0 | BR29: =IF(BI29<BR1,BP29,0) -> 0 | BS29: =IFERROR(VLOOKUP(BI29,AP6:AQ138,2,FALSE),0) -> 0 | BT29: 0 | BU29: =IF(BI29<BR1,BS29,0) -> 0 | BW29: 0 | BX29: =DATE(R17,Q17,1) -> 1970-01-01 | BY29: =DATE(V17,U17,1) -> 1970-01-01 | BZ29: 1 | CA29: 0 | CB29: 0 | CC29: =DATE(R18,Q18,1) -> 1970-01-01 | CD29: =DATE(V18,U18,1) -> 1970-01-01 | CE29: 1 | CF29: 0 | CG29: 0 | CH29: =DATE(R19,Q19,1) -> 1970-01-01 | CI29: =DATE(V19,U19,1) -> 1970-01-01 | CJ29: 1 | CK29: 0 | CL29: 0
AF30: 0 | AL30: 2020-11-01 | AM30: 0.0134 | AP30: 1900-01-01 | AS30: 7 | AT30: 2001 | AU30: 2001-07-01 | AV30: =IF(K4="قانون79",AW30,AX30) -> 15 | AW30: 33.6 | AX30: 15 | AZ30: 33.6 | BA30: 84 | BB30: 15 | BC30: 100 | BD30: =W9 -> 2022-01-01 | BE30: =W14 -> 2022-03-01 | BF30: =VLOOKUP(BI30,AE5:AF140,2) ->  | BG30: =VLOOKUP(BI30,التسويات!$AU$5:$AX$59,2) -> 1.8 | BH30: =IF(K6="نعم",BF30,BG30) -> 1.8 | BI30: 1978-11-01 | BJ30: 0 | BK30: 1 | BL30: 0 | BM30: =VLOOKUP(BI30,التسويات!$AL$5:$AM$139,2) -> 0.005 | BN30: 0 | BO30: 0 | BP30: =IF(BI30>=T15,0,BM30*BO30) -> 0 | BQ30: =IF(BI30<BR1,BL30,0) -> 0 | BR30: =IF(BI30<BR1,BP30,0) -> 0 | BS30: =IFERROR(VLOOKUP(BI30,AP6:AQ138,2,FALSE),0) -> 0 | BT30: 0 | BU30: =IF(BI30<BR1,BS30,0) -> 0 | BW30: 0 | BX30: =DATE(R17,Q17,1) -> 1970-01-01 | BY30: =DATE(V17,U17,1) -> 1970-01-01 | BZ30: 1 | CA30: 0 | CB30: 0 | CC30: =DATE(R18,Q18,1) -> 1970-01-01 | CD30: =DATE(V18,U18,1) -> 1970-01-01 | CE30: 1 | CF30: 0 | CG30: 0 | CH30: =DATE(R19,Q19,1) -> 1970-01-01 | CI30: =DATE(V19,U19,1) -> 1970-01-01 | CJ30: 1 | CK30: 0 | CL30: 0
AF31: 0 | AL31: =IF(AH5>0,AH5," ") -> 2021-08-01 | AM31: =AJ5/100 -> 0.0134 | AP31: 1900-01-01 | AS31: 7 | AT31: 2002 | AU31: 2002-07-01 | AV31: =IF(K4="قانون79",AW31,AX31) -> 15 | AW31: 35 | AX31: 15 | AZ31: 35 | BA31: 87.5 | BB31: 15 | BC31: 100 | BD31: =W9 -> 2022-01-01 | BE31: =W14 -> 2022-03-01 | BF31: =VLOOKUP(BI31,AE5:AF140,2) ->  | BG31: =VLOOKUP(BI31,التسويات!$AU$5:$AX$59,2) -> 1.8 | BH31: =IF(K6="نعم",BF31,BG31) -> 1.8 | BI31: 1978-12-01 | BJ31: 0 | BK31: 1 | BL31: 0 | BM31: =VLOOKUP(BI31,التسويات!$AL$5:$AM$139,2) -> 0.005 | BN31: 0 | BO31: 0 | BP31: =IF(BI31>=T15,0,BM31*BO31) -> 0 | BQ31: =IF(BI31<BR1,BL31,0) -> 0 | BR31: =IF(BI31<BR1,BP31,0) -> 0 | BS31: =IFERROR(VLOOKUP(BI31,AP6:AQ138,2,FALSE),0) -> 0 | BT31: 0 | BU31: =IF(BI31<BR1,BS31,0) -> 0 | BW31: 0 | BX31: =DATE(R17,Q17,1) -> 1970-01-01 | BY31: =DATE(V17,U17,1) -> 1970-01-01 | BZ31: 1 | CA31: 0 | CB31: 0 | CC31: =DATE(R18,Q18,1) -> 1970-01-01 | CD31: =DATE(V18,U18,1) -> 1970-01-01 | CE31: 1 | CF31: 0 | CG31: 0 | CH31: =DATE(R19,Q19,1) -> 1970-01-01 | CI31: =DATE(V19,U19,1) -> 1970-01-01 | CJ31: 1 | CK31: 0 | CL31: 0
AF32: 0 | AL32: 2021-09-01 | AM32: 0.0134 | AP32: 1900-01-01 | AS32: 7 | AT32: 2003 | AU32: 2003-07-01 | AV32: =IF(K4="قانون79",AW32,AX32) -> 15 | AW32: 36.4 | AX32: 15 | AZ32: 36.4 | BA32: 91 | BB32: 15 | BC32: 100 | BD32: =W9 -> 2022-01-01 | BE32: =W14 -> 2022-03-01 | BF32: =VLOOKUP(BI32,AE5:AF140,2) ->  | BG32: =VLOOKUP(BI32,التسويات!$AU$5:$AX$59,2) -> 1.8 | BH32: =IF(K6="نعم",BF32,BG32) -> 1.8 | BI32: 1979-01-01 | BJ32: 0 | BK32: 1 | BL32: 0 | BM32: =VLOOKUP(BI32,التسويات!$AL$5:$AM$139,2) -> 0.005 | BN32: 0 | BO32: 0 | BP32: =IF(BI32>=T15,0,BM32*BO32) -> 0 | BQ32: =IF(BI32<BR1,BL32,0) -> 0 | BR32: =IF(BI32<BR1,BP32,0) -> 0 | BS32: =IFERROR(VLOOKUP(BI32,AP6:AQ138,2,FALSE),0) -> 0 | BT32: 0 | BU32: =IF(BI32<BR1,BS32,0) -> 0 | BW32: 0 | BX32: =DATE(R17,Q17,1) -> 1970-01-01 | BY32: =DATE(V17,U17,1) -> 1970-01-01 | BZ32: 1 | CA32: 0 | CB32: 0 | CC32: =DATE(R18,Q18,1) -> 1970-01-01 | CD32: =DATE(V18,U18,1) -> 1970-01-01 | CE32: 1 | CF32: 0 | CG32: 0 | CH32: =DATE(R19,Q19,1) -> 1970-01-01 | CI32: =DATE(V19,U19,1) -> 1970-01-01 | CJ32: 1 | CK32: 0 | CL32: 0
AF33: 0 | AL33: 2021-10-01 | AM33: 0.0134 | AP33: 1900-01-01 | AS33: 7 | AT33: 2004 | AU33: 2004-07-01 | AV33: =IF(K4="قانون79",AW33,AX33) -> 15 | AW33: 37.8 | AX33: 15 | AZ33: 37.8 | BA33: 94.5 | BB33: 15 | BC33: 100 | BD33: =W9 -> 2022-01-01 | BE33: =W14 -> 2022-03-01 | BF33: =VLOOKUP(BI33,AE5:AF140,2) ->  | BG33: =VLOOKUP(BI33,التسويات!$AU$5:$AX$59,2) -> 1.8 | BH33: =IF(K6="نعم",BF33,BG33) -> 1.8 | BI33: 1979-02-01 | BJ33: 0 | BK33: 1 | BL33: 0 | BM33: =VLOOKUP(BI33,التسويات!$AL$5:$AM$139,2) -> 0.005 | BN33: 0 | BO33: 0 | BP33: =IF(BI33>=T15,0,BM33*BO33) -> 0 | BQ33: =IF(BI33<BR1,BL33,0) -> 0 | BR33: =IF(BI33<BR1,BP33,0) -> 0 | BS33: =IFERROR(VLOOKUP(BI33,AP6:AQ138,2,FALSE),0) -> 0 | BT33: 0 | BU33: =IF(BI33<BR1,BS33,0) -> 0 | BW33: 0 | BX33: =DATE(R17,Q17,1) -> 1970-01-01 | BY33: =DATE(V17,U17,1) -> 1970-01-01 | BZ33: 1 | CA33: 0 | CB33: 0 | CC33: =DATE(R18,Q18,1) -> 1970-01-01 | CD33: =DATE(V18,U18,1) -> 1970-01-01 | CE33: 1 | CF33: 0 | CG33: 0 | CH33: =DATE(R19,Q19,1) -> 1970-01-01 | CI33: =DATE(V19,U19,1) -> 1970-01-01 | CJ33: 1 | CK33: 0 | CL33: 0
AF34: 0 | AL34: 2021-11-01 | AM34: 0.0134 | AP34: 1900-01-01 | AS34: 7 | AT34: 2005 | AU34: 2005-07-01 | AV34: =IF(K4="قانون79",AW34,AX34) -> 15 | AW34: 39.2 | AX34: 15 | AZ34: 39.2 | BA34: 98 | BB34: 15 | BC34: 100 | BD34: =W9 -> 2022-01-01 | BE34: =W14 -> 2022-03-01 | BF34: =VLOOKUP(BI34,AE5:AF140,2) ->  | BG34: =VLOOKUP(BI34,التسويات!$AU$5:$AX$59,2) -> 1.8 | BH34: =IF(K6="نعم",BF34,BG34) -> 1.8 | BI34: 1979-03-01 | BJ34: 0 | BK34: 1 | BL34: 0 | BM34: =VLOOKUP(BI34,التسويات!$AL$5:$AM$139,2) -> 0.005 | BN34: 0 | BO34: 0 | BP34: =IF(BI34>=T15,0,BM34*BO34) -> 0 | BQ34: =IF(BI34<BR1,BL34,0) -> 0 | BR34: =IF(BI34<BR1,BP34,0) -> 0 | BS34: =IFERROR(VLOOKUP(BI34,AP6:AQ138,2,FALSE),0) -> 0 | BT34: 0 | BU34: =IF(BI34<BR1,BS34,0) -> 0 | BW34: 0 | BX34: =DATE(R17,Q17,1) -> 1970-01-01 | BY34: =DATE(V17,U17,1) -> 1970-01-01 | BZ34: 1 | CA34: 0 | CB34: 0 | CC34: =DATE(R18,Q18,1) -> 1970-01-01 | CD34: =DATE(V18,U18,1) -> 1970-01-01 | CE34: 1 | CF34: 0 | CG34: 0 | CH34: =DATE(R19,Q19,1) -> 1970-01-01 | CI34: =DATE(V19,U19,1) -> 1970-01-01 | CJ34: 1 | CK34: 0 | CL34: 0
AF35: 0 | AL35: 2021-12-01 | AM35: 0.0134 | AP35: 1900-01-01 | AS35: 7 | AT35: 2006 | AU35: 2006-07-01 | AV35: =IF(K4="قانون79",AW35,AX35) -> 18.75 | AW35: 40.6 | AX35: 18.75 | AZ35: 40.6 | BA35: 101.5 | BB35: 18.75 | BC35: 125 | BD35: =W9 -> 2022-01-01 | BE35: =W14 -> 2022-03-01 | BF35: =VLOOKUP(BI35,AE5:AF140,2) ->  | BG35: =VLOOKUP(BI35,التسويات!$AU$5:$AX$59,2) -> 1.8 | BH35: =IF(K6="نعم",BF35,BG35) -> 1.8 | BI35: 1979-04-01 | BJ35: 0 | BK35: 1 | BL35: 0 | BM35: =VLOOKUP(BI35,التسويات!$AL$5:$AM$139,2) -> 0.005 | BN35: 0 | BO35: 0 | BP35: =IF(BI35>=T15,0,BM35*BO35) -> 0 | BQ35: =IF(BI35<BR1,BL35,0) -> 0 | BR35: =IF(BI35<BR1,BP35,0) -> 0 | BS35: =IFERROR(VLOOKUP(BI35,AP6:AQ138,2,FALSE),0) -> 0 | BT35: 0 | BU35: =IF(BI35<BR1,BS35,0) -> 0 | BW35: 0 | BX35: =DATE(R17,Q17,1) -> 1970-01-01 | BY35: =DATE(V17,U17,1) -> 1970-01-01 | BZ35: 1 | CA35: 0 | CB35: 0 | CC35: =DATE(R18,Q18,1) -> 1970-01-01 | CD35: =DATE(V18,U18,1) -> 1970-01-01 | CE35: 1 | CF35: 0 | CG35: 0 | CH35: =DATE(R19,Q19,1) -> 1970-01-01 | CI35: =DATE(V19,U19,1) -> 1970-01-01 | CJ35: 1 | CK35: 0 | CL35: 0
AF36: 0 | AL36: 2022-01-01 | AM36: 0.0134 | AP36: 1900-01-01 | AS36: 7 | AT36: 2007 | AU36: 2007-07-01 | AV36: =IF(K4="قانون79",AW36,AX36) -> 18.75 | AW36: 42 | AX36: 18.75 | AZ36: 42 | BA36: 105 | BB36: 18.75 | BC36: 125 | BD36: =W9 -> 2022-01-01 | BE36: =W14 -> 2022-03-01 | BF36: =VLOOKUP(BI36,AE5:AF140,2) ->  | BG36: =VLOOKUP(BI36,التسويات!$AU$5:$AX$59,2) -> 1.8 | BH36: =IF(K6="نعم",BF36,BG36) -> 1.8 | BI36: 1979-05-01 | BJ36: 0 | BK36: 1 | BL36: 0 | BM36: =VLOOKUP(BI36,التسويات!$AL$5:$AM$139,2) -> 0.005 | BN36: 0 | BO36: 0 | BP36: =IF(BI36>=T15,0,BM36*BO36) -> 0 | BQ36: =IF(BI36<BR1,BL36,0) -> 0 | BR36: =IF(BI36<BR1,BP36,0) -> 0 | BS36: =IFERROR(VLOOKUP(BI36,AP6:AQ138,2,FALSE),0) -> 0 | BT36: 0 | BU36: =IF(BI36<BR1,BS36,0) -> 0 | BW36: 0 | BX36: =DATE(R17,Q17,1) -> 1970-01-01 | BY36: =DATE(V17,U17,1) -> 1970-01-01 | BZ36: 1 | CA36: 0 | CB36: 0 | CC36: =DATE(R18,Q18,1) -> 1970-01-01 | CD36: =DATE(V18,U18,1) -> 1970-01-01 | CE36: 1 | CF36: 0 | CG36: 0 | CH36: =DATE(R19,Q19,1) -> 1970-01-01 | CI36: =DATE(V19,U19,1) -> 1970-01-01 | CJ36: 1 | CK36: 0 | CL36: 0
AF37: 0 | AL37: 2022-02-01 | AM37: 0.0134 | AP37: 1900-01-01 | AS37: 7 | AT37: 2008 | AU37: 2008-07-01 | AV37: =IF(K4="قانون79",AW37,AX37) -> 18.75 | AW37: 43.4 | AX37: 18.75 | AZ37: 43.4 | BA37: 108.5 | BB37: 18.75 | BC37: 125 | BD37: =W9 -> 2022-01-01 | BE37: =W14 -> 2022-03-01 | BF37: =VLOOKUP(BI37,AE5:AF140,2) ->  | BG37: =VLOOKUP(BI37,التسويات!$AU$5:$AX$59,2) -> 1.8 | BH37: =IF(K6="نعم",BF37,BG37) -> 1.8 | BI37: 1979-06-01 | BJ37: 0 | BK37: 1 | BL37: 0 | BM37: =VLOOKUP(BI37,التسويات!$AL$5:$AM$139,2) -> 0.005 | BN37: 0 | BO37: 0 | BP37: =IF(BI37>=T15,0,BM37*BO37) -> 0 | BQ37: =IF(BI37<BR1,BL37,0) -> 0 | BR37: =IF(BI37<BR1,BP37,0) -> 0 | BS37: =IFERROR(VLOOKUP(BI37,AP6:AQ138,2,FALSE),0) -> 0 | BT37: 0 | BU37: =IF(BI37<BR1,BS37,0) -> 0 | BW37: 0 | BX37: =DATE(R17,Q17,1) -> 1970-01-01 | BY37: =DATE(V17,U17,1) -> 1970-01-01 | BZ37: 1 | CA37: 0 | CB37: 0 | CC37: =DATE(R18,Q18,1) -> 1970-01-01 | CD37: =DATE(V18,U18,1) -> 1970-01-01 | CE37: 1 | CF37: 0 | CG37: 0 | CH37: =DATE(R19,Q19,1) -> 1970-01-01 | CI37: =DATE(V19,U19,1) -> 1970-01-01 | CJ37: 1 | CK37: 0 | CL37: 0
AF38: 0 | AL38: 2022-03-01 | AM38: 0.0134 | AP38: 1900-01-01 | AS38: 7 | AT38: 2009 | AU38: 2009-07-01 | AV38: =IF(K4="قانون79",AW38,AX38) -> 18.75 | AW38: 44.8 | AX38: 18.75 | AZ38: 44.8 | BA38: 112 | BB38: 18.75 | BC38: 125 | BD38: =W9 -> 2022-01-01 | BE38: =W14 -> 2022-03-01 | BF38: =VLOOKUP(BI38,AE5:AF140,2) ->  | BG38: =VLOOKUP(BI38,التسويات!$AU$5:$AX$59,2) -> 1.8 | BH38: =IF(K6="نعم",BF38,BG38) -> 1.8 | BI38: 1979-07-01 | BJ38: 0 | BK38: 1 | BL38: 0 | BM38: =VLOOKUP(BI38,التسويات!$AL$5:$AM$139,2) -> 0.005 | BN38: 0 | BO38: 0 | BP38: =IF(BI38>=T15,0,BM38*BO38) -> 0 | BQ38: =IF(BI38<BR1,BL38,0) -> 0 | BR38: =IF(BI38<BR1,BP38,0) -> 0 | BS38: =IFERROR(VLOOKUP(BI38,AP6:AQ138,2,FALSE),0) -> 0 | BT38: 0 | BU38: =IF(BI38<BR1,BS38,0) -> 0 | BW38: 0 | BX38: =DATE(R17,Q17,1) -> 1970-01-01 | BY38: =DATE(V17,U17,1) -> 1970-01-01 | BZ38: 1 | CA38: 0 | CB38: 0 | CC38: =DATE(R18,Q18,1) -> 1970-01-01 | CD38: =DATE(V18,U18,1) -> 1970-01-01 | CE38: 1 | CF38: 0 | CG38: 0 | CH38: =DATE(R19,Q19,1) -> 1970-01-01 | CI38: =DATE(V19,U19,1) -> 1970-01-01 | CJ38: 1 | CK38: 0 | CL38: 0
AF39: 0 | AM39: 0 | AP39: 1900-01-01 | AS39: 7 | AT39: 2010 | AU39: 2010-07-01 | AV39: =IF(K4="قانون79",AW39,AX39) -> 18.75 | AW39: 47.6 | AX39: 18.75 | AZ39: 47.6 | BA39: 119 | BB39: 18.75 | BC39: 125 | BD39: =W9 -> 2022-01-01 | BE39: =W14 -> 2022-03-01 | BF39: =VLOOKUP(BI39,AE5:AF140,2) ->  | BG39: =VLOOKUP(BI39,التسويات!$AU$5:$AX$59,2) -> 1.8 | BH39: =IF(K6="نعم",BF39,BG39) -> 1.8 | BI39: 1979-08-01 | BJ39: 0 | BK39: 1 | BL39: 0 | BM39: =VLOOKUP(BI39,التسويات!$AL$5:$AM$139,2) -> 0.005 | BN39: 0 | BO39: 0 | BP39: =IF(BI39>=T15,0,BM39*BO39) -> 0 | BQ39: =IF(BI39<BR1,BL39,0) -> 0 | BR39: =IF(BI39<BR1,BP39,0) -> 0 | BS39: =IFERROR(VLOOKUP(BI39,AP6:AQ138,2,FALSE),0) -> 0 | BT39: 0 | BU39: =IF(BI39<BR1,BS39,0) -> 0 | BW39: 0 | BX39: =DATE(R17,Q17,1) -> 1970-01-01 | BY39: =DATE(V17,U17,1) -> 1970-01-01 | BZ39: 1 | CA39: 0 | CB39: 0 | CC39: =DATE(R18,Q18,1) -> 1970-01-01 | CD39: =DATE(V18,U18,1) -> 1970-01-01 | CE39: 1 | CF39: 0 | CG39: 0 | CH39: =DATE(R19,Q19,1) -> 1970-01-01 | CI39: =DATE(V19,U19,1) -> 1970-01-01 | CJ39: 1 | CK39: 0 | CL39: 0
AF40: 0 | AM40: 0 | AP40: 1900-01-01 | AS40: 7 | AT40: 2011 | AU40: 2011-07-01 | AV40: =IF(K4="قانون79",AW40,AX40) -> 18.75 | AW40: 49 | AX40: 18.75 | AZ40: 49 | BA40: 122.5 | BB40: 18.75 | BC40: 125 | BD40: =W9 -> 2022-01-01 | BE40: =W14 -> 2022-03-01 | BF40: =VLOOKUP(BI40,AE5:AF140,2) ->  | BG40: =VLOOKUP(BI40,التسويات!$AU$5:$AX$59,2) -> 1.8 | BH40: =IF(K6="نعم",BF40,BG40) -> 1.8 | BI40: 1979-09-01 | BJ40: 0 | BK40: 1 | BL40: 0 | BM40: =VLOOKUP(BI40,التسويات!$AL$5:$AM$139,2) -> 0.005 | BN40: 0 | BO40: 0 | BP40: =IF(BI40>=T15,0,BM40*BO40) -> 0 | BQ40: =IF(BI40<BR1,BL40,0) -> 0 | BR40: =IF(BI40<BR1,BP40,0) -> 0 | BS40: =IFERROR(VLOOKUP(BI40,AP6:AQ138,2,FALSE),0) -> 0 | BT40: 0 | BU40: =IF(BI40<BR1,BS40,0) -> 0 | BW40: 0 | BX40: =DATE(R17,Q17,1) -> 1970-01-01 | BY40: =DATE(V17,U17,1) -> 1970-01-01 | BZ40: 1 | CA40: 0 | CB40: 0 | CC40: =DATE(R18,Q18,1) -> 1970-01-01 | CD40: =DATE(V18,U18,1) -> 1970-01-01 | CE40: 1 | CF40: 0 | CG40: 0 | CH40: =DATE(R19,Q19,1) -> 1970-01-01 | CI40: =DATE(V19,U19,1) -> 1970-01-01 | CJ40: 1 | CK40: 0 | CL40: 0
AF41: 0 | AM41: 0 | AP41: 1900-01-01 | AS41: 7 | AT41: 2012 | AU41: 2012-07-01 | AV41: =IF(K4="قانون79",AW41,AX41) -> 22.5 | AW41: 51.1 | AX41: 22.5 | AZ41: 51.1 | BA41: 127.75 | BB41: 22.5 | BC41: 150 | BD41: =W9 -> 2022-01-01 | BE41: =W14 -> 2022-03-01 | BF41: =VLOOKUP(BI41,AE5:AF140,2) ->  | BG41: =VLOOKUP(BI41,التسويات!$AU$5:$AX$59,2) -> 1.8 | BH41: =IF(K6="نعم",BF41,BG41) -> 1.8 | BI41: 1979-10-01 | BJ41: 0 | BK41: 1 | BL41: 0 | BM41: =VLOOKUP(BI41,التسويات!$AL$5:$AM$139,2) -> 0.005 | BN41: 0 | BO41: 0 | BP41: =IF(BI41>=T15,0,BM41*BO41) -> 0 | BQ41: =IF(BI41<BR1,BL41,0) -> 0 | BR41: =IF(BI41<BR1,BP41,0) -> 0 | BS41: =IFERROR(VLOOKUP(BI41,AP6:AQ138,2,FALSE),0) -> 0 | BT41: 0 | BU41: =IF(BI41<BR1,BS41,0) -> 0 | BW41: 0 | BX41: =DATE(R17,Q17,1) -> 1970-01-01 | BY41: =DATE(V17,U17,1) -> 1970-01-01 | BZ41: 1 | CA41: 0 | CB41: 0 | CC41: =DATE(R18,Q18,1) -> 1970-01-01 | CD41: =DATE(V18,U18,1) -> 1970-01-01 | CE41: 1 | CF41: 0 | CG41: 0 | CH41: =DATE(R19,Q19,1) -> 1970-01-01 | CI41: =DATE(V19,U19,1) -> 1970-01-01 | CJ41: 1 | CK41: 0 | CL41: 0
AF42: 0 | AM42: 0 | AP42: 1900-01-01 | AS42: 7 | AT42: 2013 | AU42: 2013-07-01 | AV42: =IF(K4="قانون79",AW42,AX42) -> 22.5 | AW42: 55.3 | AX42: 22.5 | AZ42: 55.3 | BA42: 138.25 | BB42: 22.5 | BC42: 150 | BD42: =W9 -> 2022-01-01 | BE42: =W14 -> 2022-03-01 | BF42: =VLOOKUP(BI42,AE5:AF140,2) ->  | BG42: =VLOOKUP(BI42,التسويات!$AU$5:$AX$59,2) -> 1.8 | BH42: =IF(K6="نعم",BF42,BG42) -> 1.8 | BI42: 1979-11-01 | BJ42: 0 | BK42: 1 | BL42: 0 | BM42: =VLOOKUP(BI42,التسويات!$AL$5:$AM$139,2) -> 0.005 | BN42: 0 | BO42: 0 | BP42: =IF(BI42>=T15,0,BM42*BO42) -> 0 | BQ42: =IF(BI42<BR1,BL42,0) -> 0 | BR42: =IF(BI42<BR1,BP42,0) -> 0 | BS42: =IFERROR(VLOOKUP(BI42,AP6:AQ138,2,FALSE),0) -> 0 | BT42: 0 | BU42: =IF(BI42<BR1,BS42,0) -> 0 | BW42: 0 | BX42: =DATE(R17,Q17,1) -> 1970-01-01 | BY42: =DATE(V17,U17,1) -> 1970-01-01 | BZ42: 1 | CA42: 0 | CB42: 0 | CC42: =DATE(R18,Q18,1) -> 1970-01-01 | CD42: =DATE(V18,U18,1) -> 1970-01-01 | CE42: 1 | CF42: 0 | CG42: 0 | CH42: =DATE(R19,Q19,1) -> 1970-01-01 | CI42: =DATE(V19,U19,1) -> 1970-01-01 | CJ42: 1 | CK42: 0 | CL42: 0
AF43: 0 | AM43: 0 | AP43: 1900-01-01 | AS43: 7 | AT43: 2014 | AU43: 2014-07-01 | AV43: =IF(K4="قانون79",AW43,AX43) -> 22.5 | AW43: 56.7 | AX43: 22.5 | AZ43: 56.7 | BA43: 141.75 | BB43: 22.5 | BC43: 150 | BD43: =W9 -> 2022-01-01 | BE43: =W14 -> 2022-03-01 | BF43: =VLOOKUP(BI43,AE5:AF140,2) ->  | BG43: =VLOOKUP(BI43,التسويات!$AU$5:$AX$59,2) -> 1.8 | BH43: =IF(K6="نعم",BF43,BG43) -> 1.8 | BI43: 1979-12-01 | BJ43: 0 | BK43: 1 | BL43: 0 | BM43: =VLOOKUP(BI43,التسويات!$AL$5:$AM$139,2) -> 0.005 | BN43: 0 | BO43: 0 | BP43: =IF(BI43>=T15,0,BM43*BO43) -> 0 | BQ43: =IF(BI43<BR1,BL43,0) -> 0 | BR43: =IF(BI43<BR1,BP43,0) -> 0 | BS43: =IFERROR(VLOOKUP(BI43,AP6:AQ138,2,FALSE),0) -> 0 | BT43: 0 | BU43: =IF(BI43<BR1,BS43,0) -> 0 | BW43: 0 | BX43: =DATE(R17,Q17,1) -> 1970-01-01 | BY43: =DATE(V17,U17,1) -> 1970-01-01 | BZ43: 1 | CA43: 0 | CB43: 0 | CC43: =DATE(R18,Q18,1) -> 1970-01-01 | CD43: =DATE(V18,U18,1) -> 1970-01-01 | CE43: 1 | CF43: 0 | CG43: 0 | CH43: =DATE(R19,Q19,1) -> 1970-01-01 | CI43: =DATE(V19,U19,1) -> 1970-01-01 | CJ43: 1 | CK43: 0 | CL43: 0
AF44: 0 | AM44: 0 | AP44: 1900-01-01 | AS44: 7 | AT44: 2015 | AU44: 2015-07-01 | AV44: =IF(K4="قانون79",AW44,AX44) -> 30 | AW44: 64 | AX44: 30 | AZ44: 64 | BA44: 160 | BB44: 30 | BC44: 200 | BD44: =W9 -> 2022-01-01 | BE44: =W14 -> 2022-03-01 | BF44: =VLOOKUP(BI44,AE5:AF140,2) ->  | BG44: =VLOOKUP(BI44,التسويات!$AU$5:$AX$59,2) -> 1.8 | BH44: =IF(K6="نعم",BF44,BG44) -> 1.8 | BI44: 1980-01-01 | BJ44: 0 | BK44: 1 | BL44: 0 | BM44: =VLOOKUP(BI44,التسويات!$AL$5:$AM$139,2) -> 0.005 | BN44: 0 | BO44: 0 | BP44: =IF(BI44>=T15,0,BM44*BO44) -> 0 | BQ44: =IF(BI44<BR1,BL44,0) -> 0 | BR44: =IF(BI44<BR1,BP44,0) -> 0 | BS44: =IFERROR(VLOOKUP(BI44,AP6:AQ138,2,FALSE),0) -> 0 | BT44: 0 | BU44: =IF(BI44<BR1,BS44,0) -> 0 | BW44: 0 | BX44: =DATE(R17,Q17,1) -> 1970-01-01 | BY44: =DATE(V17,U17,1) -> 1970-01-01 | BZ44: 1 | CA44: 0 | CB44: 0 | CC44: =DATE(R18,Q18,1) -> 1970-01-01 | CD44: =DATE(V18,U18,1) -> 1970-01-01 | CE44: 1 | CF44: 0 | CG44: 0 | CH44: =DATE(R19,Q19,1) -> 1970-01-01 | CI44: =DATE(V19,U19,1) -> 1970-01-01 | CJ44: 1 | CK44: 0 | CL44: 0
AF45: 0 | AM45: 0 | AP45: 1900-01-01 | AS45: 7 | AT45: 2016 | AU45: 2016-07-01 | AV45: =IF(K4="قانون79",AW45,AX45) -> 30 | AW45: 149 | AX45: 30 | AZ45: =(BA45*0.35)+(180*0.05) -> 149 | BA45: 400 | BB45: 30 | BC45: =IF(K4="قانون108 دون عمال",200,400) -> 200 | BD45: =W9 -> 2022-01-01 | BE45: =W14 -> 2022-03-01 | BF45: =VLOOKUP(BI45,AE5:AF140,2) ->  | BG45: =VLOOKUP(BI45,التسويات!$AU$5:$AX$59,2) -> 1.8 | BH45: =IF(K6="نعم",BF45,BG45) -> 1.8 | BI45: 1980-02-01 | BJ45: 0 | BK45: 1 | BL45: 0 | BM45: =VLOOKUP(BI45,التسويات!$AL$5:$AM$139,2) -> 0.005 | BN45: 0 | BO45: 0 | BP45: =IF(BI45>=T15,0,BM45*BO45) -> 0 | BQ45: =IF(BI45<BR1,BL45,0) -> 0 | BR45: =IF(BI45<BR1,BP45,0) -> 0 | BS45: =IFERROR(VLOOKUP(BI45,AP6:AQ138,2,FALSE),0) -> 0 | BT45: 0 | BU45: =IF(BI45<BR1,BS45,0) -> 0 | BW45: 0 | BX45: =DATE(R17,Q17,1) -> 1970-01-01 | BY45: =DATE(V17,U17,1) -> 1970-01-01 | BZ45: 1 | CA45: 0 | CB45: 0 | CC45: =DATE(R18,Q18,1) -> 1970-01-01 | CD45: =DATE(V18,U18,1) -> 1970-01-01 | CE45: 1 | CF45: 0 | CG45: 0 | CH45: =DATE(R19,Q19,1) -> 1970-01-01 | CI45: =DATE(V19,U19,1) -> 1970-01-01 | CJ45: 1 | CK45: 0 | CL45: 0
AF46: 0 | AM46: 0 | AP46: 1900-01-01 | AS46: 1 | AT46: 2017 | AU46: 2017-01-01 | AV46: =IF(K4="قانون79",AW46,AX46) -> 30 | AW46: 149.63 | AX46: 30 | AZ46: =(BA46*0.35)+(192.6*0.05) -> 149.63 | BA46: =BA45 -> 400 | BB46: 30 | BC46: =IF(K4="قانون108 دون عمال",200,400) -> 200 | BD46: =W9 -> 2022-01-01 | BE46: =W14 -> 2022-03-01 | BF46: =VLOOKUP(BI46,AE5:AF140,2) ->  | BG46: =VLOOKUP(BI46,التسويات!$AU$5:$AX$59,2) -> 1.8 | BH46: =IF(K6="نعم",BF46,BG46) -> 1.8 | BI46: 1980-03-01 | BJ46: 0 | BK46: 1 | BL46: 0 | BM46: =VLOOKUP(BI46,التسويات!$AL$5:$AM$139,2) -> 0.005 | BN46: 0 | BO46: 0 | BP46: =IF(BI46>=T15,0,BM46*BO46) -> 0 | BQ46: =IF(BI46<BR1,BL46,0) -> 0 | BR46: =IF(BI46<BR1,BP46,0) -> 0 | BS46: =IFERROR(VLOOKUP(BI46,AP6:AQ138,2,FALSE),0) -> 0 | BT46: 0 | BU46: =IF(BI46<BR1,BS46,0) -> 0 | BW46: 0 | BX46: =DATE(R17,Q17,1) -> 1970-01-01 | BY46: =DATE(V17,U17,1) -> 1970-01-01 | BZ46: 1 | CA46: 0 | CB46: 0 | CC46: =DATE(R18,Q18,1) -> 1970-01-01 | CD46: =DATE(V18,U18,1) -> 1970-01-01 | CE46: 1 | CF46: 0 | CG46: 0 | CH46: =DATE(R19,Q19,1) -> 1970-01-01 | CI46: =DATE(V19,U19,1) -> 1970-01-01 | CJ46: 1 | CK46: 0 | CL46: 0
AF47: 0 | AM47: 0 | AP47: 1900-01-01 | AS47: 7 | AT47: 2017 | AU47: 2017-07-01 | AV47: =IF(K4="قانون79",AW47,AX47) -> 75 | AW47: 185 | AX47: 75 | AZ47: =(BA47*0.35)+(200*0.05) -> 185 | BA47: 500 | BB47: 75 | BC47: 500 | BD47: =W9 -> 2022-01-01 | BE47: =W14 -> 2022-03-01 | BF47: =VLOOKUP(BI47,AE5:AF140,2) ->  | BG47: =VLOOKUP(BI47,التسويات!$AU$5:$AX$59,2) -> 1.8 | BH47: =IF(K6="نعم",BF47,BG47) -> 1.8 | BI47: 1980-04-01 | BJ47: 0 | BK47: 1 | BL47: 0 | BM47: =VLOOKUP(BI47,التسويات!$AL$5:$AM$139,2) -> 0.005 | BN47: 0 | BO47: 0 | BP47: =IF(BI47>=T15,0,BM47*BO47) -> 0 | BQ47: =IF(BI47<BR1,BL47,0) -> 0 | BR47: =IF(BI47<BR1,BP47,0) -> 0 | BS47: =IFERROR(VLOOKUP(BI47,AP6:AQ138,2,FALSE),0) -> 0 | BT47: 0 | BU47: =IF(BI47<BR1,BS47,0) -> 0 | BW47: 0 | BX47: =DATE(R17,Q17,1) -> 1970-01-01 | BY47: =DATE(V17,U17,1) -> 1970-01-01 | BZ47: 1 | CA47: 0 | CB47: 0 | CC47: =DATE(R18,Q18,1) -> 1970-01-01 | CD47: =DATE(V18,U18,1) -> 1970-01-01 | CE47: 1 | CF47: 0 | CG47: 0 | CH47: =DATE(R19,Q19,1) -> 1970-01-01 | CI47: =DATE(V19,U19,1) -> 1970-01-01 | CJ47: 1 | CK47: 0 | CL47: 0
AF48: 0 | AM48: 0 | AP48: 1900-01-01 | AS48: 1 | AT48: 2018 | AU48: 2018-01-01 | AV48: =IF(K4="قانون79",AW48,AX48) -> 75 | AW48: 185.7 | AX48: 75 | AZ48: =(BA48*0.35)+(214*0.05) -> 185.7 | BA48: =BA47 -> 500 | BB48: 75 | BC48: 500 | BD48: =W9 -> 2022-01-01 | BE48: =W14 -> 2022-03-01 | BF48: =VLOOKUP(BI48,AE5:AF140,2) ->  | BG48: =VLOOKUP(BI48,التسويات!$AU$5:$AX$59,2) -> 1.8 | BH48: =IF(K6="نعم",BF48,BG48) -> 1.8 | BI48: 1980-05-01 | BJ48: 0 | BK48: 1 | BL48: 0 | BM48: =VLOOKUP(BI48,التسويات!$AL$5:$AM$139,2) -> 0.005 | BN48: 0 | BO48: 0 | BP48: =IF(BI48>=T15,0,BM48*BO48) -> 0 | BQ48: =IF(BI48<BR1,BL48,0) -> 0 | BR48: =IF(BI48<BR1,BP48,0) -> 0 | BS48: =IFERROR(VLOOKUP(BI48,AP6:AQ138,2,FALSE),0) -> 0 | BT48: 0 | BU48: =IF(BI48<BR1,BS48,0) -> 0 | BW48: 0 | BX48: =DATE(R17,Q17,1) -> 1970-01-01 | BY48: =DATE(V17,U17,1) -> 1970-01-01 | BZ48: 1 | CA48: 0 | CB48: 0 | CC48: =DATE(R18,Q18,1) -> 1970-01-01 | CD48: =DATE(V18,U18,1) -> 1970-01-01 | CE48: 1 | CF48: 0 | CG48: 0 | CH48: =DATE(R19,Q19,1) -> 1970-01-01 | CI48: =DATE(V19,U19,1) -> 1970-01-01 | CJ48: 1 | CK48: 0 | CL48: 0
AF49: 0 | AM49: 0 | AP49: 1900-01-01 | AS49: 7 | AT49: 2018 | AU49: 2018-07-01 | AV49: =IF(K4="قانون79",AW49,AX49) -> 97.5 | AW49: 229.75 | AX49: 97.5 | AZ49: =(BA49*0.35)+(220*0.05) -> 229.75 | BA49: 625 | BB49: 97.5 | BC49: 650 | BD49: =W9 -> 2022-01-01 | BE49: =W14 -> 2022-03-01 | BF49: =VLOOKUP(BI49,AE5:AF140,2) ->  | BG49: =VLOOKUP(BI49,التسويات!$AU$5:$AX$59,2) -> 1.8 | BH49: =IF(K6="نعم",BF49,BG49) -> 1.8 | BI49: 1980-06-01 | BJ49: 0 | BK49: 1 | BL49: 0 | BM49: =VLOOKUP(BI49,التسويات!$AL$5:$AM$139,2) -> 0.005 | BN49: 0 | BO49: 0 | BP49: =IF(BI49>=T15,0,BM49*BO49) -> 0 | BQ49: =IF(BI49<BR1,BL49,0) -> 0 | BR49: =IF(BI49<BR1,BP49,0) -> 0 | BS49: =IFERROR(VLOOKUP(BI49,AP6:AQ138,2,FALSE),0) -> 0 | BT49: 0 | BU49: =IF(BI49<BR1,BS49,0) -> 0 | BW49: 0 | BX49: =DATE(R17,Q17,1) -> 1970-01-01 | BY49: =DATE(V17,U17,1) -> 1970-01-01 | BZ49: 1 | CA49: 0 | CB49: 0 | CC49: =DATE(R18,Q18,1) -> 1970-01-01 | CD49: =DATE(V18,U18,1) -> 1970-01-01 | CE49: 1 | CF49: 0 | CG49: 0 | CH49: =DATE(R19,Q19,1) -> 1970-01-01 | CI49: =DATE(V19,U19,1) -> 1970-01-01 | CJ49: 1 | CK49: 0 | CL49: 0
AF50: 0 | AM50: 0 | AP50: 1900-01-01 | AS50: 1 | AT50: 2019 | AU50: 2019-01-01 | AV50: =IF(K4="قانون79",AW50,AX50) -> 97.5 | AW50: 230.52 | AX50: 97.5 | AZ50: =(BA50*0.35)+(235.4*0.05) -> 230.52 | BA50: =BA49 -> 625 | BB50: 97.5 | BC50: 650 | BD50: =W9 -> 2022-01-01 | BE50: =W14 -> 2022-03-01 | BF50: =VLOOKUP(BI50,AE5:AF140,2) ->  | BG50: =VLOOKUP(BI50,التسويات!$AU$5:$AX$59,2) -> 1.8 | BH50: =IF(K6="نعم",BF50,BG50) -> 1.8 | BI50: 1980-07-01 | BJ50: 0 | BK50: 1 | BL50: 0 | BM50: =VLOOKUP(BI50,التسويات!$AL$5:$AM$139,2) -> 0.005 | BN50: 0 | BO50: 0 | BP50: =IF(BI50>=T15,0,BM50*BO50) -> 0 | BQ50: =IF(BI50<BR1,BL50,0) -> 0 | BR50: =IF(BI50<BR1,BP50,0) -> 0 | BS50: =IFERROR(VLOOKUP(BI50,AP6:AQ138,2,FALSE),0) -> 0 | BT50: 0 | BU50: =IF(BI50<BR1,BS50,0) -> 0 | BW50: 0 | BX50: =DATE(R17,Q17,1) -> 1970-01-01 | BY50: =DATE(V17,U17,1) -> 1970-01-01 | BZ50: 1 | CA50: 0 | CB50: 0 | CC50: =DATE(R18,Q18,1) -> 1970-01-01 | CD50: =DATE(V18,U18,1) -> 1970-01-01 | CE50: 1 | CF50: 0 | CG50: 0 | CH50: =DATE(R19,Q19,1) -> 1970-01-01 | CI50: =DATE(V19,U19,1) -> 1970-01-01 | CJ50: 1 | CK50: 0 | CL50: 0
AF51: 0 | AM51: 0 | AP51: 1900-01-01 | AS51: 7 | AT51: 2019 | AU51: 2019-07-01 | AV51: =IF(K4="قانون79",AW51,AX51) -> 120 | AW51: 285.9375 | AX51: 120 | AZ51: =(BA51*0.35)+(250*0.05) -> 285.9375 | BA51: 781.25 | BB51: 120 | BC51: 800 | BD51: =W9 -> 2022-01-01 | BE51: =W14 -> 2022-03-01 | BF51: =VLOOKUP(BI51,AE5:AF140,2) ->  | BG51: =VLOOKUP(BI51,التسويات!$AU$5:$AX$59,2) -> 1.8 | BH51: =IF(K6="نعم",BF51,BG51) -> 1.8 | BI51: 1980-08-01 | BJ51: 0 | BK51: 1 | BL51: 0 | BM51: =VLOOKUP(BI51,التسويات!$AL$5:$AM$139,2) -> 0.005 | BN51: 0 | BO51: 0 | BP51: =IF(BI51>=T15,0,BM51*BO51) -> 0 | BQ51: =IF(BI51<BR1,BL51,0) -> 0 | BR51: =IF(BI51<BR1,BP51,0) -> 0 | BS51: =IFERROR(VLOOKUP(BI51,AP6:AQ138,2,FALSE),0) -> 0 | BT51: 0 | BU51: =IF(BI51<BR1,BS51,0) -> 0 | BW51: 0 | BX51: =DATE(R17,Q17,1) -> 1970-01-01 | BY51: =DATE(V17,U17,1) -> 1970-01-01 | BZ51: 1 | CA51: 0 | CB51: 0 | CC51: =DATE(R18,Q18,1) -> 1970-01-01 | CD51: =DATE(V18,U18,1) -> 1970-01-01 | CE51: 1 | CF51: 0 | CG51: 0 | CH51: =DATE(R19,Q19,1) -> 1970-01-01 | CI51: =DATE(V19,U19,1) -> 1970-01-01 | CJ51: 1 | CK51: 0 | CL51: 0
AF52: 0 | AM52: 0 | AP52: 1900-01-01 | AS52: 1 | AT52: 2020 | AU52: 2020-01-01 | AV52: =IF(K4="قانون79",AW52,AX52) -> 210 | AW52: 297.5 | AX52: 210 | AZ52: =BA52*29.75% -> 297.5 | BA52: 1000 | BB52: =BC52*21% -> 210 | BC52: 1000 | BD52: =W9 -> 2022-01-01 | BE52: =W14 -> 2022-03-01 | BF52: =VLOOKUP(BI52,AE5:AF140,2) ->  | BG52: =VLOOKUP(BI52,التسويات!$AU$5:$AX$59,2) -> 1.8 | BH52: =IF(K6="نعم",BF52,BG52) -> 1.8 | BI52: 1980-09-01 | BJ52: 0 | BK52: 1 | BL52: 0 | BM52: =VLOOKUP(BI52,التسويات!$AL$5:$AM$139,2) -> 0.005 | BN52: 0 | BO52: 0 | BP52: =IF(BI52>=T15,0,BM52*BO52) -> 0 | BQ52: =IF(BI52<BR1,BL52,0) -> 0 | BR52: =IF(BI52<BR1,BP52,0) -> 0 | BS52: =IFERROR(VLOOKUP(BI52,AP6:AQ138,2,FALSE),0) -> 0 | BT52: 0 | BU52: =IF(BI52<BR1,BS52,0) -> 0 | BW52: 0 | BX52: =DATE(R17,Q17,1) -> 1970-01-01 | BY52: =DATE(V17,U17,1) -> 1970-01-01 | BZ52: 1 | CA52: 0 | CB52: 0 | CC52: =DATE(R18,Q18,1) -> 1970-01-01 | CD52: =DATE(V18,U18,1) -> 1970-01-01 | CE52: 1 | CF52: 0 | CG52: 0 | CH52: =DATE(R19,Q19,1) -> 1970-01-01 | CI52: =DATE(V19,U19,1) -> 1970-01-01 | CJ52: 1 | CK52: 0 | CL52: 0
AF53: 0 | AM53: 0 | AP53: 1900-01-01 | AS53: 1 | AT53: 2021 | AU53: 2021-01-01 | AV53: =IF(K4="قانون79",AW53,AX53) -> 252 | AW53: 357 | AX53: 252 | AZ53: 357 | BA53: 1200 | BB53: 252 | BC53: 1200 | BD53: =W9 -> 2022-01-01 | BE53: =W14 -> 2022-03-01 | BF53: =VLOOKUP(BI53,AE5:AF140,2) ->  | BG53: =VLOOKUP(BI53,التسويات!$AU$5:$AX$59,2) -> 1.8 | BH53: =IF(K6="نعم",BF53,BG53) -> 1.8 | BI53: 1980-10-01 | BJ53: 0 | BK53: 1 | BL53: 0 | BM53: =VLOOKUP(BI53,التسويات!$AL$5:$AM$139,2) -> 0.005 | BN53: 0 | BO53: 0 | BP53: =IF(BI53>=T15,0,BM53*BO53) -> 0 | BQ53: =IF(BI53<BR1,BL53,0) -> 0 | BR53: =IF(BI53<BR1,BP53,0) -> 0 | BS53: =IFERROR(VLOOKUP(BI53,AP6:AQ138,2,FALSE),0) -> 0 | BT53: 0 | BU53: =IF(BI53<BR1,BS53,0) -> 0 | BW53: 0 | BX53: =DATE(R17,Q17,1) -> 1970-01-01 | BY53: =DATE(V17,U17,1) -> 1970-01-01 | BZ53: 1 | CA53: 0 | CB53: 0 | CC53: =DATE(R18,Q18,1) -> 1970-01-01 | CD53: =DATE(V18,U18,1) -> 1970-01-01 | CE53: 1 | CF53: 0 | CG53: 0 | CH53: =DATE(R19,Q19,1) -> 1970-01-01 | CI53: =DATE(V19,U19,1) -> 1970-01-01 | CJ53: 1 | CK53: 0 | CL53: 0
AF54: 0 | AM54: 0 | AP54: 1900-01-01 | AS54: 1 | AT54: 2022 | AU54: 2022-01-01 | AV54: =IF(K4="قانون79",AW54,AX54) -> 294 | AW54: 416.5 | AX54: 294 | AZ54: 416.5 | BA54: 1400 | BB54: 294 | BC54: 1400 | BD54: =W9 -> 2022-01-01 | BE54: =W14 -> 2022-03-01 | BF54: =VLOOKUP(BI54,AE5:AF140,2) ->  | BG54: =VLOOKUP(BI54,التسويات!$AU$5:$AX$59,2) -> 1.8 | BH54: =IF(K6="نعم",BF54,BG54) -> 1.8 | BI54: 1980-11-01 | BJ54: 0 | BK54: 1 | BL54: 0 | BM54: =VLOOKUP(BI54,التسويات!$AL$5:$AM$139,2) -> 0.005 | BN54: 0 | BO54: 0 | BP54: =IF(BI54>=T15,0,BM54*BO54) -> 0 | BQ54: =IF(BI54<BR1,BL54,0) -> 0 | BR54: =IF(BI54<BR1,BP54,0) -> 0 | BS54: =IFERROR(VLOOKUP(BI54,AP6:AQ138,2,FALSE),0) -> 0 | BT54: 0 | BU54: =IF(BI54<BR1,BS54,0) -> 0 | BW54: 0 | BX54: =DATE(R17,Q17,1) -> 1970-01-01 | BY54: =DATE(V17,U17,1) -> 1970-01-01 | BZ54: 1 | CA54: 0 | CB54: 0 | CC54: =DATE(R18,Q18,1) -> 1970-01-01 | CD54: =DATE(V18,U18,1) -> 1970-01-01 | CE54: 1 | CF54: 0 | CG54: 0 | CH54: =DATE(R19,Q19,1) -> 1970-01-01 | CI54: =DATE(V19,U19,1) -> 1970-01-01 | CJ54: 1 | CK54: 0 | CL54: 0
AF55: 0 | AM55: 0 | AP55: 1900-01-01 | AS55: 1 | AT55: 2023 | AU55: 2023-01-01 | AV55: =IF(K4="قانون79",AW55,AX55) -> 357 | AW55: 505.75 | AX55: 357 | AZ55: 505.75 | BA55: 1700 | BB55: 357 | BC55: 1700 | BD55: =W9 -> 2022-01-01 | BE55: =W14 -> 2022-03-01 | BF55: =VLOOKUP(BI55,AE5:AF140,2) ->  | BG55: =VLOOKUP(BI55,التسويات!$AU$5:$AX$59,2) -> 1.8 | BH55: =IF(K6="نعم",BF55,BG55) -> 1.8 | BI55: 1980-12-01 | BJ55: 0 | BK55: 1 | BL55: 0 | BM55: =VLOOKUP(BI55,التسويات!$AL$5:$AM$139,2) -> 0.005 | BN55: 0 | BO55: 0 | BP55: =IF(BI55>=T15,0,BM55*BO55) -> 0 | BQ55: =IF(BI55<BR1,BL55,0) -> 0 | BR55: =IF(BI55<BR1,BP55,0) -> 0 | BS55: =IFERROR(VLOOKUP(BI55,AP6:AQ138,2,FALSE),0) -> 0 | BT55: 0 | BU55: =IF(BI55<BR1,BS55,0) -> 0 | BW55: 0 | BX55: =DATE(R17,Q17,1) -> 1970-01-01 | BY55: =DATE(V17,U17,1) -> 1970-01-01 | BZ55: 1 | CA55: 0 | CB55: 0 | CC55: =DATE(R18,Q18,1) -> 1970-01-01 | CD55: =DATE(V18,U18,1) -> 1970-01-01 | CE55: 1 | CF55: 0 | CG55: 0 | CH55: =DATE(R19,Q19,1) -> 1970-01-01 | CI55: =DATE(V19,U19,1) -> 1970-01-01 | CJ55: 1 | CK55: 0 | CL55: 0
AF56: 0 | AM56: 0 | AP56: 1900-01-01 | AS56: 1 | AT56: 2024 | AU56: 2024-01-01 | AV56: =IF(K4="قانون79",AW56,AX56) -> 420 | AW56: 595 | AX56: 420 | AZ56: 595 | BA56: 2000 | BB56: 420 | BC56: 2000 | BD56: =W9 -> 2022-01-01 | BE56: =W14 -> 2022-03-01 | BF56: =VLOOKUP(BI56,AE5:AF140,2) ->  | BG56: =VLOOKUP(BI56,التسويات!$AU$5:$AX$59,2) -> 1.8 | BH56: =IF(K6="نعم",BF56,BG56) -> 1.8 | BI56: 1981-01-01 | BJ56: 0 | BK56: 1 | BL56: 0 | BM56: =VLOOKUP(BI56,التسويات!$AL$5:$AM$139,2) -> 0.005 | BN56: 0 | BO56: 0 | BP56: =IF(BI56>=T15,0,BM56*BO56) -> 0 | BQ56: =IF(BI56<BR1,BL56,0) -> 0 | BR56: =IF(BI56<BR1,BP56,0) -> 0 | BS56: =IFERROR(VLOOKUP(BI56,AP6:AQ138,2,FALSE),0) -> 0 | BT56: 0 | BU56: =IF(BI56<BR1,BS56,0) -> 0 | BW56: 0 | BX56: =DATE(R17,Q17,1) -> 1970-01-01 | BY56: =DATE(V17,U17,1) -> 1970-01-01 | BZ56: 1 | CA56: 0 | CB56: 0 | CC56: =DATE(R18,Q18,1) -> 1970-01-01 | CD56: =DATE(V18,U18,1) -> 1970-01-01 | CE56: 1 | CF56: 0 | CG56: 0 | CH56: =DATE(R19,Q19,1) -> 1970-01-01 | CI56: =DATE(V19,U19,1) -> 1970-01-01 | CJ56: 1 | CK56: 0 | CL56: 0
AF57: 0 | AM57: 0 | AP57: 1900-01-01 | AS57: 1 | AT57: 2025 | AU57: 2025-01-01 | AV57: =IF(K4="قانون79",AW57,AX57) -> 483 | AW57: 684.25 | AX57: 483 | AZ57: 684.25 | BA57: 2300 | BB57: 483 | BC57: 2300 | BD57: =W9 -> 2022-01-01 | BE57: =W14 -> 2022-03-01 | BF57: =VLOOKUP(BI57,AE5:AF140,2) ->  | BG57: =VLOOKUP(BI57,التسويات!$AU$5:$AX$59,2) -> 1.8 | BH57: =IF(K6="نعم",BF57,BG57) -> 1.8 | BI57: 1981-02-01 | BJ57: 0 | BK57: 1 | BL57: 0 | BM57: =VLOOKUP(BI57,التسويات!$AL$5:$AM$139,2) -> 0.005 | BN57: 0 | BO57: 0 | BP57: =IF(BI57>=T15,0,BM57*BO57) -> 0 | BQ57: =IF(BI57<BR1,BL57,0) -> 0 | BR57: =IF(BI57<BR1,BP57,0) -> 0 | BS57: =IFERROR(VLOOKUP(BI57,AP6:AQ138,2,FALSE),0) -> 0 | BT57: 0 | BU57: =IF(BI57<BR1,BS57,0) -> 0 | BW57: 0 | BX57: =DATE(R17,Q17,1) -> 1970-01-01 | BY57: =DATE(V17,U17,1) -> 1970-01-01 | BZ57: 1 | CA57: 0 | CB57: 0 | CC57: =DATE(R18,Q18,1) -> 1970-01-01 | CD57: =DATE(V18,U18,1) -> 1970-01-01 | CE57: 1 | CF57: 0 | CG57: 0 | CH57: =DATE(R19,Q19,1) -> 1970-01-01 | CI57: =DATE(V19,U19,1) -> 1970-01-01 | CJ57: 1 | CK57: 0 | CL57: 0
AF58: 0 | AM58: 0 | AP58: 1900-01-01 | AS58: 1 | AT58: 2026 | AU58: 2026-01-01 | AV58: =IF(K4="قانون79",AW58,AX58) -> 567 | AW58: 803.25 | AX58: 567 | AZ58: 803.25 | BA58: 2700 | BB58: 567 | BC58: 2700 | BD58: =W9 -> 2022-01-01 | BE58: =W14 -> 2022-03-01 | BF58: =VLOOKUP(BI58,AE5:AF140,2) ->  | BG58: =VLOOKUP(BI58,التسويات!$AU$5:$AX$59,2) -> 1.8 | BH58: =IF(K6="نعم",BF58,BG58) -> 1.8 | BI58: 1981-03-01 | BJ58: 0 | BK58: 1 | BL58: 0 | BM58: =VLOOKUP(BI58,التسويات!$AL$5:$AM$139,2) -> 0.005 | BN58: 0 | BO58: 0 | BP58: =IF(BI58>=T15,0,BM58*BO58) -> 0 | BQ58: =IF(BI58<BR1,BL58,0) -> 0 | BR58: =IF(BI58<BR1,BP58,0) -> 0 | BS58: =IFERROR(VLOOKUP(BI58,AP6:AQ138,2,FALSE),0) -> 0 | BT58: 0 | BU58: =IF(BI58<BR1,BS58,0) -> 0 | BW58: 0 | BX58: =DATE(R17,Q17,1) -> 1970-01-01 | BY58: =DATE(V17,U17,1) -> 1970-01-01 | BZ58: 1 | CA58: 0 | CB58: 0 | CC58: =DATE(R18,Q18,1) -> 1970-01-01 | CD58: =DATE(V18,U18,1) -> 1970-01-01 | CE58: 1 | CF58: 0 | CG58: 0 | CH58: =DATE(R19,Q19,1) -> 1970-01-01 | CI58: =DATE(V19,U19,1) -> 1970-01-01 | CJ58: 1 | CK58: 0 | CL58: 0
AF59: 0 | AM59: 0 | AP59: 1900-01-01 | AS59: 1 | AT59: 2027 | AU59: 2027-01-01 | AV59: =IF(K4="قانون79",AW59,AX59) -> 672 | AW59: 952 | AX59: 672 | AZ59: 952 | BA59: 3200 | BB59: 672 | BC59: 3200 | BD59: =W9 -> 2022-01-01 | BE59: =W14 -> 2022-03-01 | BF59: =VLOOKUP(BI59,AE5:AF140,2) ->  | BG59: =VLOOKUP(BI59,التسويات!$AU$5:$AX$59,2) -> 1.8 | BH59: =IF(K6="نعم",BF59,BG59) -> 1.8 | BI59: 1981-04-01 | BJ59: 0 | BK59: 1 | BL59: 0 | BM59: =VLOOKUP(BI59,التسويات!$AL$5:$AM$139,2) -> 0.005 | BN59: 0 | BO59: 0 | BP59: =IF(BI59>=T15,0,BM59*BO59) -> 0 | BQ59: =IF(BI59<BR1,BL59,0) -> 0 | BR59: =IF(BI59<BR1,BP59,0) -> 0 | BS59: =IFERROR(VLOOKUP(BI59,AP6:AQ138,2,FALSE),0) -> 0 | BT59: 0 | BU59: =IF(BI59<BR1,BS59,0) -> 0 | BW59: 0 | BX59: =DATE(R17,Q17,1) -> 1970-01-01 | BY59: =DATE(V17,U17,1) -> 1970-01-01 | BZ59: 1 | CA59: 0 | CB59: 0 | CC59: =DATE(R18,Q18,1) -> 1970-01-01 | CD59: =DATE(V18,U18,1) -> 1970-01-01 | CE59: 1 | CF59: 0 | CG59: 0 | CH59: =DATE(R19,Q19,1) -> 1970-01-01 | CI59: =DATE(V19,U19,1) -> 1970-01-01 | CJ59: 1 | CK59: 0 | CL59: 0
AF60: 0 | AM60: 0 | AP60: 1900-01-01 | BD60: =W9 -> 2022-01-01 | BE60: =W14 -> 2022-03-01 | BF60: =VLOOKUP(BI60,AE5:AF140,2) ->  | BG60: =VLOOKUP(BI60,التسويات!$AU$5:$AX$59,2) -> 1.8 | BH60: =IF(K6="نعم",BF60,BG60) -> 1.8 | BI60: 1981-05-01 | BJ60: 0 | BK60: 1 | BL60: 0 | BM60: =VLOOKUP(BI60,التسويات!$AL$5:$AM$139,2) -> 0.005 | BN60: 0 | BO60: 0 | BP60: =IF(BI60>=T15,0,BM60*BO60) -> 0 | BQ60: =IF(BI60<BR1,BL60,0) -> 0 | BR60: =IF(BI60<BR1,BP60,0) -> 0 | BS60: =IFERROR(VLOOKUP(BI60,AP6:AQ138,2,FALSE),0) -> 0 | BT60: 0 | BU60: =IF(BI60<BR1,BS60,0) -> 0 | BW60: 0 | BX60: =DATE(R17,Q17,1) -> 1970-01-01 | BY60: =DATE(V17,U17,1) -> 1970-01-01 | BZ60: 1 | CA60: 0 | CB60: 0 | CC60: =DATE(R18,Q18,1) -> 1970-01-01 | CD60: =DATE(V18,U18,1) -> 1970-01-01 | CE60: 1 | CF60: 0 | CG60: 0 | CH60: =DATE(R19,Q19,1) -> 1970-01-01 | CI60: =DATE(V19,U19,1) -> 1970-01-01 | CJ60: 1 | CK60: 0 | CL60: 0
AF61: 0 | AM61: 0 | AP61: 1900-01-01 | BD61: =W9 -> 2022-01-01 | BE61: =W14 -> 2022-03-01 | BF61: =VLOOKUP(BI61,AE5:AF140,2) ->  | BG61: =VLOOKUP(BI61,التسويات!$AU$5:$AX$59,2) -> 1.8 | BH61: =IF(K6="نعم",BF61,BG61) -> 1.8 | BI61: 1981-06-01 | BJ61: 0 | BK61: 1 | BL61: 0 | BM61: =VLOOKUP(BI61,التسويات!$AL$5:$AM$139,2) -> 0.005 | BN61: 0 | BO61: 0 | BP61: =IF(BI61>=T15,0,BM61*BO61) -> 0 | BQ61: =IF(BI61<BR1,BL61,0) -> 0 | BR61: =IF(BI61<BR1,BP61,0) -> 0 | BS61: =IFERROR(VLOOKUP(BI61,AP6:AQ138,2,FALSE),0) -> 0 | BT61: 0 | BU61: =IF(BI61<BR1,BS61,0) -> 0 | BW61: 0 | BX61: =DATE(R17,Q17,1) -> 1970-01-01 | BY61: =DATE(V17,U17,1) -> 1970-01-01 | BZ61: 1 | CA61: 0 | CB61: 0 | CC61: =DATE(R18,Q18,1) -> 1970-01-01 | CD61: =DATE(V18,U18,1) -> 1970-01-01 | CE61: 1 | CF61: 0 | CG61: 0 | CH61: =DATE(R19,Q19,1) -> 1970-01-01 | CI61: =DATE(V19,U19,1) -> 1970-01-01 | CJ61: 1 | CK61: 0 | CL61: 0
AF62: 0 | AM62: 0 | AP62: 1900-01-01 | BD62: =W9 -> 2022-01-01 | BE62: =W14 -> 2022-03-01 | BF62: =VLOOKUP(BI62,AE5:AF140,2) ->  | BG62: =VLOOKUP(BI62,التسويات!$AU$5:$AX$59,2) -> 3.75 | BH62: =IF(K6="نعم",BF62,BG62) -> 3.75 | BI62: 1981-07-01 | BJ62: 0 | BK62: 1 | BL62: 0 | BM62: =VLOOKUP(BI62,التسويات!$AL$5:$AM$139,2) -> 0.005 | BN62: 0 | BO62: 0 | BP62: =IF(BI62>=T15,0,BM62*BO62) -> 0 | BQ62: =IF(BI62<BR1,BL62,0) -> 0 | BR62: =IF(BI62<BR1,BP62,0) -> 0 | BS62: =IFERROR(VLOOKUP(BI62,AP6:AQ138,2,FALSE),0) -> 0 | BT62: 0 | BU62: =IF(BI62<BR1,BS62,0) -> 0 | BW62: 0 | BX62: =DATE(R17,Q17,1) -> 1970-01-01 | BY62: =DATE(V17,U17,1) -> 1970-01-01 | BZ62: 1 | CA62: 0 | CB62: 0 | CC62: =DATE(R18,Q18,1) -> 1970-01-01 | CD62: =DATE(V18,U18,1) -> 1970-01-01 | CE62: 1 | CF62: 0 | CG62: 0 | CH62: =DATE(R19,Q19,1) -> 1970-01-01 | CI62: =DATE(V19,U19,1) -> 1970-01-01 | CJ62: 1 | CK62: 0 | CL62: 0
AF63: 0 | AM63: 0 | AP63: 1900-01-01 | BD63: =W9 -> 2022-01-01 | BE63: =W14 -> 2022-03-01 | BF63: =VLOOKUP(BI63,AE5:AF140,2) ->  | BG63: =VLOOKUP(BI63,التسويات!$AU$5:$AX$59,2) -> 3.75 | BH63: =IF(K6="نعم",BF63,BG63) -> 3.75 | BI63: 1981-08-01 | BJ63: 0 | BK63: 1 | BL63: 0 | BM63: =VLOOKUP(BI63,التسويات!$AL$5:$AM$139,2) -> 0.005 | BN63: 0 | BO63: 0 | BP63: =IF(BI63>=T15,0,BM63*BO63) -> 0 | BQ63: =IF(BI63<BR1,BL63,0) -> 0 | BR63: =IF(BI63<BR1,BP63,0) -> 0 | BS63: =IFERROR(VLOOKUP(BI63,AP6:AQ138,2,FALSE),0) -> 0 | BT63: 0 | BU63: =IF(BI63<BR1,BS63,0) -> 0 | BW63: 0 | BX63: =DATE(R17,Q17,1) -> 1970-01-01 | BY63: =DATE(V17,U17,1) -> 1970-01-01 | BZ63: 1 | CA63: 0 | CB63: 0 | CC63: =DATE(R18,Q18,1) -> 1970-01-01 | CD63: =DATE(V18,U18,1) -> 1970-01-01 | CE63: 1 | CF63: 0 | CG63: 0 | CH63: =DATE(R19,Q19,1) -> 1970-01-01 | CI63: =DATE(V19,U19,1) -> 1970-01-01 | CJ63: 1 | CK63: 0 | CL63: 0
AF64: 0 | AM64: 0 | AP64: 1900-01-01 | BD64: =W9 -> 2022-01-01 | BE64: =W14 -> 2022-03-01 | BF64: =VLOOKUP(BI64,AE5:AF140,2) ->  | BG64: =VLOOKUP(BI64,التسويات!$AU$5:$AX$59,2) -> 3.75 | BH64: =IF(K6="نعم",BF64,BG64) -> 3.75 | BI64: 1981-09-01 | BJ64: 0 | BK64: 1 | BL64: 0 | BM64: =VLOOKUP(BI64,التسويات!$AL$5:$AM$139,2) -> 0.005 | BN64: 0 | BO64: 0 | BP64: =IF(BI64>=T15,0,BM64*BO64) -> 0 | BQ64: =IF(BI64<BR1,BL64,0) -> 0 | BR64: =IF(BI64<BR1,BP64,0) -> 0 | BS64: =IFERROR(VLOOKUP(BI64,AP6:AQ138,2,FALSE),0) -> 0 | BT64: 0 | BU64: =IF(BI64<BR1,BS64,0) -> 0 | BW64: 0 | BX64: =DATE(R17,Q17,1) -> 1970-01-01 | BY64: =DATE(V17,U17,1) -> 1970-01-01 | BZ64: 1 | CA64: 0 | CB64: 0 | CC64: =DATE(R18,Q18,1) -> 1970-01-01 | CD64: =DATE(V18,U18,1) -> 1970-01-01 | CE64: 1 | CF64: 0 | CG64: 0 | CH64: =DATE(R19,Q19,1) -> 1970-01-01 | CI64: =DATE(V19,U19,1) -> 1970-01-01 | CJ64: 1 | CK64: 0 | CL64: 0
AF65: 0 | AM65: 0 | AP65: 1900-01-01 | BD65: =W9 -> 2022-01-01 | BE65: =W14 -> 2022-03-01 | BF65: =VLOOKUP(BI65,AE5:AF140,2) ->  | BG65: =VLOOKUP(BI65,التسويات!$AU$5:$AX$59,2) -> 3.75 | BH65: =IF(K6="نعم",BF65,BG65) -> 3.75 | BI65: 1981-10-01 | BJ65: 0 | BK65: 1 | BL65: 0 | BM65: =VLOOKUP(BI65,التسويات!$AL$5:$AM$139,2) -> 0.005 | BN65: 0 | BO65: 0 | BP65: =IF(BI65>=T15,0,BM65*BO65) -> 0 | BQ65: =IF(BI65<BR1,BL65,0) -> 0 | BR65: =IF(BI65<BR1,BP65,0) -> 0 | BS65: =IFERROR(VLOOKUP(BI65,AP6:AQ138,2,FALSE),0) -> 0 | BT65: 0 | BU65: =IF(BI65<BR1,BS65,0) -> 0 | BW65: 0 | BX65: =DATE(R17,Q17,1) -> 1970-01-01 | BY65: =DATE(V17,U17,1) -> 1970-01-01 | BZ65: 1 | CA65: 0 | CB65: 0 | CC65: =DATE(R18,Q18,1) -> 1970-01-01 | CD65: =DATE(V18,U18,1) -> 1970-01-01 | CE65: 1 | CF65: 0 | CG65: 0 | CH65: =DATE(R19,Q19,1) -> 1970-01-01 | CI65: =DATE(V19,U19,1) -> 1970-01-01 | CJ65: 1 | CK65: 0 | CL65: 0
AF66: 0 | AM66: 0 | AP66: 1900-01-01 | BD66: =W9 -> 2022-01-01 | BE66: =W14 -> 2022-03-01 | BF66: =VLOOKUP(BI66,AE5:AF140,2) ->  | BG66: =VLOOKUP(BI66,التسويات!$AU$5:$AX$59,2) -> 3.75 | BH66: =IF(K6="نعم",BF66,BG66) -> 3.75 | BI66: 1981-11-01 | BJ66: 0 | BK66: 1 | BL66: 0 | BM66: =VLOOKUP(BI66,التسويات!$AL$5:$AM$139,2) -> 0.005 | BN66: 0 | BO66: 0 | BP66: =IF(BI66>=T15,0,BM66*BO66) -> 0 | BQ66: =IF(BI66<BR1,BL66,0) -> 0 | BR66: =IF(BI66<BR1,BP66,0) -> 0 | BS66: =IFERROR(VLOOKUP(BI66,AP6:AQ138,2,FALSE),0) -> 0 | BT66: 0 | BU66: =IF(BI66<BR1,BS66,0) -> 0 | BW66: 0 | BX66: =DATE(R17,Q17,1) -> 1970-01-01 | BY66: =DATE(V17,U17,1) -> 1970-01-01 | BZ66: 1 | CA66: 0 | CB66: 0 | CC66: =DATE(R18,Q18,1) -> 1970-01-01 | CD66: =DATE(V18,U18,1) -> 1970-01-01 | CE66: 1 | CF66: 0 | CG66: 0 | CH66: =DATE(R19,Q19,1) -> 1970-01-01 | CI66: =DATE(V19,U19,1) -> 1970-01-01 | CJ66: 1 | CK66: 0 | CL66: 0
AF67: 0 | AM67: 0 | AP67: 1900-01-01 | BD67: =W9 -> 2022-01-01 | BE67: =W14 -> 2022-03-01 | BF67: =VLOOKUP(BI67,AE5:AF140,2) ->  | BG67: =VLOOKUP(BI67,التسويات!$AU$5:$AX$59,2) -> 3.75 | BH67: =IF(K6="نعم",BF67,BG67) -> 3.75 | BI67: 1981-12-01 | BJ67: 0 | BK67: 1 | BL67: 0 | BM67: =VLOOKUP(BI67,التسويات!$AL$5:$AM$139,2) -> 0.005 | BN67: =BN66+BL67 -> 0 | BO67: 0 | BP67: =IF(BI67>=T15,0,BM67*BO67) -> 0 | BQ67: =IF(BI67<BR1,BL67,0) -> 0 | BR67: =IF(BI67<BR1,BP67,0) -> 0 | BS67: =IFERROR(VLOOKUP(BI67,AP6:AQ138,2,FALSE),0) -> 0 | BT67: =BT66+BS67 -> 0 | BU67: =IF(BI67<BR1,BS67,0) -> 0 | BW67: 0 | BX67: =DATE(R17,Q17,1) -> 1970-01-01 | BY67: =DATE(V17,U17,1) -> 1970-01-01 | BZ67: 1 | CA67: 0 | CB67: 0 | CC67: =DATE(R18,Q18,1) -> 1970-01-01 | CD67: =DATE(V18,U18,1) -> 1970-01-01 | CE67: 1 | CF67: 0 | CG67: 0 | CH67: =DATE(R19,Q19,1) -> 1970-01-01 | CI67: =DATE(V19,U19,1) -> 1970-01-01 | CJ67: 1 | CK67: 0 | CL67: 0
AF68: 0 | AM68: 0 | AP68: 1900-01-01 | BD68: =W9 -> 2022-01-01 | BE68: =W14 -> 2022-03-01 | BF68: =VLOOKUP(BI68,AE5:AF140,2) ->  | BG68: =VLOOKUP(BI68,التسويات!$AU$5:$AX$59,2) -> 3.75 | BH68: =IF(K6="نعم",BF68,BG68) -> 3.75 | BI68: 1982-01-01 | BJ68: 0 | BK68: 1 | BL68: 0 | BM68: =VLOOKUP(BI68,التسويات!$AL$5:$AM$139,2) -> 0.005 | BN68: 0 | BO68: 0 | BP68: =IF(BI68>=T15,0,BM68*BO68) -> 0 | BQ68: =IF(BI68<BR1,BL68,0) -> 0 | BR68: =IF(BI68<BR1,BP68,0) -> 0 | BS68: =IFERROR(VLOOKUP(BI68,AP6:AQ138,2,FALSE),0) -> 0 | BT68: 0 | BU68: =IF(BI68<BR1,BS68,0) -> 0 | BW68: 0 | BX68: =DATE(R17,Q17,1) -> 1970-01-01 | BY68: =DATE(V17,U17,1) -> 1970-01-01 | BZ68: 1 | CA68: 0 | CB68: 0 | CC68: =DATE(R18,Q18,1) -> 1970-01-01 | CD68: =DATE(V18,U18,1) -> 1970-01-01 | CE68: 1 | CF68: 0 | CG68: 0 | CH68: =DATE(R19,Q19,1) -> 1970-01-01 | CI68: =DATE(V19,U19,1) -> 1970-01-01 | CJ68: 1 | CK68: 0 | CL68: 0
AF69: 0 | AM69: 0 | AP69: 1900-01-01 | BD69: =W9 -> 2022-01-01 | BE69: =W14 -> 2022-03-01 | BF69: =VLOOKUP(BI69,AE5:AF140,2) ->  | BG69: =VLOOKUP(BI69,التسويات!$AU$5:$AX$59,2) -> 3.75 | BH69: =IF(K6="نعم",BF69,BG69) -> 3.75 | BI69: 1982-02-01 | BJ69: 0 | BK69: 1 | BL69: 0 | BM69: =VLOOKUP(BI69,التسويات!$AL$5:$AM$139,2) -> 0.005 | BN69: 0 | BO69: 0 | BP69: =IF(BI69>=T15,0,BM69*BO69) -> 0 | BQ69: =IF(BI69<BR1,BL69,0) -> 0 | BR69: =IF(BI69<BR1,BP69,0) -> 0 | BS69: =IFERROR(VLOOKUP(BI69,AP6:AQ138,2,FALSE),0) -> 0 | BT69: 0 | BU69: =IF(BI69<BR1,BS69,0) -> 0 | BW69: 0 | BX69: =DATE(R17,Q17,1) -> 1970-01-01 | BY69: =DATE(V17,U17,1) -> 1970-01-01 | BZ69: 1 | CA69: 0 | CB69: 0 | CC69: =DATE(R18,Q18,1) -> 1970-01-01 | CD69: =DATE(V18,U18,1) -> 1970-01-01 | CE69: 1 | CF69: 0 | CG69: 0 | CH69: =DATE(R19,Q19,1) -> 1970-01-01 | CI69: =DATE(V19,U19,1) -> 1970-01-01 | CJ69: 1 | CK69: 0 | CL69: 0
AF70: 0 | AM70: 0 | AP70: 1900-01-01 | BD70: =W9 -> 2022-01-01 | BE70: =W14 -> 2022-03-01 | BF70: =VLOOKUP(BI70,AE5:AF140,2) ->  | BG70: =VLOOKUP(BI70,التسويات!$AU$5:$AX$59,2) -> 3.75 | BH70: =IF(K6="نعم",BF70,BG70) -> 3.75 | BI70: 1982-03-01 | BJ70: 0 | BK70: 1 | BL70: 0 | BM70: =VLOOKUP(BI70,التسويات!$AL$5:$AM$139,2) -> 0.005 | BN70: 0 | BO70: 0 | BP70: =IF(BI70>=T15,0,BM70*BO70) -> 0 | BQ70: =IF(BI70<BR1,BL70,0) -> 0 | BR70: =IF(BI70<BR1,BP70,0) -> 0 | BS70: =IFERROR(VLOOKUP(BI70,AP6:AQ138,2,FALSE),0) -> 0 | BT70: 0 | BU70: =IF(BI70<BR1,BS70,0) -> 0 | BW70: 0 | BX70: =DATE(R17,Q17,1) -> 1970-01-01 | BY70: =DATE(V17,U17,1) -> 1970-01-01 | BZ70: 1 | CA70: 0 | CB70: 0 | CC70: =DATE(R18,Q18,1) -> 1970-01-01 | CD70: =DATE(V18,U18,1) -> 1970-01-01 | CE70: 1 | CF70: 0 | CG70: 0 | CH70: =DATE(R19,Q19,1) -> 1970-01-01 | CI70: =DATE(V19,U19,1) -> 1970-01-01 | CJ70: 1 | CK70: 0 | CL70: 0
AF71: 0 | AM71: 0 | AP71: 1900-01-01 | BD71: =W9 -> 2022-01-01 | BE71: =W14 -> 2022-03-01 | BF71: =VLOOKUP(BI71,AE5:AF140,2) ->  | BG71: =VLOOKUP(BI71,التسويات!$AU$5:$AX$59,2) -> 3.75 | BH71: =IF(K6="نعم",BF71,BG71) -> 3.75 | BI71: 1982-04-01 | BJ71: 0 | BK71: 1 | BL71: 0 | BM71: =VLOOKUP(BI71,التسويات!$AL$5:$AM$139,2) -> 0.005 | BN71: 0 | BO71: 0 | BP71: =IF(BI71>=T15,0,BM71*BO71) -> 0 | BQ71: =IF(BI71<BR1,BL71,0) -> 0 | BR71: =IF(BI71<BR1,BP71,0) -> 0 | BS71: =IFERROR(VLOOKUP(BI71,AP6:AQ138,2,FALSE),0) -> 0 | BT71: 0 | BU71: =IF(BI71<BR1,BS71,0) -> 0 | BW71: 0 | BX71: =DATE(R17,Q17,1) -> 1970-01-01 | BY71: =DATE(V17,U17,1) -> 1970-01-01 | BZ71: 1 | CA71: 0 | CB71: 0 | CC71: =DATE(R18,Q18,1) -> 1970-01-01 | CD71: =DATE(V18,U18,1) -> 1970-01-01 | CE71: 1 | CF71: 0 | CG71: 0 | CH71: =DATE(R19,Q19,1) -> 1970-01-01 | CI71: =DATE(V19,U19,1) -> 1970-01-01 | CJ71: 1 | CK71: 0 | CL71: 0
AF72: 0 | AM72: 0 | AP72: 1900-01-01 | BD72: =W9 -> 2022-01-01 | BE72: =W14 -> 2022-03-01 | BF72: =VLOOKUP(BI72,AE5:AF140,2) ->  | BG72: =VLOOKUP(BI72,التسويات!$AU$5:$AX$59,2) -> 3.75 | BH72: =IF(K6="نعم",BF72,BG72) -> 3.75 | BI72: 1982-05-01 | BJ72: 0 | BK72: 1 | BL72: 0 | BM72: =VLOOKUP(BI72,التسويات!$AL$5:$AM$139,2) -> 0.005 | BN72: 0 | BO72: 0 | BP72: =IF(BI72>=T15,0,BM72*BO72) -> 0 | BQ72: =IF(BI72<BR1,BL72,0) -> 0 | BR72: =IF(BI72<BR1,BP72,0) -> 0 | BS72: =IFERROR(VLOOKUP(BI72,AP6:AQ138,2,FALSE),0) -> 0 | BT72: 0 | BU72: =IF(BI72<BR1,BS72,0) -> 0 | BW72: 0 | BX72: =DATE(R17,Q17,1) -> 1970-01-01 | BY72: =DATE(V17,U17,1) -> 1970-01-01 | BZ72: 1 | CA72: 0 | CB72: 0 | CC72: =DATE(R18,Q18,1) -> 1970-01-01 | CD72: =DATE(V18,U18,1) -> 1970-01-01 | CE72: 1 | CF72: 0 | CG72: 0 | CH72: =DATE(R19,Q19,1) -> 1970-01-01 | CI72: =DATE(V19,U19,1) -> 1970-01-01 | CJ72: 1 | CK72: 0 | CL72: 0
AF73: 0 | AM73: 0 | AP73: 1900-01-01 | BD73: =W9 -> 2022-01-01 | BE73: =W14 -> 2022-03-01 | BF73: =VLOOKUP(BI73,AE5:AF140,2) ->  | BG73: =VLOOKUP(BI73,التسويات!$AU$5:$AX$59,2) -> 3.75 | BH73: =IF(K6="نعم",BF73,BG73) -> 3.75 | BI73: 1982-06-01 | BJ73: 0 | BK73: 1 | BL73: 0 | BM73: =VLOOKUP(BI73,التسويات!$AL$5:$AM$139,2) -> 0.005 | BN73: 0 | BO73: 0 | BP73: =IF(BI73>=T15,0,BM73*BO73) -> 0 | BQ73: =IF(BI73<BR1,BL73,0) -> 0 | BR73: =IF(BI73<BR1,BP73,0) -> 0 | BS73: =IFERROR(VLOOKUP(BI73,AP6:AQ138,2,FALSE),0) -> 0 | BT73: 0 | BU73: =IF(BI73<BR1,BS73,0) -> 0 | BW73: 0 | BX73: =DATE(R17,Q17,1) -> 1970-01-01 | BY73: =DATE(V17,U17,1) -> 1970-01-01 | BZ73: 1 | CA73: 0 | CB73: 0 | CC73: =DATE(R18,Q18,1) -> 1970-01-01 | CD73: =DATE(V18,U18,1) -> 1970-01-01 | CE73: 1 | CF73: 0 | CG73: 0 | CH73: =DATE(R19,Q19,1) -> 1970-01-01 | CI73: =DATE(V19,U19,1) -> 1970-01-01 | CJ73: 1 | CK73: 0 | CL73: 0
AF74: 0 | AM74: 0 | AP74: 1900-01-01 | BD74: =W9 -> 2022-01-01 | BE74: =W14 -> 2022-03-01 | BF74: =VLOOKUP(BI74,AE5:AF140,2) ->  | BG74: =VLOOKUP(BI74,التسويات!$AU$5:$AX$59,2) -> 3.75 | BH74: =IF(K6="نعم",BF74,BG74) -> 3.75 | BI74: 1982-07-01 | BJ74: 0 | BK74: 1 | BL74: 0 | BM74: =VLOOKUP(BI74,التسويات!$AL$5:$AM$139,2) -> 0.005 | BN74: 0 | BO74: 0 | BP74: =IF(BI74>=T15,0,BM74*BO74) -> 0 | BQ74: =IF(BI74<BR1,BL74,0) -> 0 | BR74: =IF(BI74<BR1,BP74,0) -> 0 | BS74: =IFERROR(VLOOKUP(BI74,AP6:AQ138,2,FALSE),0) -> 0 | BT74: 0 | BU74: =IF(BI74<BR1,BS74,0) -> 0 | BW74: 0 | BX74: =DATE(R17,Q17,1) -> 1970-01-01 | BY74: =DATE(V17,U17,1) -> 1970-01-01 | BZ74: 1 | CA74: 0 | CB74: 0 | CC74: =DATE(R18,Q18,1) -> 1970-01-01 | CD74: =DATE(V18,U18,1) -> 1970-01-01 | CE74: 1 | CF74: 0 | CG74: 0 | CH74: =DATE(R19,Q19,1) -> 1970-01-01 | CI74: =DATE(V19,U19,1) -> 1970-01-01 | CJ74: 1 | CK74: 0 | CL74: 0
AF75: 0 | AM75: 0 | AP75: 1900-01-01 | BD75: =W9 -> 2022-01-01 | BE75: =W14 -> 2022-03-01 | BF75: =VLOOKUP(BI75,AE5:AF140,2) ->  | BG75: =VLOOKUP(BI75,التسويات!$AU$5:$AX$59,2) -> 3.75 | BH75: =IF(K6="نعم",BF75,BG75) -> 3.75 | BI75: 1982-08-01 | BJ75: 0 | BK75: 1 | BL75: 0 | BM75: =VLOOKUP(BI75,التسويات!$AL$5:$AM$139,2) -> 0.005 | BN75: 0 | BO75: 0 | BP75: =IF(BI75>=T15,0,BM75*BO75) -> 0 | BQ75: =IF(BI75<BR1,BL75,0) -> 0 | BR75: =IF(BI75<BR1,BP75,0) -> 0 | BS75: =IFERROR(VLOOKUP(BI75,AP6:AQ138,2,FALSE),0) -> 0 | BT75: 0 | BU75: =IF(BI75<BR1,BS75,0) -> 0 | BW75: 0 | BX75: =DATE(R17,Q17,1) -> 1970-01-01 | BY75: =DATE(V17,U17,1) -> 1970-01-01 | BZ75: 1 | CA75: 0 | CB75: 0 | CC75: =DATE(R18,Q18,1) -> 1970-01-01 | CD75: =DATE(V18,U18,1) -> 1970-01-01 | CE75: 1 | CF75: 0 | CG75: 0 | CH75: =DATE(R19,Q19,1) -> 1970-01-01 | CI75: =DATE(V19,U19,1) -> 1970-01-01 | CJ75: 1 | CK75: 0 | CL75: 0
AF76: 0 | AM76: 0 | AP76: 1900-01-01 | BD76: =W9 -> 2022-01-01 | BE76: =W14 -> 2022-03-01 | BF76: =VLOOKUP(BI76,AE5:AF140,2) ->  | BG76: =VLOOKUP(BI76,التسويات!$AU$5:$AX$59,2) -> 3.75 | BH76: =IF(K6="نعم",BF76,BG76) -> 3.75 | BI76: 1982-09-01 | BJ76: 0 | BK76: 1 | BL76: 0 | BM76: =VLOOKUP(BI76,التسويات!$AL$5:$AM$139,2) -> 0.005 | BN76: 0 | BO76: 0 | BP76: =IF(BI76>=T15,0,BM76*BO76) -> 0 | BQ76: =IF(BI76<BR1,BL76,0) -> 0 | BR76: =IF(BI76<BR1,BP76,0) -> 0 | BS76: =IFERROR(VLOOKUP(BI76,AP6:AQ138,2,FALSE),0) -> 0 | BT76: 0 | BU76: =IF(BI76<BR1,BS76,0) -> 0 | BW76: 0 | BX76: =DATE(R17,Q17,1) -> 1970-01-01 | BY76: =DATE(V17,U17,1) -> 1970-01-01 | BZ76: 1 | CA76: 0 | CB76: 0 | CC76: =DATE(R18,Q18,1) -> 1970-01-01 | CD76: =DATE(V18,U18,1) -> 1970-01-01 | CE76: 1 | CF76: 0 | CG76: 0 | CH76: =DATE(R19,Q19,1) -> 1970-01-01 | CI76: =DATE(V19,U19,1) -> 1970-01-01 | CJ76: 1 | CK76: 0 | CL76: 0
AF77: 0 | AM77: 0 | AP77: 1900-01-01 | BD77: =W9 -> 2022-01-01 | BE77: =W14 -> 2022-03-01 | BF77: =VLOOKUP(BI77,AE5:AF140,2) ->  | BG77: =VLOOKUP(BI77,التسويات!$AU$5:$AX$59,2) -> 3.75 | BH77: =IF(K6="نعم",BF77,BG77) -> 3.75 | BI77: 1982-10-01 | BJ77: 0 | BK77: 1 | BL77: 0 | BM77: =VLOOKUP(BI77,التسويات!$AL$5:$AM$139,2) -> 0.005 | BN77: 0 | BO77: 0 | BP77: =IF(BI77>=T15,0,BM77*BO77) -> 0 | BQ77: =IF(BI77<BR1,BL77,0) -> 0 | BR77: =IF(BI77<BR1,BP77,0) -> 0 | BS77: =IFERROR(VLOOKUP(BI77,AP6:AQ138,2,FALSE),0) -> 0 | BT77: 0 | BU77: =IF(BI77<BR1,BS77,0) -> 0 | BW77: 0 | BX77: =DATE(R17,Q17,1) -> 1970-01-01 | BY77: =DATE(V17,U17,1) -> 1970-01-01 | BZ77: 1 | CA77: 0 | CB77: 0 | CC77: =DATE(R18,Q18,1) -> 1970-01-01 | CD77: =DATE(V18,U18,1) -> 1970-01-01 | CE77: 1 | CF77: 0 | CG77: 0 | CH77: =DATE(R19,Q19,1) -> 1970-01-01 | CI77: =DATE(V19,U19,1) -> 1970-01-01 | CJ77: 1 | CK77: 0 | CL77: 0
AF78: 0 | AM78: 0 | AP78: 1900-01-01 | BD78: =W9 -> 2022-01-01 | BE78: =W14 -> 2022-03-01 | BF78: =VLOOKUP(BI78,AE5:AF140,2) ->  | BG78: =VLOOKUP(BI78,التسويات!$AU$5:$AX$59,2) -> 3.75 | BH78: =IF(K6="نعم",BF78,BG78) -> 3.75 | BI78: 1982-11-01 | BJ78: 0 | BK78: 1 | BL78: 0 | BM78: =VLOOKUP(BI78,التسويات!$AL$5:$AM$139,2) -> 0.005 | BN78: 0 | BO78: 0 | BP78: =IF(BI78>=T15,0,BM78*BO78) -> 0 | BQ78: =IF(BI78<BR1,BL78,0) -> 0 | BR78: =IF(BI78<BR1,BP78,0) -> 0 | BS78: =IFERROR(VLOOKUP(BI78,AP6:AQ138,2,FALSE),0) -> 0 | BT78: 0 | BU78: =IF(BI78<BR1,BS78,0) -> 0 | BW78: 0 | BX78: =DATE(R17,Q17,1) -> 1970-01-01 | BY78: =DATE(V17,U17,1) -> 1970-01-01 | BZ78: 1 | CA78: 0 | CB78: 0 | CC78: =DATE(R18,Q18,1) -> 1970-01-01 | CD78: =DATE(V18,U18,1) -> 1970-01-01 | CE78: 1 | CF78: 0 | CG78: 0 | CH78: =DATE(R19,Q19,1) -> 1970-01-01 | CI78: =DATE(V19,U19,1) -> 1970-01-01 | CJ78: 1 | CK78: 0 | CL78: 0
AF79: 0 | AM79: 0 | AP79: 1900-01-01 | BD79: =W9 -> 2022-01-01 | BE79: =W14 -> 2022-03-01 | BF79: =VLOOKUP(BI79,AE5:AF140,2) ->  | BG79: =VLOOKUP(BI79,التسويات!$AU$5:$AX$59,2) -> 3.75 | BH79: =IF(K6="نعم",BF79,BG79) -> 3.75 | BI79: 1982-12-01 | BJ79: 0 | BK79: 1 | BL79: 0 | BM79: =VLOOKUP(BI79,التسويات!$AL$5:$AM$139,2) -> 0.005 | BN79: 0 | BO79: 0 | BP79: =IF(BI79>=T15,0,BM79*BO79) -> 0 | BQ79: =IF(BI79<BR1,BL79,0) -> 0 | BR79: =IF(BI79<BR1,BP79,0) -> 0 | BS79: =IFERROR(VLOOKUP(BI79,AP6:AQ138,2,FALSE),0) -> 0 | BT79: 0 | BU79: =IF(BI79<BR1,BS79,0) -> 0 | BW79: 0 | BX79: =DATE(R17,Q17,1) -> 1970-01-01 | BY79: =DATE(V17,U17,1) -> 1970-01-01 | BZ79: 1 | CA79: 0 | CB79: 0 | CC79: =DATE(R18,Q18,1) -> 1970-01-01 | CD79: =DATE(V18,U18,1) -> 1970-01-01 | CE79: 1 | CF79: 0 | CG79: 0 | CH79: =DATE(R19,Q19,1) -> 1970-01-01 | CI79: =DATE(V19,U19,1) -> 1970-01-01 | CJ79: 1 | CK79: 0 | CL79: 0
AF80: 0 | AM80: 0 | AP80: 1900-01-01 | BD80: =W9 -> 2022-01-01 | BE80: =W14 -> 2022-03-01 | BF80: =VLOOKUP(BI80,AE5:AF140,2) ->  | BG80: =VLOOKUP(BI80,التسويات!$AU$5:$AX$59,2) -> 3.75 | BH80: =IF(K6="نعم",BF80,BG80) -> 3.75 | BI80: 1983-01-01 | BJ80: 0 | BK80: 1 | BL80: 0 | BM80: =VLOOKUP(BI80,التسويات!$AL$5:$AM$139,2) -> 0.005 | BN80: 0 | BO80: 0 | BP80: =IF(BI80>=T15,0,BM80*BO80) -> 0 | BQ80: =IF(BI80<BR1,BL80,0) -> 0 | BR80: =IF(BI80<BR1,BP80,0) -> 0 | BS80: =IFERROR(VLOOKUP(BI80,AP6:AQ138,2,FALSE),0) -> 0 | BT80: 0 | BU80: =IF(BI80<BR1,BS80,0) -> 0 | BW80: 0 | BX80: =DATE(R17,Q17,1) -> 1970-01-01 | BY80: =DATE(V17,U17,1) -> 1970-01-01 | BZ80: 1 | CA80: 0 | CB80: 0 | CC80: =DATE(R18,Q18,1) -> 1970-01-01 | CD80: =DATE(V18,U18,1) -> 1970-01-01 | CE80: 1 | CF80: 0 | CG80: 0 | CH80: =DATE(R19,Q19,1) -> 1970-01-01 | CI80: =DATE(V19,U19,1) -> 1970-01-01 | CJ80: 1 | CK80: 0 | CL80: 0
AF81: 0 | AM81: 0 | AP81: 1900-01-01 | BD81: =W9 -> 2022-01-01 | BE81: =W14 -> 2022-03-01 | BF81: =VLOOKUP(BI81,AE5:AF140,2) ->  | BG81: =VLOOKUP(BI81,التسويات!$AU$5:$AX$59,2) -> 3.75 | BH81: =IF(K6="نعم",BF81,BG81) -> 3.75 | BI81: 1983-02-01 | BJ81: 0 | BK81: 1 | BL81: 0 | BM81: =VLOOKUP(BI81,التسويات!$AL$5:$AM$139,2) -> 0.005 | BN81: 0 | BO81: 0 | BP81: =IF(BI81>=T15,0,BM81*BO81) -> 0 | BQ81: =IF(BI81<BR1,BL81,0) -> 0 | BR81: =IF(BI81<BR1,BP81,0) -> 0 | BS81: =IFERROR(VLOOKUP(BI81,AP6:AQ138,2,FALSE),0) -> 0 | BT81: 0 | BU81: =IF(BI81<BR1,BS81,0) -> 0 | BW81: 0 | BX81: =DATE(R17,Q17,1) -> 1970-01-01 | BY81: =DATE(V17,U17,1) -> 1970-01-01 | BZ81: 1 | CA81: 0 | CB81: 0 | CC81: =DATE(R18,Q18,1) -> 1970-01-01 | CD81: =DATE(V18,U18,1) -> 1970-01-01 | CE81: 1 | CF81: 0 | CG81: 0 | CH81: =DATE(R19,Q19,1) -> 1970-01-01 | CI81: =DATE(V19,U19,1) -> 1970-01-01 | CJ81: 1 | CK81: 0 | CL81: 0
AF82: 0 | AM82: 0 | AP82: 1900-01-01 | BD82: =W9 -> 2022-01-01 | BE82: =W14 -> 2022-03-01 | BF82: =VLOOKUP(BI82,AE5:AF140,2) ->  | BG82: =VLOOKUP(BI82,التسويات!$AU$5:$AX$59,2) -> 3.75 | BH82: =IF(K6="نعم",BF82,BG82) -> 3.75 | BI82: 1983-03-01 | BJ82: 0 | BK82: 1 | BL82: 0 | BM82: =VLOOKUP(BI82,التسويات!$AL$5:$AM$139,2) -> 0.005 | BN82: 0 | BO82: 0 | BP82: =IF(BI82>=T15,0,BM82*BO82) -> 0 | BQ82: =IF(BI82<BR1,BL82,0) -> 0 | BR82: =IF(BI82<BR1,BP82,0) -> 0 | BS82: =IFERROR(VLOOKUP(BI82,AP6:AQ138,2,FALSE),0) -> 0 | BT82: 0 | BU82: =IF(BI82<BR1,BS82,0) -> 0 | BW82: 0 | BX82: =DATE(R17,Q17,1) -> 1970-01-01 | BY82: =DATE(V17,U17,1) -> 1970-01-01 | BZ82: 1 | CA82: 0 | CB82: 0 | CC82: =DATE(R18,Q18,1) -> 1970-01-01 | CD82: =DATE(V18,U18,1) -> 1970-01-01 | CE82: 1 | CF82: 0 | CG82: 0 | CH82: =DATE(R19,Q19,1) -> 1970-01-01 | CI82: =DATE(V19,U19,1) -> 1970-01-01 | CJ82: 1 | CK82: 0 | CL82: 0
AF83: 0 | AM83: 0 | AP83: 1900-01-01 | BD83: =W9 -> 2022-01-01 | BE83: =W14 -> 2022-03-01 | BF83: =VLOOKUP(BI83,AE5:AF140,2) ->  | BG83: =VLOOKUP(BI83,التسويات!$AU$5:$AX$59,2) -> 3.75 | BH83: =IF(K6="نعم",BF83,BG83) -> 3.75 | BI83: 1983-04-01 | BJ83: 0 | BK83: 1 | BL83: 0 | BM83: =VLOOKUP(BI83,التسويات!$AL$5:$AM$139,2) -> 0.005 | BN83: 0 | BO83: 0 | BP83: =IF(BI83>=T15,0,BM83*BO83) -> 0 | BQ83: =IF(BI83<BR1,BL83,0) -> 0 | BR83: =IF(BI83<BR1,BP83,0) -> 0 | BS83: =IFERROR(VLOOKUP(BI83,AP6:AQ138,2,FALSE),0) -> 0 | BT83: 0 | BU83: =IF(BI83<BR1,BS83,0) -> 0 | BW83: 0 | BX83: =DATE(R17,Q17,1) -> 1970-01-01 | BY83: =DATE(V17,U17,1) -> 1970-01-01 | BZ83: 1 | CA83: 0 | CB83: 0 | CC83: =DATE(R18,Q18,1) -> 1970-01-01 | CD83: =DATE(V18,U18,1) -> 1970-01-01 | CE83: 1 | CF83: 0 | CG83: 0 | CH83: =DATE(R19,Q19,1) -> 1970-01-01 | CI83: =DATE(V19,U19,1) -> 1970-01-01 | CJ83: 1 | CK83: 0 | CL83: 0
AF84: 0 | AM84: 0 | AP84: 1900-01-01 | BD84: =W9 -> 2022-01-01 | BE84: =W14 -> 2022-03-01 | BF84: =VLOOKUP(BI84,AE5:AF140,2) ->  | BG84: =VLOOKUP(BI84,التسويات!$AU$5:$AX$59,2) -> 3.75 | BH84: =IF(K6="نعم",BF84,BG84) -> 3.75 | BI84: 1983-05-01 | BJ84: 0 | BK84: 1 | BL84: 0 | BM84: =VLOOKUP(BI84,التسويات!$AL$5:$AM$139,2) -> 0.005 | BN84: 0 | BO84: 0 | BP84: =IF(BI84>=T15,0,BM84*BO84) -> 0 | BQ84: =IF(BI84<BR1,BL84,0) -> 0 | BR84: =IF(BI84<BR1,BP84,0) -> 0 | BS84: =IFERROR(VLOOKUP(BI84,AP6:AQ138,2,FALSE),0) -> 0 | BT84: 0 | BU84: =IF(BI84<BR1,BS84,0) -> 0 | BW84: 0 | BX84: =DATE(R17,Q17,1) -> 1970-01-01 | BY84: =DATE(V17,U17,1) -> 1970-01-01 | BZ84: 1 | CA84: 0 | CB84: 0 | CC84: =DATE(R18,Q18,1) -> 1970-01-01 | CD84: =DATE(V18,U18,1) -> 1970-01-01 | CE84: 1 | CF84: 0 | CG84: 0 | CH84: =DATE(R19,Q19,1) -> 1970-01-01 | CI84: =DATE(V19,U19,1) -> 1970-01-01 | CJ84: 1 | CK84: 0 | CL84: 0
AF85: 0 | AM85: 0 | AP85: 1900-01-01 | BD85: =W9 -> 2022-01-01 | BE85: =W14 -> 2022-03-01 | BF85: =VLOOKUP(BI85,AE5:AF140,2) ->  | BG85: =VLOOKUP(BI85,التسويات!$AU$5:$AX$59,2) -> 3.75 | BH85: =IF(K6="نعم",BF85,BG85) -> 3.75 | BI85: 1983-06-01 | BJ85: 0 | BK85: 1 | BL85: 0 | BM85: =VLOOKUP(BI85,التسويات!$AL$5:$AM$139,2) -> 0.005 | BN85: 0 | BO85: 0 | BP85: =IF(BI85>=T15,0,BM85*BO85) -> 0 | BQ85: =IF(BI85<BR1,BL85,0) -> 0 | BR85: =IF(BI85<BR1,BP85,0) -> 0 | BS85: =IFERROR(VLOOKUP(BI85,AP6:AQ138,2,FALSE),0) -> 0 | BT85: 0 | BU85: =IF(BI85<BR1,BS85,0) -> 0 | BW85: 0 | BX85: =DATE(R17,Q17,1) -> 1970-01-01 | BY85: =DATE(V17,U17,1) -> 1970-01-01 | BZ85: 1 | CA85: 0 | CB85: 0 | CC85: =DATE(R18,Q18,1) -> 1970-01-01 | CD85: =DATE(V18,U18,1) -> 1970-01-01 | CE85: 1 | CF85: 0 | CG85: 0 | CH85: =DATE(R19,Q19,1) -> 1970-01-01 | CI85: =DATE(V19,U19,1) -> 1970-01-01 | CJ85: 1 | CK85: 0 | CL85: 0
AF86: 0 | AM86: 0 | AP86: 1900-01-01 | BD86: =W9 -> 2022-01-01 | BE86: =W14 -> 2022-03-01 | BF86: =VLOOKUP(BI86,AE5:AF140,2) ->  | BG86: =VLOOKUP(BI86,التسويات!$AU$5:$AX$59,2) -> 4.5 | BH86: =IF(K6="نعم",BF86,BG86) -> 4.5 | BI86: 1983-07-01 | BJ86: 0 | BK86: 1 | BL86: 0 | BM86: =VLOOKUP(BI86,التسويات!$AL$5:$AM$139,2) -> 0.005 | BN86: 0 | BO86: 0 | BP86: =IF(BI86>=T15,0,BM86*BO86) -> 0 | BQ86: =IF(BI86<BR1,BL86,0) -> 0 | BR86: =IF(BI86<BR1,BP86,0) -> 0 | BS86: =IFERROR(VLOOKUP(BI86,AP6:AQ138,2,FALSE),0) -> 0 | BT86: 0 | BU86: =IF(BI86<BR1,BS86,0) -> 0 | BW86: 0 | BX86: =DATE(R17,Q17,1) -> 1970-01-01 | BY86: =DATE(V17,U17,1) -> 1970-01-01 | BZ86: 1 | CA86: 0 | CB86: 0 | CC86: =DATE(R18,Q18,1) -> 1970-01-01 | CD86: =DATE(V18,U18,1) -> 1970-01-01 | CE86: 1 | CF86: 0 | CG86: 0 | CH86: =DATE(R19,Q19,1) -> 1970-01-01 | CI86: =DATE(V19,U19,1) -> 1970-01-01 | CJ86: 1 | CK86: 0 | CL86: 0
AF87: 0 | AM87: 0 | AP87: 1900-01-01 | BD87: =W9 -> 2022-01-01 | BE87: =W14 -> 2022-03-01 | BF87: =VLOOKUP(BI87,AE5:AF140,2) ->  | BG87: =VLOOKUP(BI87,التسويات!$AU$5:$AX$59,2) -> 4.5 | BH87: =IF(K6="نعم",BF87,BG87) -> 4.5 | BI87: 1983-08-01 | BJ87: 0 | BK87: 1 | BL87: 0 | BM87: =VLOOKUP(BI87,التسويات!$AL$5:$AM$139,2) -> 0.005 | BN87: 0 | BO87: 0 | BP87: =IF(BI87>=T15,0,BM87*BO87) -> 0 | BQ87: =IF(BI87<BR1,BL87,0) -> 0 | BR87: =IF(BI87<BR1,BP87,0) -> 0 | BS87: =IFERROR(VLOOKUP(BI87,AP6:AQ138,2,FALSE),0) -> 0 | BT87: 0 | BU87: =IF(BI87<BR1,BS87,0) -> 0 | BW87: 0 | BX87: =DATE(R17,Q17,1) -> 1970-01-01 | BY87: =DATE(V17,U17,1) -> 1970-01-01 | BZ87: 1 | CA87: 0 | CB87: 0 | CC87: =DATE(R18,Q18,1) -> 1970-01-01 | CD87: =DATE(V18,U18,1) -> 1970-01-01 | CE87: 1 | CF87: 0 | CG87: 0 | CH87: =DATE(R19,Q19,1) -> 1970-01-01 | CI87: =DATE(V19,U19,1) -> 1970-01-01 | CJ87: 1 | CK87: 0 | CL87: 0
AF88: 0 | AM88: 0 | AP88: 1900-01-01 | BD88: =W9 -> 2022-01-01 | BE88: =W14 -> 2022-03-01 | BF88: =VLOOKUP(BI88,AE5:AF140,2) ->  | BG88: =VLOOKUP(BI88,التسويات!$AU$5:$AX$59,2) -> 4.5 | BH88: =IF(K6="نعم",BF88,BG88) -> 4.5 | BI88: 1983-09-01 | BJ88: 0 | BK88: 1 | BL88: 0 | BM88: =VLOOKUP(BI88,التسويات!$AL$5:$AM$139,2) -> 0.005 | BN88: 0 | BO88: 0 | BP88: =IF(BI88>=T15,0,BM88*BO88) -> 0 | BQ88: =IF(BI88<BR1,BL88,0) -> 0 | BR88: =IF(BI88<BR1,BP88,0) -> 0 | BS88: =IFERROR(VLOOKUP(BI88,AP6:AQ138,2,FALSE),0) -> 0 | BT88: 0 | BU88: =IF(BI88<BR1,BS88,0) -> 0 | BW88: 0 | BX88: =DATE(R17,Q17,1) -> 1970-01-01 | BY88: =DATE(V17,U17,1) -> 1970-01-01 | BZ88: 1 | CA88: 0 | CB88: 0 | CC88: =DATE(R18,Q18,1) -> 1970-01-01 | CD88: =DATE(V18,U18,1) -> 1970-01-01 | CE88: 1 | CF88: 0 | CG88: 0 | CH88: =DATE(R19,Q19,1) -> 1970-01-01 | CI88: =DATE(V19,U19,1) -> 1970-01-01 | CJ88: 1 | CK88: 0 | CL88: 0
AF89: 0 | AM89: 0 | AP89: 1900-01-01 | BD89: =W9 -> 2022-01-01 | BE89: =W14 -> 2022-03-01 | BF89: =VLOOKUP(BI89,AE5:AF140,2) ->  | BG89: =VLOOKUP(BI89,التسويات!$AU$5:$AX$59,2) -> 4.5 | BH89: =IF(K6="نعم",BF89,BG89) -> 4.5 | BI89: 1983-10-01 | BJ89: 0 | BK89: 1 | BL89: 0 | BM89: =VLOOKUP(BI89,التسويات!$AL$5:$AM$139,2) -> 0.005 | BN89: 0 | BO89: 0 | BP89: =IF(BI89>=T15,0,BM89*BO89) -> 0 | BQ89: =IF(BI89<BR1,BL89,0) -> 0 | BR89: =IF(BI89<BR1,BP89,0) -> 0 | BS89: =IFERROR(VLOOKUP(BI89,AP6:AQ138,2,FALSE),0) -> 0 | BT89: 0 | BU89: =IF(BI89<BR1,BS89,0) -> 0 | BW89: 0 | BX89: =DATE(R17,Q17,1) -> 1970-01-01 | BY89: =DATE(V17,U17,1) -> 1970-01-01 | BZ89: 1 | CA89: 0 | CB89: 0 | CC89: =DATE(R18,Q18,1) -> 1970-01-01 | CD89: =DATE(V18,U18,1) -> 1970-01-01 | CE89: 1 | CF89: 0 | CG89: 0 | CH89: =DATE(R19,Q19,1) -> 1970-01-01 | CI89: =DATE(V19,U19,1) -> 1970-01-01 | CJ89: 1 | CK89: 0 | CL89: 0
AF90: 0 | AM90: 0 | AP90: 1900-01-01 | BD90: =W9 -> 2022-01-01 | BE90: =W14 -> 2022-03-01 | BF90: =VLOOKUP(BI90,AE5:AF140,2) ->  | BG90: =VLOOKUP(BI90,التسويات!$AU$5:$AX$59,2) -> 4.5 | BH90: =IF(K6="نعم",BF90,BG90) -> 4.5 | BI90: 1983-11-01 | BJ90: 0 | BK90: 1 | BL90: 0 | BM90: =VLOOKUP(BI90,التسويات!$AL$5:$AM$139,2) -> 0.005 | BN90: 0 | BO90: 0 | BP90: =IF(BI90>=T15,0,BM90*BO90) -> 0 | BQ90: =IF(BI90<BR1,BL90,0) -> 0 | BR90: =IF(BI90<BR1,BP90,0) -> 0 | BS90: =IFERROR(VLOOKUP(BI90,AP6:AQ138,2,FALSE),0) -> 0 | BT90: 0 | BU90: =IF(BI90<BR1,BS90,0) -> 0 | BW90: 0 | BX90: =DATE(R17,Q17,1) -> 1970-01-01 | BY90: =DATE(V17,U17,1) -> 1970-01-01 | BZ90: 1 | CA90: 0 | CB90: 0 | CC90: =DATE(R18,Q18,1) -> 1970-01-01 | CD90: =DATE(V18,U18,1) -> 1970-01-01 | CE90: 1 | CF90: 0 | CG90: 0 | CH90: =DATE(R19,Q19,1) -> 1970-01-01 | CI90: =DATE(V19,U19,1) -> 1970-01-01 | CJ90: 1 | CK90: 0 | CL90: 0
AF91: 0 | AM91: 0 | AP91: 1900-01-01 | BD91: =W9 -> 2022-01-01 | BE91: =W14 -> 2022-03-01 | BF91: =VLOOKUP(BI91,AE5:AF140,2) ->  | BG91: =VLOOKUP(BI91,التسويات!$AU$5:$AX$59,2) -> 4.5 | BH91: =IF(K6="نعم",BF91,BG91) -> 4.5 | BI91: 1983-12-01 | BJ91: 0 | BK91: 1 | BL91: 0 | BM91: =VLOOKUP(BI91,التسويات!$AL$5:$AM$139,2) -> 0.005 | BN91: 0 | BO91: 0 | BP91: =IF(BI91>=T15,0,BM91*BO91) -> 0 | BQ91: =IF(BI91<BR1,BL91,0) -> 0 | BR91: =IF(BI91<BR1,BP91,0) -> 0 | BS91: =IFERROR(VLOOKUP(BI91,AP6:AQ138,2,FALSE),0) -> 0 | BT91: 0 | BU91: =IF(BI91<BR1,BS91,0) -> 0 | BW91: 0 | BX91: =DATE(R17,Q17,1) -> 1970-01-01 | BY91: =DATE(V17,U17,1) -> 1970-01-01 | BZ91: 1 | CA91: 0 | CB91: 0 | CC91: =DATE(R18,Q18,1) -> 1970-01-01 | CD91: =DATE(V18,U18,1) -> 1970-01-01 | CE91: 1 | CF91: 0 | CG91: 0 | CH91: =DATE(R19,Q19,1) -> 1970-01-01 | CI91: =DATE(V19,U19,1) -> 1970-01-01 | CJ91: 1 | CK91: 0 | CL91: 0
AF92: 0 | AM92: 0 | AP92: 1900-01-01 | BD92: =W9 -> 2022-01-01 | BE92: =W14 -> 2022-03-01 | BF92: =VLOOKUP(BI92,AE5:AF140,2) ->  | BG92: =VLOOKUP(BI92,التسويات!$AU$5:$AX$59,2) -> 4.5 | BH92: =IF(K6="نعم",BF92,BG92) -> 4.5 | BI92: 1984-01-01 | BJ92: 0 | BK92: 1 | BL92: 0 | BM92: =VLOOKUP(BI92,التسويات!$AL$5:$AM$139,2) -> 0.005 | BN92: 0 | BO92: 0 | BP92: =IF(BI92>=T15,0,BM92*BO92) -> 0 | BQ92: =IF(BI92<BR1,BL92,0) -> 0 | BR92: =IF(BI92<BR1,BP92,0) -> 0 | BS92: =IFERROR(VLOOKUP(BI92,AP6:AQ138,2,FALSE),0) -> 0 | BT92: 0 | BU92: =IF(BI92<BR1,BS92,0) -> 0 | BW92: 0 | BX92: =DATE(R17,Q17,1) -> 1970-01-01 | BY92: =DATE(V17,U17,1) -> 1970-01-01 | BZ92: 1 | CA92: 0 | CB92: 0 | CC92: =DATE(R18,Q18,1) -> 1970-01-01 | CD92: =DATE(V18,U18,1) -> 1970-01-01 | CE92: 1 | CF92: 0 | CG92: 0 | CH92: =DATE(R19,Q19,1) -> 1970-01-01 | CI92: =DATE(V19,U19,1) -> 1970-01-01 | CJ92: 1 | CK92: 0 | CL92: 0
AF93: 0 | AM93: 0 | AP93: 1900-01-01 | BD93: =W9 -> 2022-01-01 | BE93: =W14 -> 2022-03-01 | BF93: =VLOOKUP(BI93,AE5:AF140,2) ->  | BG93: =VLOOKUP(BI93,التسويات!$AU$5:$AX$59,2) -> 4.5 | BH93: =IF(K6="نعم",BF93,BG93) -> 4.5 | BI93: 1984-02-01 | BJ93: 0 | BK93: 1 | BL93: 0 | BM93: =VLOOKUP(BI93,التسويات!$AL$5:$AM$139,2) -> 0.005 | BN93: 0 | BO93: 0 | BP93: =IF(BI93>=T15,0,BM93*BO93) -> 0 | BQ93: =IF(BI93<BR1,BL93,0) -> 0 | BR93: =IF(BI93<BR1,BP93,0) -> 0 | BS93: =IFERROR(VLOOKUP(BI93,AP6:AQ138,2,FALSE),0) -> 0 | BT93: 0 | BU93: =IF(BI93<BR1,BS93,0) -> 0 | BW93: 0 | BX93: =DATE(R17,Q17,1) -> 1970-01-01 | BY93: =DATE(V17,U17,1) -> 1970-01-01 | BZ93: 1 | CA93: 0 | CB93: 0 | CC93: =DATE(R18,Q18,1) -> 1970-01-01 | CD93: =DATE(V18,U18,1) -> 1970-01-01 | CE93: 1 | CF93: 0 | CG93: 0 | CH93: =DATE(R19,Q19,1) -> 1970-01-01 | CI93: =DATE(V19,U19,1) -> 1970-01-01 | CJ93: 1 | CK93: 0 | CL93: 0
AF94: 0 | AM94: 0 | AP94: 1900-01-01 | BD94: =W9 -> 2022-01-01 | BE94: =W14 -> 2022-03-01 | BF94: =VLOOKUP(BI94,AE5:AF140,2) ->  | BG94: =VLOOKUP(BI94,التسويات!$AU$5:$AX$59,2) -> 4.5 | BH94: =IF(K6="نعم",BF94,BG94) -> 4.5 | BI94: 1984-03-01 | BJ94: 0 | BK94: 1 | BL94: 0 | BM94: =VLOOKUP(BI94,التسويات!$AL$5:$AM$139,2) -> 0.005 | BN94: 0 | BO94: 0 | BP94: =IF(BI94>=T15,0,BM94*BO94) -> 0 | BQ94: =IF(BI94<BR1,BL94,0) -> 0 | BR94: =IF(BI94<BR1,BP94,0) -> 0 | BS94: =IFERROR(VLOOKUP(BI94,AP6:AQ138,2,FALSE),0) -> 0 | BT94: 0 | BU94: =IF(BI94<BR1,BS94,0) -> 0 | BW94: 0 | BX94: =DATE(R17,Q17,1) -> 1970-01-01 | BY94: =DATE(V17,U17,1) -> 1970-01-01 | BZ94: 1 | CA94: 0 | CB94: 0 | CC94: =DATE(R18,Q18,1) -> 1970-01-01 | CD94: =DATE(V18,U18,1) -> 1970-01-01 | CE94: 1 | CF94: 0 | CG94: 0 | CH94: =DATE(R19,Q19,1) -> 1970-01-01 | CI94: =DATE(V19,U19,1) -> 1970-01-01 | CJ94: 1 | CK94: 0 | CL94: 0
AF95: 0 | AM95: 0 | AP95: 1900-01-01 | BD95: =W9 -> 2022-01-01 | BE95: =W14 -> 2022-03-01 | BF95: =VLOOKUP(BI95,AE5:AF140,2) ->  | BG95: =VLOOKUP(BI95,التسويات!$AU$5:$AX$59,2) -> 4.5 | BH95: =IF(K6="نعم",BF95,BG95) -> 4.5 | BI95: 1984-04-01 | BJ95: 0 | BK95: 1 | BL95: 0 | BM95: =VLOOKUP(BI95,التسويات!$AL$5:$AM$139,2) -> 0.005 | BN95: 0 | BO95: 0 | BP95: =IF(BI95>=T15,0,BM95*BO95) -> 0 | BQ95: =IF(BI95<BR1,BL95,0) -> 0 | BR95: =IF(BI95<BR1,BP95,0) -> 0 | BS95: =IFERROR(VLOOKUP(BI95,AP6:AQ138,2,FALSE),0) -> 0 | BT95: 0 | BU95: =IF(BI95<BR1,BS95,0) -> 0 | BW95: 0 | BX95: =DATE(R17,Q17,1) -> 1970-01-01 | BY95: =DATE(V17,U17,1) -> 1970-01-01 | BZ95: 1 | CA95: 0 | CB95: 0 | CC95: =DATE(R18,Q18,1) -> 1970-01-01 | CD95: =DATE(V18,U18,1) -> 1970-01-01 | CE95: 1 | CF95: 0 | CG95: 0 | CH95: =DATE(R19,Q19,1) -> 1970-01-01 | CI95: =DATE(V19,U19,1) -> 1970-01-01 | CJ95: 1 | CK95: 0 | CL95: 0
AF96: 0 | AM96: 0 | AP96: 1900-01-01 | BD96: =W9 -> 2022-01-01 | BE96: =W14 -> 2022-03-01 | BF96: =VLOOKUP(BI96,AE5:AF140,2) ->  | BG96: =VLOOKUP(BI96,التسويات!$AU$5:$AX$59,2) -> 4.5 | BH96: =IF(K6="نعم",BF96,BG96) -> 4.5 | BI96: 1984-05-01 | BJ96: 0 | BK96: 1 | BL96: 0 | BM96: =VLOOKUP(BI96,التسويات!$AL$5:$AM$139,2) -> 0.005 | BN96: 0 | BO96: 0 | BP96: =IF(BI96>=T15,0,BM96*BO96) -> 0 | BQ96: =IF(BI96<BR1,BL96,0) -> 0 | BR96: =IF(BI96<BR1,BP96,0) -> 0 | BS96: =IFERROR(VLOOKUP(BI96,AP6:AQ138,2,FALSE),0) -> 0 | BT96: 0 | BU96: =IF(BI96<BR1,BS96,0) -> 0 | BW96: 0 | BX96: =DATE(R17,Q17,1) -> 1970-01-01 | BY96: =DATE(V17,U17,1) -> 1970-01-01 | BZ96: 1 | CA96: 0 | CB96: 0 | CC96: =DATE(R18,Q18,1) -> 1970-01-01 | CD96: =DATE(V18,U18,1) -> 1970-01-01 | CE96: 1 | CF96: 0 | CG96: 0 | CH96: =DATE(R19,Q19,1) -> 1970-01-01 | CI96: =DATE(V19,U19,1) -> 1970-01-01 | CJ96: 1 | CK96: 0 | CL96: 0
AF97: 0 | AM97: 0 | AP97: 1900-01-01 | BD97: =W9 -> 2022-01-01 | BE97: =W14 -> 2022-03-01 | BF97: =VLOOKUP(BI97,AE5:AF140,2) ->  | BG97: =VLOOKUP(BI97,التسويات!$AU$5:$AX$59,2) -> 4.5 | BH97: =IF(K6="نعم",BF97,BG97) -> 4.5 | BI97: 1984-06-01 | BJ97: 0 | BK97: 1 | BL97: 0 | BM97: =VLOOKUP(BI97,التسويات!$AL$5:$AM$139,2) -> 0.005 | BN97: 0 | BO97: 0 | BP97: =IF(BI97>=T15,0,BM97*BO97) -> 0 | BQ97: =IF(BI97<BR1,BL97,0) -> 0 | BR97: =IF(BI97<BR1,BP97,0) -> 0 | BS97: =IFERROR(VLOOKUP(BI97,AP6:AQ138,2,FALSE),0) -> 0 | BT97: 0 | BU97: =IF(BI97<BR1,BS97,0) -> 0 | BW97: 0 | BX97: =DATE(R17,Q17,1) -> 1970-01-01 | BY97: =DATE(V17,U17,1) -> 1970-01-01 | BZ97: 1 | CA97: 0 | CB97: 0 | CC97: =DATE(R18,Q18,1) -> 1970-01-01 | CD97: =DATE(V18,U18,1) -> 1970-01-01 | CE97: 1 | CF97: 0 | CG97: 0 | CH97: =DATE(R19,Q19,1) -> 1970-01-01 | CI97: =DATE(V19,U19,1) -> 1970-01-01 | CJ97: 1 | CK97: 0 | CL97: 0
AF98: 0 | AM98: 0 | AP98: 1900-01-01 | BD98: =W9 -> 2022-01-01 | BE98: =W14 -> 2022-03-01 | BF98: =VLOOKUP(BI98,AE5:AF140,2) ->  | BG98: =VLOOKUP(BI98,التسويات!$AU$5:$AX$59,2) -> 6 | BH98: =IF(K6="نعم",BF98,BG98) -> 6 | BI98: 1984-07-01 | BJ98: 0 | BK98: 1 | BL98: 0 | BM98: =VLOOKUP(BI98,التسويات!$AL$5:$AM$139,2) -> 0.005 | BN98: 0 | BO98: 0 | BP98: =IF(BI98>=T15,0,BM98*BO98) -> 0 | BQ98: =IF(BI98<BR1,BL98,0) -> 0 | BR98: =IF(BI98<BR1,BP98,0) -> 0 | BS98: =IFERROR(VLOOKUP(BI98,AP6:AQ138,2,FALSE),0) -> 0 | BT98: 0 | BU98: =IF(BI98<BR1,BS98,0) -> 0 | BW98: 0 | BX98: =DATE(R17,Q17,1) -> 1970-01-01 | BY98: =DATE(V17,U17,1) -> 1970-01-01 | BZ98: 1 | CA98: 0 | CB98: 0 | CC98: =DATE(R18,Q18,1) -> 1970-01-01 | CD98: =DATE(V18,U18,1) -> 1970-01-01 | CE98: 1 | CF98: 0 | CG98: 0 | CH98: =DATE(R19,Q19,1) -> 1970-01-01 | CI98: =DATE(V19,U19,1) -> 1970-01-01 | CJ98: 1 | CK98: 0 | CL98: 0
AF99: 0 | AM99: 0 | AP99: 1900-01-01 | BD99: =W9 -> 2022-01-01 | BE99: =W14 -> 2022-03-01 | BF99: =VLOOKUP(BI99,AE5:AF140,2) ->  | BG99: =VLOOKUP(BI99,التسويات!$AU$5:$AX$59,2) -> 6 | BH99: =IF(K6="نعم",BF99,BG99) -> 6 | BI99: 1984-08-01 | BJ99: 0 | BK99: 1 | BL99: 0 | BM99: =VLOOKUP(BI99,التسويات!$AL$5:$AM$139,2) -> 0.005 | BN99: 0 | BO99: 0 | BP99: =IF(BI99>=T15,0,BM99*BO99) -> 0 | BQ99: =IF(BI99<BR1,BL99,0) -> 0 | BR99: =IF(BI99<BR1,BP99,0) -> 0 | BS99: =IFERROR(VLOOKUP(BI99,AP6:AQ138,2,FALSE),0) -> 0 | BT99: 0 | BU99: =IF(BI99<BR1,BS99,0) -> 0 | BW99: 0 | BX99: =DATE(R17,Q17,1) -> 1970-01-01 | BY99: =DATE(V17,U17,1) -> 1970-01-01 | BZ99: 1 | CA99: 0 | CB99: 0 | CC99: =DATE(R18,Q18,1) -> 1970-01-01 | CD99: =DATE(V18,U18,1) -> 1970-01-01 | CE99: 1 | CF99: 0 | CG99: 0 | CH99: =DATE(R19,Q19,1) -> 1970-01-01 | CI99: =DATE(V19,U19,1) -> 1970-01-01 | CJ99: 1 | CK99: 0 | CL99: 0
AF100: 0 | AM100: 0 | AP100: 1900-01-01 | BD100: =W9 -> 2022-01-01 | BE100: =W14 -> 2022-03-01 | BF100: =VLOOKUP(BI100,AE5:AF140,2) ->  | BG100: =VLOOKUP(BI100,التسويات!$AU$5:$AX$59,2) -> 6 | BH100: =IF(K6="نعم",BF100,BG100) -> 6 | BI100: 1984-09-01 | BJ100: 0 | BK100: 1 | BL100: 0 | BM100: =VLOOKUP(BI100,التسويات!$AL$5:$AM$139,2) -> 0.005 | BN100: 0 | BO100: 0 | BP100: =IF(BI100>=T15,0,BM100*BO100) -> 0 | BQ100: =IF(BI100<BR1,BL100,0) -> 0 | BR100: =IF(BI100<BR1,BP100,0) -> 0 | BS100: =IFERROR(VLOOKUP(BI100,AP6:AQ138,2,FALSE),0) -> 0 | BT100: 0 | BU100: =IF(BI100<BR1,BS100,0) -> 0 | BW100: 0 | BX100: =DATE(R17,Q17,1) -> 1970-01-01 | BY100: =DATE(V17,U17,1) -> 1970-01-01 | BZ100: 1 | CA100: 0 | CB100: 0 | CC100: =DATE(R18,Q18,1) -> 1970-01-01 | CD100: =DATE(V18,U18,1) -> 1970-01-01 | CE100: 1 | CF100: 0 | CG100: 0 | CH100: =DATE(R19,Q19,1) -> 1970-01-01 | CI100: =DATE(V19,U19,1) -> 1970-01-01 | CJ100: 1 | CK100: 0 | CL100: 0
AF101: 0 | AM101: 0 | AP101: 1900-01-01 | BD101: =W9 -> 2022-01-01 | BE101: =W14 -> 2022-03-01 | BF101: =VLOOKUP(BI101,AE5:AF140,2) ->  | BG101: =VLOOKUP(BI101,التسويات!$AU$5:$AX$59,2) -> 6 | BH101: =IF(K6="نعم",BF101,BG101) -> 6 | BI101: 1984-10-01 | BJ101: 0 | BK101: 1 | BL101: 0 | BM101: =VLOOKUP(BI101,التسويات!$AL$5:$AM$139,2) -> 0.005 | BN101: 0 | BO101: 0 | BP101: =IF(BI101>=T15,0,BM101*BO101) -> 0 | BQ101: =IF(BI101<BR1,BL101,0) -> 0 | BR101: =IF(BI101<BR1,BP101,0) -> 0 | BS101: =IFERROR(VLOOKUP(BI101,AP6:AQ138,2,FALSE),0) -> 0 | BT101: 0 | BU101: =IF(BI101<BR1,BS101,0) -> 0 | BW101: 0 | BX101: =DATE(R17,Q17,1) -> 1970-01-01 | BY101: =DATE(V17,U17,1) -> 1970-01-01 | BZ101: 1 | CA101: 0 | CB101: 0 | CC101: =DATE(R18,Q18,1) -> 1970-01-01 | CD101: =DATE(V18,U18,1) -> 1970-01-01 | CE101: 1 | CF101: 0 | CG101: 0 | CH101: =DATE(R19,Q19,1) -> 1970-01-01 | CI101: =DATE(V19,U19,1) -> 1970-01-01 | CJ101: 1 | CK101: 0 | CL101: 0
AF102: 0 | AM102: 0 | AP102: 1900-01-01 | BD102: =W9 -> 2022-01-01 | BE102: =W14 -> 2022-03-01 | BF102: =VLOOKUP(BI102,AE5:AF140,2) ->  | BG102: =VLOOKUP(BI102,التسويات!$AU$5:$AX$59,2) -> 6 | BH102: =IF(K6="نعم",BF102,BG102) -> 6 | BI102: 1984-11-01 | BJ102: 0 | BK102: 1 | BL102: 0 | BM102: =VLOOKUP(BI102,التسويات!$AL$5:$AM$139,2) -> 0.005 | BN102: 0 | BO102: 0 | BP102: =IF(BI102>=T15,0,BM102*BO102) -> 0 | BQ102: =IF(BI102<BR1,BL102,0) -> 0 | BR102: =IF(BI102<BR1,BP102,0) -> 0 | BS102: =IFERROR(VLOOKUP(BI102,AP6:AQ138,2,FALSE),0) -> 0 | BT102: 0 | BU102: =IF(BI102<BR1,BS102,0) -> 0 | BW102: 0 | BX102: =DATE(R17,Q17,1) -> 1970-01-01 | BY102: =DATE(V17,U17,1) -> 1970-01-01 | BZ102: 1 | CA102: 0 | CB102: 0 | CC102: =DATE(R18,Q18,1) -> 1970-01-01 | CD102: =DATE(V18,U18,1) -> 1970-01-01 | CE102: 1 | CF102: 0 | CG102: 0 | CH102: =DATE(R19,Q19,1) -> 1970-01-01 | CI102: =DATE(V19,U19,1) -> 1970-01-01 | CJ102: 1 | CK102: 0 | CL102: 0
AF103: 0 | AM103: 0 | AP103: 1900-01-01 | BD103: =W9 -> 2022-01-01 | BE103: =W14 -> 2022-03-01 | BF103: =VLOOKUP(BI103,AE5:AF140,2) ->  | BG103: =VLOOKUP(BI103,التسويات!$AU$5:$AX$59,2) -> 6 | BH103: =IF(K6="نعم",BF103,BG103) -> 6 | BI103: 1984-12-01 | BJ103: 0 | BK103: 1 | BL103: 0 | BM103: =VLOOKUP(BI103,التسويات!$AL$5:$AM$139,2) -> 0.005 | BN103: 0 | BO103: 0 | BP103: =IF(BI103>=T15,0,BM103*BO103) -> 0 | BQ103: =IF(BI103<BR1,BL103,0) -> 0 | BR103: =IF(BI103<BR1,BP103,0) -> 0 | BS103: =IFERROR(VLOOKUP(BI103,AP6:AQ138,2,FALSE),0) -> 0 | BT103: 0 | BU103: =IF(BI103<BR1,BS103,0) -> 0 | BW103: 0 | BX103: =DATE(R17,Q17,1) -> 1970-01-01 | BY103: =DATE(V17,U17,1) -> 1970-01-01 | BZ103: 1 | CA103: 0 | CB103: 0 | CC103: =DATE(R18,Q18,1) -> 1970-01-01 | CD103: =DATE(V18,U18,1) -> 1970-01-01 | CE103: 1 | CF103: 0 | CG103: 0 | CH103: =DATE(R19,Q19,1) -> 1970-01-01 | CI103: =DATE(V19,U19,1) -> 1970-01-01 | CJ103: 1 | CK103: 0 | CL103: 0
AF104: 0 | AM104: 0 | AP104: 1900-01-01 | BD104: =W9 -> 2022-01-01 | BE104: =W14 -> 2022-03-01 | BF104: =VLOOKUP(BI104,AE5:AF140,2) ->  | BG104: =VLOOKUP(BI104,التسويات!$AU$5:$AX$59,2) -> 6 | BH104: =IF(K6="نعم",BF104,BG104) -> 6 | BI104: 1985-01-01 | BJ104: 0 | BK104: 1 | BL104: 0 | BM104: =VLOOKUP(BI104,التسويات!$AL$5:$AM$139,2) -> 0.005 | BN104: 0 | BO104: 0 | BP104: =IF(BI104>=T15,0,BM104*BO104) -> 0 | BQ104: =IF(BI104<BR1,BL104,0) -> 0 | BR104: =IF(BI104<BR1,BP104,0) -> 0 | BS104: =IFERROR(VLOOKUP(BI104,AP6:AQ138,2,FALSE),0) -> 0 | BT104: 0 | BU104: =IF(BI104<BR1,BS104,0) -> 0 | BW104: 0 | BX104: =DATE(R17,Q17,1) -> 1970-01-01 | BY104: =DATE(V17,U17,1) -> 1970-01-01 | BZ104: 1 | CA104: 0 | CB104: 0 | CC104: =DATE(R18,Q18,1) -> 1970-01-01 | CD104: =DATE(V18,U18,1) -> 1970-01-01 | CE104: 1 | CF104: 0 | CG104: 0 | CH104: =DATE(R19,Q19,1) -> 1970-01-01 | CI104: =DATE(V19,U19,1) -> 1970-01-01 | CJ104: 1 | CK104: 0 | CL104: 0
AF105: 0 | AM105: 0 | AP105: 1900-01-01 | BD105: =W9 -> 2022-01-01 | BE105: =W14 -> 2022-03-01 | BF105: =VLOOKUP(BI105,AE5:AF140,2) ->  | BG105: =VLOOKUP(BI105,التسويات!$AU$5:$AX$59,2) -> 6 | BH105: =IF(K6="نعم",BF105,BG105) -> 6 | BI105: 1985-02-01 | BJ105: 0 | BK105: 1 | BL105: 0 | BM105: =VLOOKUP(BI105,التسويات!$AL$5:$AM$139,2) -> 0.005 | BN105: 0 | BO105: 0 | BP105: =IF(BI105>=T15,0,BM105*BO105) -> 0 | BQ105: =IF(BI105<BR1,BL105,0) -> 0 | BR105: =IF(BI105<BR1,BP105,0) -> 0 | BS105: =IFERROR(VLOOKUP(BI105,AP6:AQ138,2,FALSE),0) -> 0 | BT105: 0 | BU105: =IF(BI105<BR1,BS105,0) -> 0 | BW105: 0 | BX105: =DATE(R17,Q17,1) -> 1970-01-01 | BY105: =DATE(V17,U17,1) -> 1970-01-01 | BZ105: 1 | CA105: 0 | CB105: 0 | CC105: =DATE(R18,Q18,1) -> 1970-01-01 | CD105: =DATE(V18,U18,1) -> 1970-01-01 | CE105: 1 | CF105: 0 | CG105: 0 | CH105: =DATE(R19,Q19,1) -> 1970-01-01 | CI105: =DATE(V19,U19,1) -> 1970-01-01 | CJ105: 1 | CK105: 0 | CL105: 0
AF106: 0 | AM106: 0 | AP106: 1900-01-01 | BD106: =W9 -> 2022-01-01 | BE106: =W14 -> 2022-03-01 | BF106: =VLOOKUP(BI106,AE5:AF140,2) ->  | BG106: =VLOOKUP(BI106,التسويات!$AU$5:$AX$59,2) -> 6 | BH106: =IF(K6="نعم",BF106,BG106) -> 6 | BI106: 1985-03-01 | BJ106: 0 | BK106: 1 | BL106: 0 | BM106: =VLOOKUP(BI106,التسويات!$AL$5:$AM$139,2) -> 0.005 | BN106: 0 | BO106: 0 | BP106: =IF(BI106>=T15,0,BM106*BO106) -> 0 | BQ106: =IF(BI106<BR1,BL106,0) -> 0 | BR106: =IF(BI106<BR1,BP106,0) -> 0 | BS106: =IFERROR(VLOOKUP(BI106,AP6:AQ138,2,FALSE),0) -> 0 | BT106: 0 | BU106: =IF(BI106<BR1,BS106,0) -> 0 | BW106: 0 | BX106: =DATE(R17,Q17,1) -> 1970-01-01 | BY106: =DATE(V17,U17,1) -> 1970-01-01 | BZ106: 1 | CA106: 0 | CB106: 0 | CC106: =DATE(R18,Q18,1) -> 1970-01-01 | CD106: =DATE(V18,U18,1) -> 1970-01-01 | CE106: 1 | CF106: 0 | CG106: 0 | CH106: =DATE(R19,Q19,1) -> 1970-01-01 | CI106: =DATE(V19,U19,1) -> 1970-01-01 | CJ106: 1 | CK106: 0 | CL106: 0
AF107: 0 | AM107: 0 | AP107: 1900-01-01 | BD107: =W9 -> 2022-01-01 | BE107: =W14 -> 2022-03-01 | BF107: =VLOOKUP(BI107,AE5:AF140,2) ->  | BG107: =VLOOKUP(BI107,التسويات!$AU$5:$AX$59,2) -> 6 | BH107: =IF(K6="نعم",BF107,BG107) -> 6 | BI107: 1985-04-01 | BJ107: 0 | BK107: 1 | BL107: 0 | BM107: =VLOOKUP(BI107,التسويات!$AL$5:$AM$139,2) -> 0.005 | BN107: 0 | BO107: 0 | BP107: =IF(BI107>=T15,0,BM107*BO107) -> 0 | BQ107: =IF(BI107<BR1,BL107,0) -> 0 | BR107: =IF(BI107<BR1,BP107,0) -> 0 | BS107: =IFERROR(VLOOKUP(BI107,AP6:AQ138,2,FALSE),0) -> 0 | BT107: 0 | BU107: =IF(BI107<BR1,BS107,0) -> 0 | BW107: 0 | BX107: =DATE(R17,Q17,1) -> 1970-01-01 | BY107: =DATE(V17,U17,1) -> 1970-01-01 | BZ107: 1 | CA107: 0 | CB107: 0 | CC107: =DATE(R18,Q18,1) -> 1970-01-01 | CD107: =DATE(V18,U18,1) -> 1970-01-01 | CE107: 1 | CF107: 0 | CG107: 0 | CH107: =DATE(R19,Q19,1) -> 1970-01-01 | CI107: =DATE(V19,U19,1) -> 1970-01-01 | CJ107: 1 | CK107: 0 | CL107: 0
AF108: 0 | AM108: 0 | AP108: 1900-01-01 | BD108: =W9 -> 2022-01-01 | BE108: =W14 -> 2022-03-01 | BF108: =VLOOKUP(BI108,AE5:AF140,2) ->  | BG108: =VLOOKUP(BI108,التسويات!$AU$5:$AX$59,2) -> 6 | BH108: =IF(K6="نعم",BF108,BG108) -> 6 | BI108: 1985-05-01 | BJ108: 0 | BK108: 1 | BL108: 0 | BM108: =VLOOKUP(BI108,التسويات!$AL$5:$AM$139,2) -> 0.005 | BN108: 0 | BO108: 0 | BP108: =IF(BI108>=T15,0,BM108*BO108) -> 0 | BQ108: =IF(BI108<BR1,BL108,0) -> 0 | BR108: =IF(BI108<BR1,BP108,0) -> 0 | BS108: =IFERROR(VLOOKUP(BI108,AP6:AQ138,2,FALSE),0) -> 0 | BT108: 0 | BU108: =IF(BI108<BR1,BS108,0) -> 0 | BW108: 0 | BX108: =DATE(R17,Q17,1) -> 1970-01-01 | BY108: =DATE(V17,U17,1) -> 1970-01-01 | BZ108: 1 | CA108: 0 | CB108: 0 | CC108: =DATE(R18,Q18,1) -> 1970-01-01 | CD108: =DATE(V18,U18,1) -> 1970-01-01 | CE108: 1 | CF108: 0 | CG108: 0 | CH108: =DATE(R19,Q19,1) -> 1970-01-01 | CI108: =DATE(V19,U19,1) -> 1970-01-01 | CJ108: 1 | CK108: 0 | CL108: 0
AF109: 0 | AM109: 0 | AP109: 1900-01-01 | BD109: =W9 -> 2022-01-01 | BE109: =W14 -> 2022-03-01 | BF109: =VLOOKUP(BI109,AE5:AF140,2) ->  | BG109: =VLOOKUP(BI109,التسويات!$AU$5:$AX$59,2) -> 6 | BH109: =IF(K6="نعم",BF109,BG109) -> 6 | BI109: 1985-06-01 | BJ109: 0 | BK109: 1 | BL109: 0 | BM109: =VLOOKUP(BI109,التسويات!$AL$5:$AM$139,2) -> 0.005 | BN109: 0 | BO109: 0 | BP109: =IF(BI109>=T15,0,BM109*BO109) -> 0 | BQ109: =IF(BI109<BR1,BL109,0) -> 0 | BR109: =IF(BI109<BR1,BP109,0) -> 0 | BS109: =IFERROR(VLOOKUP(BI109,AP6:AQ138,2,FALSE),0) -> 0 | BT109: 0 | BU109: =IF(BI109<BR1,BS109,0) -> 0 | BW109: 0 | BX109: =DATE(R17,Q17,1) -> 1970-01-01 | BY109: =DATE(V17,U17,1) -> 1970-01-01 | BZ109: 1 | CA109: 0 | CB109: 0 | CC109: =DATE(R18,Q18,1) -> 1970-01-01 | CD109: =DATE(V18,U18,1) -> 1970-01-01 | CE109: 1 | CF109: 0 | CG109: 0 | CH109: =DATE(R19,Q19,1) -> 1970-01-01 | CI109: =DATE(V19,U19,1) -> 1970-01-01 | CJ109: 1 | CK109: 0 | CL109: 0
AF110: 0 | AM110: 0 | AP110: 1900-01-01 | BD110: =W9 -> 2022-01-01 | BE110: =W14 -> 2022-03-01 | BF110: =VLOOKUP(BI110,AE5:AF140,2) ->  | BG110: =VLOOKUP(BI110,التسويات!$AU$5:$AX$59,2) -> 6 | BH110: =IF(K6="نعم",BF110,BG110) -> 6 | BI110: 1985-07-01 | BJ110: 0 | BK110: 1 | BL110: 0 | BM110: =VLOOKUP(BI110,التسويات!$AL$5:$AM$139,2) -> 0.005 | BN110: 0 | BO110: 0 | BP110: =IF(BI110>=T15,0,BM110*BO110) -> 0 | BQ110: =IF(BI110<BR1,BL110,0) -> 0 | BR110: =IF(BI110<BR1,BP110,0) -> 0 | BS110: =IFERROR(VLOOKUP(BI110,AP6:AQ138,2,FALSE),0) -> 0 | BT110: 0 | BU110: =IF(BI110<BR1,BS110,0) -> 0 | BW110: 0 | BX110: =DATE(R17,Q17,1) -> 1970-01-01 | BY110: =DATE(V17,U17,1) -> 1970-01-01 | BZ110: 1 | CA110: 0 | CB110: 0 | CC110: =DATE(R18,Q18,1) -> 1970-01-01 | CD110: =DATE(V18,U18,1) -> 1970-01-01 | CE110: 1 | CF110: 0 | CG110: 0 | CH110: =DATE(R19,Q19,1) -> 1970-01-01 | CI110: =DATE(V19,U19,1) -> 1970-01-01 | CJ110: 1 | CK110: 0 | CL110: 0
AF111: 0 | AM111: 0 | AP111: 1900-01-01 | BD111: =W9 -> 2022-01-01 | BE111: =W14 -> 2022-03-01 | BF111: =VLOOKUP(BI111,AE5:AF140,2) ->  | BG111: =VLOOKUP(BI111,التسويات!$AU$5:$AX$59,2) -> 6 | BH111: =IF(K6="نعم",BF111,BG111) -> 6 | BI111: 1985-08-01 | BJ111: 0 | BK111: 1 | BL111: 0 | BM111: =VLOOKUP(BI111,التسويات!$AL$5:$AM$139,2) -> 0.005 | BN111: 0 | BO111: 0 | BP111: =IF(BI111>=T15,0,BM111*BO111) -> 0 | BQ111: =IF(BI111<BR1,BL111,0) -> 0 | BR111: =IF(BI111<BR1,BP111,0) -> 0 | BS111: =IFERROR(VLOOKUP(BI111,AP6:AQ138,2,FALSE),0) -> 0 | BT111: 0 | BU111: =IF(BI111<BR1,BS111,0) -> 0 | BW111: 0 | BX111: =DATE(R17,Q17,1) -> 1970-01-01 | BY111: =DATE(V17,U17,1) -> 1970-01-01 | BZ111: 1 | CA111: 0 | CB111: 0 | CC111: =DATE(R18,Q18,1) -> 1970-01-01 | CD111: =DATE(V18,U18,1) -> 1970-01-01 | CE111: 1 | CF111: 0 | CG111: 0 | CH111: =DATE(R19,Q19,1) -> 1970-01-01 | CI111: =DATE(V19,U19,1) -> 1970-01-01 | CJ111: 1 | CK111: 0 | CL111: 0
AF112: 0 | AM112: 0 | AP112: 1900-01-01 | BD112: =W9 -> 2022-01-01 | BE112: =W14 -> 2022-03-01 | BF112: =VLOOKUP(BI112,AE5:AF140,2) ->  | BG112: =VLOOKUP(BI112,التسويات!$AU$5:$AX$59,2) -> 6 | BH112: =IF(K6="نعم",BF112,BG112) -> 6 | BI112: 1985-09-01 | BJ112: 0 | BK112: 1 | BL112: 0 | BM112: =VLOOKUP(BI112,التسويات!$AL$5:$AM$139,2) -> 0.005 | BN112: 0 | BO112: 0 | BP112: =IF(BI112>=T15,0,BM112*BO112) -> 0 | BQ112: =IF(BI112<BR1,BL112,0) -> 0 | BR112: =IF(BI112<BR1,BP112,0) -> 0 | BS112: =IFERROR(VLOOKUP(BI112,AP6:AQ138,2,FALSE),0) -> 0 | BT112: 0 | BU112: =IF(BI112<BR1,BS112,0) -> 0 | BW112: 0 | BX112: =DATE(R17,Q17,1) -> 1970-01-01 | BY112: =DATE(V17,U17,1) -> 1970-01-01 | BZ112: 1 | CA112: 0 | CB112: 0 | CC112: =DATE(R18,Q18,1) -> 1970-01-01 | CD112: =DATE(V18,U18,1) -> 1970-01-01 | CE112: 1 | CF112: 0 | CG112: 0 | CH112: =DATE(R19,Q19,1) -> 1970-01-01 | CI112: =DATE(V19,U19,1) -> 1970-01-01 | CJ112: 1 | CK112: 0 | CL112: 0
AF113: 0 | AM113: 0 | AP113: 1900-01-01 | BD113: =W9 -> 2022-01-01 | BE113: =W14 -> 2022-03-01 | BF113: =VLOOKUP(BI113,AE5:AF140,2) ->  | BG113: =VLOOKUP(BI113,التسويات!$AU$5:$AX$59,2) -> 6 | BH113: =IF(K6="نعم",BF113,BG113) -> 6 | BI113: 1985-10-01 | BJ113: 0 | BK113: 1 | BL113: 0 | BM113: =VLOOKUP(BI113,التسويات!$AL$5:$AM$139,2) -> 0.005 | BN113: 0 | BO113: 0 | BP113: =IF(BI113>=T15,0,BM113*BO113) -> 0 | BQ113: =IF(BI113<BR1,BL113,0) -> 0 | BR113: =IF(BI113<BR1,BP113,0) -> 0 | BS113: =IFERROR(VLOOKUP(BI113,AP6:AQ138,2,FALSE),0) -> 0 | BT113: 0 | BU113: =IF(BI113<BR1,BS113,0) -> 0 | BW113: 0 | BX113: =DATE(R17,Q17,1) -> 1970-01-01 | BY113: =DATE(V17,U17,1) -> 1970-01-01 | BZ113: 1 | CA113: 0 | CB113: 0 | CC113: =DATE(R18,Q18,1) -> 1970-01-01 | CD113: =DATE(V18,U18,1) -> 1970-01-01 | CE113: 1 | CF113: 0 | CG113: 0 | CH113: =DATE(R19,Q19,1) -> 1970-01-01 | CI113: =DATE(V19,U19,1) -> 1970-01-01 | CJ113: 1 | CK113: 0 | CL113: 0
AF114: 0 | AM114: 0 | AP114: 1900-01-01 | BD114: =W9 -> 2022-01-01 | BE114: =W14 -> 2022-03-01 | BF114: =VLOOKUP(BI114,AE5:AF140,2) ->  | BG114: =VLOOKUP(BI114,التسويات!$AU$5:$AX$59,2) -> 6 | BH114: =IF(K6="نعم",BF114,BG114) -> 6 | BI114: 1985-11-01 | BJ114: 0 | BK114: 1 | BL114: 0 | BM114: =VLOOKUP(BI114,التسويات!$AL$5:$AM$139,2) -> 0.005 | BN114: 0 | BO114: 0 | BP114: =IF(BI114>=T15,0,BM114*BO114) -> 0 | BQ114: =IF(BI114<BR1,BL114,0) -> 0 | BR114: =IF(BI114<BR1,BP114,0) -> 0 | BS114: =IFERROR(VLOOKUP(BI114,AP6:AQ138,2,FALSE),0) -> 0 | BT114: 0 | BU114: =IF(BI114<BR1,BS114,0) -> 0 | BW114: 0 | BX114: =DATE(R17,Q17,1) -> 1970-01-01 | BY114: =DATE(V17,U17,1) -> 1970-01-01 | BZ114: 1 | CA114: 0 | CB114: 0 | CC114: =DATE(R18,Q18,1) -> 1970-01-01 | CD114: =DATE(V18,U18,1) -> 1970-01-01 | CE114: 1 | CF114: 0 | CG114: 0 | CH114: =DATE(R19,Q19,1) -> 1970-01-01 | CI114: =DATE(V19,U19,1) -> 1970-01-01 | CJ114: 1 | CK114: 0 | CL114: 0
AF115: 0 | AM115: 0 | AP115: 1900-01-01 | BD115: =W9 -> 2022-01-01 | BE115: =W14 -> 2022-03-01 | BF115: =VLOOKUP(BI115,AE5:AF140,2) ->  | BG115: =VLOOKUP(BI115,التسويات!$AU$5:$AX$59,2) -> 6 | BH115: =IF(K6="نعم",BF115,BG115) -> 6 | BI115: 1985-12-01 | BJ115: 0 | BK115: 1 | BL115: 0 | BM115: =VLOOKUP(BI115,التسويات!$AL$5:$AM$139,2) -> 0.005 | BN115: 0 | BO115: 0 | BP115: =IF(BI115>=T15,0,BM115*BO115) -> 0 | BQ115: =IF(BI115<BR1,BL115,0) -> 0 | BR115: =IF(BI115<BR1,BP115,0) -> 0 | BS115: =IFERROR(VLOOKUP(BI115,AP6:AQ138,2,FALSE),0) -> 0 | BT115: 0 | BU115: =IF(BI115<BR1,BS115,0) -> 0 | BW115: 0 | BX115: =DATE(R17,Q17,1) -> 1970-01-01 | BY115: =DATE(V17,U17,1) -> 1970-01-01 | BZ115: 1 | CA115: 0 | CB115: 0 | CC115: =DATE(R18,Q18,1) -> 1970-01-01 | CD115: =DATE(V18,U18,1) -> 1970-01-01 | CE115: 1 | CF115: 0 | CG115: 0 | CH115: =DATE(R19,Q19,1) -> 1970-01-01 | CI115: =DATE(V19,U19,1) -> 1970-01-01 | CJ115: 1 | CK115: 0 | CL115: 0
AF116: 0 | AM116: 0 | AP116: 1900-01-01 | BD116: =W9 -> 2022-01-01 | BE116: =W14 -> 2022-03-01 | BF116: =VLOOKUP(BI116,AE5:AF140,2) ->  | BG116: =VLOOKUP(BI116,التسويات!$AU$5:$AX$59,2) -> 6 | BH116: =IF(K6="نعم",BF116,BG116) -> 6 | BI116: 1986-01-01 | BJ116: 0 | BK116: 1 | BL116: 0 | BM116: =VLOOKUP(BI116,التسويات!$AL$5:$AM$139,2) -> 0.005 | BN116: 0 | BO116: 0 | BP116: =IF(BI116>=T15,0,BM116*BO116) -> 0 | BQ116: =IF(BI116<BR1,BL116,0) -> 0 | BR116: =IF(BI116<BR1,BP116,0) -> 0 | BS116: =IFERROR(VLOOKUP(BI116,AP6:AQ138,2,FALSE),0) -> 0 | BT116: 0 | BU116: =IF(BI116<BR1,BS116,0) -> 0 | BW116: 0 | BX116: =DATE(R17,Q17,1) -> 1970-01-01 | BY116: =DATE(V17,U17,1) -> 1970-01-01 | BZ116: 1 | CA116: 0 | CB116: 0 | CC116: =DATE(R18,Q18,1) -> 1970-01-01 | CD116: =DATE(V18,U18,1) -> 1970-01-01 | CE116: 1 | CF116: 0 | CG116: 0 | CH116: =DATE(R19,Q19,1) -> 1970-01-01 | CI116: =DATE(V19,U19,1) -> 1970-01-01 | CJ116: 1 | CK116: 0 | CL116: 0
AF117: 0 | AM117: 0 | AP117: 1900-01-01 | BD117: =W9 -> 2022-01-01 | BE117: =W14 -> 2022-03-01 | BF117: =VLOOKUP(BI117,AE5:AF140,2) ->  | BG117: =VLOOKUP(BI117,التسويات!$AU$5:$AX$59,2) -> 6 | BH117: =IF(K6="نعم",BF117,BG117) -> 6 | BI117: 1986-02-01 | BJ117: 0 | BK117: 1 | BL117: 0 | BM117: =VLOOKUP(BI117,التسويات!$AL$5:$AM$139,2) -> 0.005 | BN117: 0 | BO117: 0 | BP117: =IF(BI117>=T15,0,BM117*BO117) -> 0 | BQ117: =IF(BI117<BR1,BL117,0) -> 0 | BR117: =IF(BI117<BR1,BP117,0) -> 0 | BS117: =IFERROR(VLOOKUP(BI117,AP6:AQ138,2,FALSE),0) -> 0 | BT117: 0 | BU117: =IF(BI117<BR1,BS117,0) -> 0 | BW117: 0 | BX117: =DATE(R17,Q17,1) -> 1970-01-01 | BY117: =DATE(V17,U17,1) -> 1970-01-01 | BZ117: 1 | CA117: 0 | CB117: 0 | CC117: =DATE(R18,Q18,1) -> 1970-01-01 | CD117: =DATE(V18,U18,1) -> 1970-01-01 | CE117: 1 | CF117: 0 | CG117: 0 | CH117: =DATE(R19,Q19,1) -> 1970-01-01 | CI117: =DATE(V19,U19,1) -> 1970-01-01 | CJ117: 1 | CK117: 0 | CL117: 0
AF118: 0 | AM118: 0 | AP118: 1900-01-01 | BD118: =W9 -> 2022-01-01 | BE118: =W14 -> 2022-03-01 | BF118: =VLOOKUP(BI118,AE5:AF140,2) ->  | BG118: =VLOOKUP(BI118,التسويات!$AU$5:$AX$59,2) -> 6 | BH118: =IF(K6="نعم",BF118,BG118) -> 6 | BI118: 1986-03-01 | BJ118: 0 | BK118: 1 | BL118: 0 | BM118: =VLOOKUP(BI118,التسويات!$AL$5:$AM$139,2) -> 0.005 | BN118: 0 | BO118: 0 | BP118: =IF(BI118>=T15,0,BM118*BO118) -> 0 | BQ118: =IF(BI118<BR1,BL118,0) -> 0 | BR118: =IF(BI118<BR1,BP118,0) -> 0 | BS118: =IFERROR(VLOOKUP(BI118,AP6:AQ138,2,FALSE),0) -> 0 | BT118: 0 | BU118: =IF(BI118<BR1,BS118,0) -> 0 | BW118: 0 | BX118: =DATE(R17,Q17,1) -> 1970-01-01 | BY118: =DATE(V17,U17,1) -> 1970-01-01 | BZ118: 1 | CA118: 0 | CB118: 0 | CC118: =DATE(R18,Q18,1) -> 1970-01-01 | CD118: =DATE(V18,U18,1) -> 1970-01-01 | CE118: 1 | CF118: 0 | CG118: 0 | CH118: =DATE(R19,Q19,1) -> 1970-01-01 | CI118: =DATE(V19,U19,1) -> 1970-01-01 | CJ118: 1 | CK118: 0 | CL118: 0
AF119: 0 | AM119: 0 | AP119: 1900-01-01 | BD119: =W9 -> 2022-01-01 | BE119: =W14 -> 2022-03-01 | BF119: =VLOOKUP(BI119,AE5:AF140,2) ->  | BG119: =VLOOKUP(BI119,التسويات!$AU$5:$AX$59,2) -> 6 | BH119: =IF(K6="نعم",BF119,BG119) -> 6 | BI119: 1986-04-01 | BJ119: 0 | BK119: 1 | BL119: 0 | BM119: =VLOOKUP(BI119,التسويات!$AL$5:$AM$139,2) -> 0.005 | BN119: 0 | BO119: 0 | BP119: =IF(BI119>=T15,0,BM119*BO119) -> 0 | BQ119: =IF(BI119<BR1,BL119,0) -> 0 | BR119: =IF(BI119<BR1,BP119,0) -> 0 | BS119: =IFERROR(VLOOKUP(BI119,AP6:AQ138,2,FALSE),0) -> 0 | BT119: 0 | BU119: =IF(BI119<BR1,BS119,0) -> 0 | BW119: 0 | BX119: =DATE(R17,Q17,1) -> 1970-01-01 | BY119: =DATE(V17,U17,1) -> 1970-01-01 | BZ119: 1 | CA119: 0 | CB119: 0 | CC119: =DATE(R18,Q18,1) -> 1970-01-01 | CD119: =DATE(V18,U18,1) -> 1970-01-01 | CE119: 1 | CF119: 0 | CG119: 0 | CH119: =DATE(R19,Q19,1) -> 1970-01-01 | CI119: =DATE(V19,U19,1) -> 1970-01-01 | CJ119: 1 | CK119: 0 | CL119: 0
AF120: 0 | AM120: 0 | AP120: 1900-01-01 | BD120: =W9 -> 2022-01-01 | BE120: =W14 -> 2022-03-01 | BF120: =VLOOKUP(BI120,AE5:AF140,2) ->  | BG120: =VLOOKUP(BI120,التسويات!$AU$5:$AX$59,2) -> 6 | BH120: =IF(K6="نعم",BF120,BG120) -> 6 | BI120: 1986-05-01 | BJ120: 0 | BK120: 1 | BL120: 0 | BM120: =VLOOKUP(BI120,التسويات!$AL$5:$AM$139,2) -> 0.005 | BN120: 0 | BO120: 0 | BP120: =IF(BI120>=T15,0,BM120*BO120) -> 0 | BQ120: =IF(BI120<BR1,BL120,0) -> 0 | BR120: =IF(BI120<BR1,BP120,0) -> 0 | BS120: =IFERROR(VLOOKUP(BI120,AP6:AQ138,2,FALSE),0) -> 0 | BT120: 0 | BU120: =IF(BI120<BR1,BS120,0) -> 0 | BW120: 0 | BX120: =DATE(R17,Q17,1) -> 1970-01-01 | BY120: =DATE(V17,U17,1) -> 1970-01-01 | BZ120: 1 | CA120: 0 | CB120: 0 | CC120: =DATE(R18,Q18,1) -> 1970-01-01 | CD120: =DATE(V18,U18,1) -> 1970-01-01 | CE120: 1 | CF120: 0 | CG120: 0 | CH120: =DATE(R19,Q19,1) -> 1970-01-01 | CI120: =DATE(V19,U19,1) -> 1970-01-01 | CJ120: 1 | CK120: 0 | CL120: 0
AF121: 0 | AM121: 0 | AP121: 1900-01-01 | BD121: =W9 -> 2022-01-01 | BE121: =W14 -> 2022-03-01 | BF121: =VLOOKUP(BI121,AE5:AF140,2) ->  | BG121: =VLOOKUP(BI121,التسويات!$AU$5:$AX$59,2) -> 6 | BH121: =IF(K6="نعم",BF121,BG121) -> 6 | BI121: 1986-06-01 | BJ121: 0 | BK121: 1 | BL121: 0 | BM121: =VLOOKUP(BI121,التسويات!$AL$5:$AM$139,2) -> 0.005 | BN121: 0 | BO121: 0 | BP121: =IF(BI121>=T15,0,BM121*BO121) -> 0 | BQ121: =IF(BI121<BR1,BL121,0) -> 0 | BR121: =IF(BI121<BR1,BP121,0) -> 0 | BS121: =IFERROR(VLOOKUP(BI121,AP6:AQ138,2,FALSE),0) -> 0 | BT121: 0 | BU121: =IF(BI121<BR1,BS121,0) -> 0 | BW121: 0 | BX121: =DATE(R17,Q17,1) -> 1970-01-01 | BY121: =DATE(V17,U17,1) -> 1970-01-01 | BZ121: 1 | CA121: 0 | CB121: 0 | CC121: =DATE(R18,Q18,1) -> 1970-01-01 | CD121: =DATE(V18,U18,1) -> 1970-01-01 | CE121: 1 | CF121: 0 | CG121: 0 | CH121: =DATE(R19,Q19,1) -> 1970-01-01 | CI121: =DATE(V19,U19,1) -> 1970-01-01 | CJ121: 1 | CK121: 0 | CL121: 0
AF122: 0 | AM122: 0 | AP122: 1900-01-01 | BD122: =W9 -> 2022-01-01 | BE122: =W14 -> 2022-03-01 | BF122: =VLOOKUP(BI122,AE5:AF140,2) ->  | BG122: =VLOOKUP(BI122,التسويات!$AU$5:$AX$59,2) -> 6 | BH122: =IF(K6="نعم",BF122,BG122) -> 6 | BI122: 1986-07-01 | BJ122: 0 | BK122: 1 | BL122: 0 | BM122: =VLOOKUP(BI122,التسويات!$AL$5:$AM$139,2) -> 0.005 | BN122: 0 | BO122: 0 | BP122: =IF(BI122>=T15,0,BM122*BO122) -> 0 | BQ122: =IF(BI122<BR1,BL122,0) -> 0 | BR122: =IF(BI122<BR1,BP122,0) -> 0 | BS122: =IFERROR(VLOOKUP(BI122,AP6:AQ138,2,FALSE),0) -> 0 | BT122: 0 | BU122: =IF(BI122<BR1,BS122,0) -> 0 | BW122: 0 | BX122: =DATE(R17,Q17,1) -> 1970-01-01 | BY122: =DATE(V17,U17,1) -> 1970-01-01 | BZ122: 1 | CA122: 0 | CB122: 0 | CC122: =DATE(R18,Q18,1) -> 1970-01-01 | CD122: =DATE(V18,U18,1) -> 1970-01-01 | CE122: 1 | CF122: 0 | CG122: 0 | CH122: =DATE(R19,Q19,1) -> 1970-01-01 | CI122: =DATE(V19,U19,1) -> 1970-01-01 | CJ122: 1 | CK122: 0 | CL122: 0
AF123: 0 | AM123: 0 | AP123: 1900-01-01 | BD123: =W9 -> 2022-01-01 | BE123: =W14 -> 2022-03-01 | BF123: =VLOOKUP(BI123,AE5:AF140,2) ->  | BG123: =VLOOKUP(BI123,التسويات!$AU$5:$AX$59,2) -> 6 | BH123: =IF(K6="نعم",BF123,BG123) -> 6 | BI123: 1986-08-01 | BJ123: 0 | BK123: 1 | BL123: 0 | BM123: =VLOOKUP(BI123,التسويات!$AL$5:$AM$139,2) -> 0.005 | BN123: 0 | BO123: 0 | BP123: =IF(BI123>=T15,0,BM123*BO123) -> 0 | BQ123: =IF(BI123<BR1,BL123,0) -> 0 | BR123: =IF(BI123<BR1,BP123,0) -> 0 | BS123: =IFERROR(VLOOKUP(BI123,AP6:AQ138,2,FALSE),0) -> 0 | BT123: 0 | BU123: =IF(BI123<BR1,BS123,0) -> 0 | BW123: 0 | BX123: =DATE(R17,Q17,1) -> 1970-01-01 | BY123: =DATE(V17,U17,1) -> 1970-01-01 | BZ123: 1 | CA123: 0 | CB123: 0 | CC123: =DATE(R18,Q18,1) -> 1970-01-01 | CD123: =DATE(V18,U18,1) -> 1970-01-01 | CE123: 1 | CF123: 0 | CG123: 0 | CH123: =DATE(R19,Q19,1) -> 1970-01-01 | CI123: =DATE(V19,U19,1) -> 1970-01-01 | CJ123: 1 | CK123: 0 | CL123: 0
AF124: 0 | AM124: 0 | AP124: 1900-01-01 | BD124: =W9 -> 2022-01-01 | BE124: =W14 -> 2022-03-01 | BF124: =VLOOKUP(BI124,AE5:AF140,2) ->  | BG124: =VLOOKUP(BI124,التسويات!$AU$5:$AX$59,2) -> 6 | BH124: =IF(K6="نعم",BF124,BG124) -> 6 | BI124: 1986-09-01 | BJ124: 0 | BK124: 1 | BL124: 0 | BM124: =VLOOKUP(BI124,التسويات!$AL$5:$AM$139,2) -> 0.005 | BN124: 0 | BO124: 0 | BP124: =IF(BI124>=T15,0,BM124*BO124) -> 0 | BQ124: =IF(BI124<BR1,BL124,0) -> 0 | BR124: =IF(BI124<BR1,BP124,0) -> 0 | BS124: =IFERROR(VLOOKUP(BI124,AP6:AQ138,2,FALSE),0) -> 0 | BT124: 0 | BU124: =IF(BI124<BR1,BS124,0) -> 0 | BW124: 0 | BX124: =DATE(R17,Q17,1) -> 1970-01-01 | BY124: =DATE(V17,U17,1) -> 1970-01-01 | BZ124: 1 | CA124: 0 | CB124: 0 | CC124: =DATE(R18,Q18,1) -> 1970-01-01 | CD124: =DATE(V18,U18,1) -> 1970-01-01 | CE124: 1 | CF124: 0 | CG124: 0 | CH124: =DATE(R19,Q19,1) -> 1970-01-01 | CI124: =DATE(V19,U19,1) -> 1970-01-01 | CJ124: 1 | CK124: 0 | CL124: 0
AF125: 0 | AM125: 0 | AP125: 1900-01-01 | BD125: =W9 -> 2022-01-01 | BE125: =W14 -> 2022-03-01 | BF125: =VLOOKUP(BI125,AE5:AF140,2) ->  | BG125: =VLOOKUP(BI125,التسويات!$AU$5:$AX$59,2) -> 6 | BH125: =IF(K6="نعم",BF125,BG125) -> 6 | BI125: 1986-10-01 | BJ125: 0 | BK125: 1 | BL125: 0 | BM125: =VLOOKUP(BI125,التسويات!$AL$5:$AM$139,2) -> 0.005 | BN125: 0 | BO125: 0 | BP125: =IF(BI125>=T15,0,BM125*BO125) -> 0 | BQ125: =IF(BI125<BR1,BL125,0) -> 0 | BR125: =IF(BI125<BR1,BP125,0) -> 0 | BS125: =IFERROR(VLOOKUP(BI125,AP6:AQ138,2,FALSE),0) -> 0 | BT125: 0 | BU125: =IF(BI125<BR1,BS125,0) -> 0 | BW125: 0 | BX125: =DATE(R17,Q17,1) -> 1970-01-01 | BY125: =DATE(V17,U17,1) -> 1970-01-01 | BZ125: 1 | CA125: 0 | CB125: 0 | CC125: =DATE(R18,Q18,1) -> 1970-01-01 | CD125: =DATE(V18,U18,1) -> 1970-01-01 | CE125: 1 | CF125: 0 | CG125: 0 | CH125: =DATE(R19,Q19,1) -> 1970-01-01 | CI125: =DATE(V19,U19,1) -> 1970-01-01 | CJ125: 1 | CK125: 0 | CL125: 0
AF126: 0 | AM126: 0 | AP126: 1900-01-01 | BD126: =W9 -> 2022-01-01 | BE126: =W14 -> 2022-03-01 | BF126: =VLOOKUP(BI126,AE5:AF140,2) ->  | BG126: =VLOOKUP(BI126,التسويات!$AU$5:$AX$59,2) -> 6 | BH126: =IF(K6="نعم",BF126,BG126) -> 6 | BI126: 1986-11-01 | BJ126: 0 | BK126: 1 | BL126: 0 | BM126: =VLOOKUP(BI126,التسويات!$AL$5:$AM$139,2) -> 0.005 | BN126: 0 | BO126: 0 | BP126: =IF(BI126>=T15,0,BM126*BO126) -> 0 | BQ126: =IF(BI126<BR1,BL126,0) -> 0 | BR126: =IF(BI126<BR1,BP126,0) -> 0 | BS126: =IFERROR(VLOOKUP(BI126,AP6:AQ138,2,FALSE),0) -> 0 | BT126: 0 | BU126: =IF(BI126<BR1,BS126,0) -> 0 | BW126: 0 | BX126: =DATE(R17,Q17,1) -> 1970-01-01 | BY126: =DATE(V17,U17,1) -> 1970-01-01 | BZ126: 1 | CA126: 0 | CB126: 0 | CC126: =DATE(R18,Q18,1) -> 1970-01-01 | CD126: =DATE(V18,U18,1) -> 1970-01-01 | CE126: 1 | CF126: 0 | CG126: 0 | CH126: =DATE(R19,Q19,1) -> 1970-01-01 | CI126: =DATE(V19,U19,1) -> 1970-01-01 | CJ126: 1 | CK126: 0 | CL126: 0
AF127: 0 | AM127: 0 | AP127: 1900-01-01 | BD127: =W9 -> 2022-01-01 | BE127: =W14 -> 2022-03-01 | BF127: =VLOOKUP(BI127,AE5:AF140,2) ->  | BG127: =VLOOKUP(BI127,التسويات!$AU$5:$AX$59,2) -> 6 | BH127: =IF(K6="نعم",BF127,BG127) -> 6 | BI127: 1986-12-01 | BJ127: 0 | BK127: 1 | BL127: 0 | BM127: =VLOOKUP(BI127,التسويات!$AL$5:$AM$139,2) -> 0.005 | BN127: 0 | BO127: 0 | BP127: =IF(BI127>=T15,0,BM127*BO127) -> 0 | BQ127: =IF(BI127<BR1,BL127,0) -> 0 | BR127: =IF(BI127<BR1,BP127,0) -> 0 | BS127: =IFERROR(VLOOKUP(BI127,AP6:AQ138,2,FALSE),0) -> 0 | BT127: 0 | BU127: =IF(BI127<BR1,BS127,0) -> 0 | BW127: 0 | BX127: =DATE(R17,Q17,1) -> 1970-01-01 | BY127: =DATE(V17,U17,1) -> 1970-01-01 | BZ127: 1 | CA127: 0 | CB127: 0 | CC127: =DATE(R18,Q18,1) -> 1970-01-01 | CD127: =DATE(V18,U18,1) -> 1970-01-01 | CE127: 1 | CF127: 0 | CG127: 0 | CH127: =DATE(R19,Q19,1) -> 1970-01-01 | CI127: =DATE(V19,U19,1) -> 1970-01-01 | CJ127: 1 | CK127: 0 | CL127: 0
AF128: 0 | AM128: 0 | AP128: 1900-01-01 | BD128: =W9 -> 2022-01-01 | BE128: =W14 -> 2022-03-01 | BF128: =VLOOKUP(BI128,AE5:AF140,2) ->  | BG128: =VLOOKUP(BI128,التسويات!$AU$5:$AX$59,2) -> 6 | BH128: =IF(K6="نعم",BF128,BG128) -> 6 | BI128: 1987-01-01 | BJ128: 0 | BK128: 1 | BL128: 0 | BM128: =VLOOKUP(BI128,التسويات!$AL$5:$AM$139,2) -> 0.005 | BN128: 0 | BO128: 0 | BP128: =IF(BI128>=T15,0,BM128*BO128) -> 0 | BQ128: =IF(BI128<BR1,BL128,0) -> 0 | BR128: =IF(BI128<BR1,BP128,0) -> 0 | BS128: =IFERROR(VLOOKUP(BI128,AP6:AQ138,2,FALSE),0) -> 0 | BT128: 0 | BU128: =IF(BI128<BR1,BS128,0) -> 0 | BW128: 0 | BX128: =DATE(R17,Q17,1) -> 1970-01-01 | BY128: =DATE(V17,U17,1) -> 1970-01-01 | BZ128: 1 | CA128: 0 | CB128: 0 | CC128: =DATE(R18,Q18,1) -> 1970-01-01 | CD128: =DATE(V18,U18,1) -> 1970-01-01 | CE128: 1 | CF128: 0 | CG128: 0 | CH128: =DATE(R19,Q19,1) -> 1970-01-01 | CI128: =DATE(V19,U19,1) -> 1970-01-01 | CJ128: 1 | CK128: 0 | CL128: 0
AF129: 0 | AM129: 0 | AP129: 1900-01-01 | BD129: =W9 -> 2022-01-01 | BE129: =W14 -> 2022-03-01 | BF129: =VLOOKUP(BI129,AE5:AF140,2) ->  | BG129: =VLOOKUP(BI129,التسويات!$AU$5:$AX$59,2) -> 6 | BH129: =IF(K6="نعم",BF129,BG129) -> 6 | BI129: 1987-02-01 | BJ129: 0 | BK129: 1 | BL129: 0 | BM129: =VLOOKUP(BI129,التسويات!$AL$5:$AM$139,2) -> 0.005 | BN129: 0 | BO129: 0 | BP129: =IF(BI129>=T15,0,BM129*BO129) -> 0 | BQ129: =IF(BI129<BR1,BL129,0) -> 0 | BR129: =IF(BI129<BR1,BP129,0) -> 0 | BS129: =IFERROR(VLOOKUP(BI129,AP6:AQ138,2,FALSE),0) -> 0 | BT129: 0 | BU129: =IF(BI129<BR1,BS129,0) -> 0 | BW129: 0 | BX129: =DATE(R17,Q17,1) -> 1970-01-01 | BY129: =DATE(V17,U17,1) -> 1970-01-01 | BZ129: 1 | CA129: 0 | CB129: 0 | CC129: =DATE(R18,Q18,1) -> 1970-01-01 | CD129: =DATE(V18,U18,1) -> 1970-01-01 | CE129: 1 | CF129: 0 | CG129: 0 | CH129: =DATE(R19,Q19,1) -> 1970-01-01 | CI129: =DATE(V19,U19,1) -> 1970-01-01 | CJ129: 1 | CK129: 0 | CL129: 0
AF130: 0 | AM130: 0 | AP130: 1900-01-01 | BD130: =W9 -> 2022-01-01 | BE130: =W14 -> 2022-03-01 | BF130: =VLOOKUP(BI130,AE5:AF140,2) ->  | BG130: =VLOOKUP(BI130,التسويات!$AU$5:$AX$59,2) -> 6 | BH130: =IF(K6="نعم",BF130,BG130) -> 6 | BI130: 1987-03-01 | BJ130: 0 | BK130: 1 | BL130: 0 | BM130: =VLOOKUP(BI130,التسويات!$AL$5:$AM$139,2) -> 0.005 | BN130: 0 | BO130: 0 | BP130: =IF(BI130>=T15,0,BM130*BO130) -> 0 | BQ130: =IF(BI130<BR1,BL130,0) -> 0 | BR130: =IF(BI130<BR1,BP130,0) -> 0 | BS130: =IFERROR(VLOOKUP(BI130,AP6:AQ138,2,FALSE),0) -> 0 | BT130: 0 | BU130: =IF(BI130<BR1,BS130,0) -> 0 | BW130: 0 | BX130: =DATE(R17,Q17,1) -> 1970-01-01 | BY130: =DATE(V17,U17,1) -> 1970-01-01 | BZ130: 1 | CA130: 0 | CB130: 0 | CC130: =DATE(R18,Q18,1) -> 1970-01-01 | CD130: =DATE(V18,U18,1) -> 1970-01-01 | CE130: 1 | CF130: 0 | CG130: 0 | CH130: =DATE(R19,Q19,1) -> 1970-01-01 | CI130: =DATE(V19,U19,1) -> 1970-01-01 | CJ130: 1 | CK130: 0 | CL130: 0
AF131: 0 | AM131: 0 | AP131: 1900-01-01 | BD131: =W9 -> 2022-01-01 | BE131: =W14 -> 2022-03-01 | BF131: =VLOOKUP(BI131,AE5:AF140,2) ->  | BG131: =VLOOKUP(BI131,التسويات!$AU$5:$AX$59,2) -> 6 | BH131: =IF(K6="نعم",BF131,BG131) -> 6 | BI131: 1987-04-01 | BJ131: 0 | BK131: 1 | BL131: 0 | BM131: =VLOOKUP(BI131,التسويات!$AL$5:$AM$139,2) -> 0.005 | BN131: =BN130+BL131 -> 0 | BO131: 0 | BP131: =IF(BI131>=T15,0,BM131*BO131) -> 0 | BQ131: =IF(BI131<BR1,BL131,0) -> 0 | BR131: =IF(BI131<BR1,BP131,0) -> 0 | BS131: =IFERROR(VLOOKUP(BI131,AP6:AQ138,2,FALSE),0) -> 0 | BT131: =BT130+BS131 -> 0 | BU131: =IF(BI131<BR1,BS131,0) -> 0 | BW131: 0 | BX131: =DATE(R17,Q17,1) -> 1970-01-01 | BY131: =DATE(V17,U17,1) -> 1970-01-01 | BZ131: 1 | CA131: 0 | CB131: 0 | CC131: =DATE(R18,Q18,1) -> 1970-01-01 | CD131: =DATE(V18,U18,1) -> 1970-01-01 | CE131: 1 | CF131: 0 | CG131: 0 | CH131: =DATE(R19,Q19,1) -> 1970-01-01 | CI131: =DATE(V19,U19,1) -> 1970-01-01 | CJ131: 1 | CK131: 0 | CL131: 0
AF132: 0 | AM132: 0 | AP132: 1900-01-01 | BD132: =W9 -> 2022-01-01 | BE132: =W14 -> 2022-03-01 | BF132: =VLOOKUP(BI132,AE5:AF140,2) ->  | BG132: =VLOOKUP(BI132,التسويات!$AU$5:$AX$59,2) -> 6 | BH132: =IF(K6="نعم",BF132,BG132) -> 6 | BI132: 1987-05-01 | BJ132: 0 | BK132: 1 | BL132: 0 | BM132: =VLOOKUP(BI132,التسويات!$AL$5:$AM$139,2) -> 0.005 | BN132: 0 | BO132: 0 | BP132: =IF(BI132>=T15,0,BM132*BO132) -> 0 | BQ132: =IF(BI132<BR1,BL132,0) -> 0 | BR132: =IF(BI132<BR1,BP132,0) -> 0 | BS132: =IFERROR(VLOOKUP(BI132,AP6:AQ138,2,FALSE),0) -> 0 | BT132: 0 | BU132: =IF(BI132<BR1,BS132,0) -> 0 | BW132: 0 | BX132: =DATE(R17,Q17,1) -> 1970-01-01 | BY132: =DATE(V17,U17,1) -> 1970-01-01 | BZ132: 1 | CA132: 0 | CB132: 0 | CC132: =DATE(R18,Q18,1) -> 1970-01-01 | CD132: =DATE(V18,U18,1) -> 1970-01-01 | CE132: 1 | CF132: 0 | CG132: 0 | CH132: =DATE(R19,Q19,1) -> 1970-01-01 | CI132: =DATE(V19,U19,1) -> 1970-01-01 | CJ132: 1 | CK132: 0 | CL132: 0
AF133: 0 | AM133: 0 | AP133: 1900-01-01 | BD133: =W9 -> 2022-01-01 | BE133: =W14 -> 2022-03-01 | BF133: =VLOOKUP(BI133,AE5:AF140,2) ->  | BG133: =VLOOKUP(BI133,التسويات!$AU$5:$AX$59,2) -> 6 | BH133: =IF(K6="نعم",BF133,BG133) -> 6 | BI133: 1987-06-01 | BJ133: 0 | BK133: 1 | BL133: 0 | BM133: =VLOOKUP(BI133,التسويات!$AL$5:$AM$139,2) -> 0.005 | BN133: 0 | BO133: 0 | BP133: =IF(BI133>=T15,0,BM133*BO133) -> 0 | BQ133: =IF(BI133<BR1,BL133,0) -> 0 | BR133: =IF(BI133<BR1,BP133,0) -> 0 | BS133: =IFERROR(VLOOKUP(BI133,AP6:AQ138,2,FALSE),0) -> 0 | BT133: 0 | BU133: =IF(BI133<BR1,BS133,0) -> 0 | BW133: 0 | BX133: =DATE(R17,Q17,1) -> 1970-01-01 | BY133: =DATE(V17,U17,1) -> 1970-01-01 | BZ133: 1 | CA133: 0 | CB133: 0 | CC133: =DATE(R18,Q18,1) -> 1970-01-01 | CD133: =DATE(V18,U18,1) -> 1970-01-01 | CE133: 1 | CF133: 0 | CG133: 0 | CH133: =DATE(R19,Q19,1) -> 1970-01-01 | CI133: =DATE(V19,U19,1) -> 1970-01-01 | CJ133: 1 | CK133: 0 | CL133: 0
AF134: 0 | AM134: 0 | AP134: 1900-01-01 | BD134: =W9 -> 2022-01-01 | BE134: =W14 -> 2022-03-01 | BF134: =VLOOKUP(BI134,AE5:AF140,2) ->  | BG134: =VLOOKUP(BI134,التسويات!$AU$5:$AX$59,2) -> 6 | BH134: =IF(K6="نعم",BF134,BG134) -> 6 | BI134: 1987-07-01 | BJ134: 0 | BK134: 1 | BL134: 0 | BM134: =VLOOKUP(BI134,التسويات!$AL$5:$AM$139,2) -> 0.005 | BN134: 0 | BO134: 0 | BP134: =IF(BI134>=T15,0,BM134*BO134) -> 0 | BQ134: =IF(BI134<BR1,BL134,0) -> 0 | BR134: =IF(BI134<BR1,BP134,0) -> 0 | BS134: =IFERROR(VLOOKUP(BI134,AP6:AQ138,2,FALSE),0) -> 0 | BT134: 0 | BU134: =IF(BI134<BR1,BS134,0) -> 0 | BW134: 0 | BX134: =DATE(R17,Q17,1) -> 1970-01-01 | BY134: =DATE(V17,U17,1) -> 1970-01-01 | BZ134: 1 | CA134: 0 | CB134: 0 | CC134: =DATE(R18,Q18,1) -> 1970-01-01 | CD134: =DATE(V18,U18,1) -> 1970-01-01 | CE134: 1 | CF134: 0 | CG134: 0 | CH134: =DATE(R19,Q19,1) -> 1970-01-01 | CI134: =DATE(V19,U19,1) -> 1970-01-01 | CJ134: 1 | CK134: 0 | CL134: 0
AF135: 0 | AM135: 0 | AP135: 1900-01-01 | BD135: =W9 -> 2022-01-01 | BE135: =W14 -> 2022-03-01 | BF135: =VLOOKUP(BI135,AE5:AF140,2) ->  | BG135: =VLOOKUP(BI135,التسويات!$AU$5:$AX$59,2) -> 6 | BH135: =IF(K6="نعم",BF135,BG135) -> 6 | BI135: 1987-08-01 | BJ135: 0 | BK135: 1 | BL135: 0 | BM135: =VLOOKUP(BI135,التسويات!$AL$5:$AM$139,2) -> 0.005 | BN135: 0 | BO135: 0 | BP135: =IF(BI135>=T15,0,BM135*BO135) -> 0 | BQ135: =IF(BI135<BR1,BL135,0) -> 0 | BR135: =IF(BI135<BR1,BP135,0) -> 0 | BS135: =IFERROR(VLOOKUP(BI135,AP6:AQ138,2,FALSE),0) -> 0 | BT135: 0 | BU135: =IF(BI135<BR1,BS135,0) -> 0 | BW135: 0 | BX135: =DATE(R17,Q17,1) -> 1970-01-01 | BY135: =DATE(V17,U17,1) -> 1970-01-01 | BZ135: 1 | CA135: 0 | CB135: 0 | CC135: =DATE(R18,Q18,1) -> 1970-01-01 | CD135: =DATE(V18,U18,1) -> 1970-01-01 | CE135: 1 | CF135: 0 | CG135: 0 | CH135: =DATE(R19,Q19,1) -> 1970-01-01 | CI135: =DATE(V19,U19,1) -> 1970-01-01 | CJ135: 1 | CK135: 0 | CL135: 0
AF136: 0 | AM136: 0 | AP136: 1900-01-01 | BD136: =W9 -> 2022-01-01 | BE136: =W14 -> 2022-03-01 | BF136: =VLOOKUP(BI136,AE5:AF140,2) ->  | BG136: =VLOOKUP(BI136,التسويات!$AU$5:$AX$59,2) -> 6 | BH136: =IF(K6="نعم",BF136,BG136) -> 6 | BI136: 1987-09-01 | BJ136: 0 | BK136: 1 | BL136: 0 | BM136: =VLOOKUP(BI136,التسويات!$AL$5:$AM$139,2) -> 0.005 | BN136: 0 | BO136: 0 | BP136: =IF(BI136>=T15,0,BM136*BO136) -> 0 | BQ136: =IF(BI136<BR1,BL136,0) -> 0 | BR136: =IF(BI136<BR1,BP136,0) -> 0 | BS136: =IFERROR(VLOOKUP(BI136,AP6:AQ138,2,FALSE),0) -> 0 | BT136: 0 | BU136: =IF(BI136<BR1,BS136,0) -> 0 | BW136: 0 | BX136: =DATE(R17,Q17,1) -> 1970-01-01 | BY136: =DATE(V17,U17,1) -> 1970-01-01 | BZ136: 1 | CA136: 0 | CB136: 0 | CC136: =DATE(R18,Q18,1) -> 1970-01-01 | CD136: =DATE(V18,U18,1) -> 1970-01-01 | CE136: 1 | CF136: 0 | CG136: 0 | CH136: =DATE(R19,Q19,1) -> 1970-01-01 | CI136: =DATE(V19,U19,1) -> 1970-01-01 | CJ136: 1 | CK136: 0 | CL136: 0
AF137: 0 | AM137: 0 | AP137: 1900-01-01 | BD137: =W9 -> 2022-01-01 | BE137: =W14 -> 2022-03-01 | BF137: =VLOOKUP(BI137,AE5:AF140,2) ->  | BG137: =VLOOKUP(BI137,التسويات!$AU$5:$AX$59,2) -> 6 | BH137: =IF(K6="نعم",BF137,BG137) -> 6 | BI137: 1987-10-01 | BJ137: 0 | BK137: 1 | BL137: 0 | BM137: =VLOOKUP(BI137,التسويات!$AL$5:$AM$139,2) -> 0.005 | BN137: 0 | BO137: 0 | BP137: =IF(BI137>=T15,0,BM137*BO137) -> 0 | BQ137: =IF(BI137<BR1,BL137,0) -> 0 | BR137: =IF(BI137<BR1,BP137,0) -> 0 | BS137: =IFERROR(VLOOKUP(BI137,AP6:AQ138,2,FALSE),0) -> 0 | BT137: 0 | BU137: =IF(BI137<BR1,BS137,0) -> 0 | BW137: 0 | BX137: =DATE(R17,Q17,1) -> 1970-01-01 | BY137: =DATE(V17,U17,1) -> 1970-01-01 | BZ137: 1 | CA137: 0 | CB137: 0 | CC137: =DATE(R18,Q18,1) -> 1970-01-01 | CD137: =DATE(V18,U18,1) -> 1970-01-01 | CE137: 1 | CF137: 0 | CG137: 0 | CH137: =DATE(R19,Q19,1) -> 1970-01-01 | CI137: =DATE(V19,U19,1) -> 1970-01-01 | CJ137: 1 | CK137: 0 | CL137: 0
AF138: 0 | AM138: 0 | AP138: 1900-01-01 | BD138: =W9 -> 2022-01-01 | BE138: =W14 -> 2022-03-01 | BF138: =VLOOKUP(BI138,AE5:AF140,2) ->  | BG138: =VLOOKUP(BI138,التسويات!$AU$5:$AX$59,2) -> 6 | BH138: =IF(K6="نعم",BF138,BG138) -> 6 | BI138: 1987-11-01 | BJ138: 0 | BK138: 1 | BL138: 0 | BM138: =VLOOKUP(BI138,التسويات!$AL$5:$AM$139,2) -> 0.005 | BN138: 0 | BO138: 0 | BP138: =IF(BI138>=T15,0,BM138*BO138) -> 0 | BQ138: =IF(BI138<BR1,BL138,0) -> 0 | BR138: =IF(BI138<BR1,BP138,0) -> 0 | BS138: =IFERROR(VLOOKUP(BI138,AP6:AQ138,2,FALSE),0) -> 0 | BT138: 0 | BU138: =IF(BI138<BR1,BS138,0) -> 0 | BW138: 0 | BX138: =DATE(R17,Q17,1) -> 1970-01-01 | BY138: =DATE(V17,U17,1) -> 1970-01-01 | BZ138: 1 | CA138: 0 | CB138: 0 | CC138: =DATE(R18,Q18,1) -> 1970-01-01 | CD138: =DATE(V18,U18,1) -> 1970-01-01 | CE138: 1 | CF138: 0 | CG138: 0 | CH138: =DATE(R19,Q19,1) -> 1970-01-01 | CI138: =DATE(V19,U19,1) -> 1970-01-01 | CJ138: 1 | CK138: 0 | CL138: 0
AF139: 0 | AM139: 0 | AP139: 1900-01-01 | BD139: =W9 -> 2022-01-01 | BE139: =W14 -> 2022-03-01 | BF139: =VLOOKUP(BI139,AE5:AF140,2) ->  | BG139: =VLOOKUP(BI139,التسويات!$AU$5:$AX$59,2) -> 6 | BH139: =IF(K6="نعم",BF139,BG139) -> 6 | BI139: 1987-12-01 | BJ139: 0 | BK139: 1 | BL139: 0 | BM139: =VLOOKUP(BI139,التسويات!$AL$5:$AM$139,2) -> 0.005 | BN139: 0 | BO139: 0 | BP139: =IF(BI139>=T15,0,BM139*BO139) -> 0 | BQ139: =IF(BI139<BR1,BL139,0) -> 0 | BR139: =IF(BI139<BR1,BP139,0) -> 0 | BS139: =IFERROR(VLOOKUP(BI139,AP6:AQ138,2,FALSE),0) -> 0 | BT139: 0 | BU139: =IF(BI139<BR1,BS139,0) -> 0 | BW139: 0 | BX139: =DATE(R17,Q17,1) -> 1970-01-01 | BY139: =DATE(V17,U17,1) -> 1970-01-01 | BZ139: 1 | CA139: 0 | CB139: 0 | CC139: =DATE(R18,Q18,1) -> 1970-01-01 | CD139: =DATE(V18,U18,1) -> 1970-01-01 | CE139: 1 | CF139: 0 | CG139: 0 | CH139: =DATE(R19,Q19,1) -> 1970-01-01 | CI139: =DATE(V19,U19,1) -> 1970-01-01 | CJ139: 1 | CK139: 0 | CL139: 0
AF140: 0 | BD140: =W9 -> 2022-01-01 | BE140: =W14 -> 2022-03-01 | BF140: =VLOOKUP(BI140,AE5:AF140,2) ->  | BG140: =VLOOKUP(BI140,التسويات!$AU$5:$AX$59,2) -> 6 | BH140: =IF(K6="نعم",BF140,BG140) -> 6 | BI140: 1988-01-01 | BJ140: 0 | BK140: 1 | BL140: 0 | BM140: =VLOOKUP(BI140,التسويات!$AL$5:$AM$139,2) -> 0.005 | BN140: 0 | BO140: 0 | BP140: =IF(BI140>=T15,0,BM140*BO140) -> 0 | BQ140: =IF(BI140<BR1,BL140,0) -> 0 | BR140: =IF(BI140<BR1,BP140,0) -> 0 | BS140: =IFERROR(VLOOKUP(BI140,AP6:AQ138,2,FALSE),0) -> 0 | BT140: 0 | BU140: =IF(BI140<BR1,BS140,0) -> 0 | BW140: 0 | BX140: =DATE(R17,Q17,1) -> 1970-01-01 | BY140: =DATE(V17,U17,1) -> 1970-01-01 | BZ140: 1 | CA140: 0 | CB140: 0 | CC140: =DATE(R18,Q18,1) -> 1970-01-01 | CD140: =DATE(V18,U18,1) -> 1970-01-01 | CE140: 1 | CF140: 0 | CG140: 0 | CH140: =DATE(R19,Q19,1) -> 1970-01-01 | CI140: =DATE(V19,U19,1) -> 1970-01-01 | CJ140: 1 | CK140: 0 | CL140: 0
BD141: =W9 -> 2022-01-01 | BE141: =W14 -> 2022-03-01 | BF141: =VLOOKUP(BI141,AE5:AF140,2) ->  | BG141: =VLOOKUP(BI141,التسويات!$AU$5:$AX$59,2) -> 6 | BH141: =IF(K6="نعم",BF141,BG141) -> 6 | BI141: 1988-02-01 | BJ141: 0 | BK141: 1 | BL141: 0 | BM141: =VLOOKUP(BI141,التسويات!$AL$5:$AM$139,2) -> 0.005 | BN141: 0 | BO141: 0 | BP141: =IF(BI141>=T15,0,BM141*BO141) -> 0 | BQ141: =IF(BI141<BR1,BL141,0) -> 0 | BR141: =IF(BI141<BR1,BP141,0) -> 0 | BS141: =IFERROR(VLOOKUP(BI141,AP6:AQ138,2,FALSE),0) -> 0 | BT141: 0 | BU141: =IF(BI141<BR1,BS141,0) -> 0 | BW141: 0 | BX141: =DATE(R17,Q17,1) -> 1970-01-01 | BY141: =DATE(V17,U17,1) -> 1970-01-01 | BZ141: 1 | CA141: 0 | CB141: 0 | CC141: =DATE(R18,Q18,1) -> 1970-01-01 | CD141: =DATE(V18,U18,1) -> 1970-01-01 | CE141: 1 | CF141: 0 | CG141: 0 | CH141: =DATE(R19,Q19,1) -> 1970-01-01 | CI141: =DATE(V19,U19,1) -> 1970-01-01 | CJ141: 1 | CK141: 0 | CL141: 0
BD142: =W9 -> 2022-01-01 | BE142: =W14 -> 2022-03-01 | BF142: =VLOOKUP(BI142,AE5:AF140,2) ->  | BG142: =VLOOKUP(BI142,التسويات!$AU$5:$AX$59,2) -> 6 | BH142: =IF(K6="نعم",BF142,BG142) -> 6 | BI142: 1988-03-01 | BJ142: 0 | BK142: 1 | BL142: 0 | BM142: =VLOOKUP(BI142,التسويات!$AL$5:$AM$139,2) -> 0.005 | BN142: 0 | BO142: 0 | BP142: =IF(BI142>=T15,0,BM142*BO142) -> 0 | BQ142: =IF(BI142<BR1,BL142,0) -> 0 | BR142: =IF(BI142<BR1,BP142,0) -> 0 | BS142: =IFERROR(VLOOKUP(BI142,AP6:AQ138,2,FALSE),0) -> 0 | BT142: 0 | BU142: =IF(BI142<BR1,BS142,0) -> 0 | BW142: 0 | BX142: =DATE(R17,Q17,1) -> 1970-01-01 | BY142: =DATE(V17,U17,1) -> 1970-01-01 | BZ142: 1 | CA142: 0 | CB142: 0 | CC142: =DATE(R18,Q18,1) -> 1970-01-01 | CD142: =DATE(V18,U18,1) -> 1970-01-01 | CE142: 1 | CF142: 0 | CG142: 0 | CH142: =DATE(R19,Q19,1) -> 1970-01-01 | CI142: =DATE(V19,U19,1) -> 1970-01-01 | CJ142: 1 | CK142: 0 | CL142: 0
BD143: =W9 -> 2022-01-01 | BE143: =W14 -> 2022-03-01 | BF143: =VLOOKUP(BI143,AE5:AF140,2) ->  | BG143: =VLOOKUP(BI143,التسويات!$AU$5:$AX$59,2) -> 6 | BH143: =IF(K6="نعم",BF143,BG143) -> 6 | BI143: 1988-04-01 | BJ143: 0 | BK143: 1 | BL143: 0 | BM143: =VLOOKUP(BI143,التسويات!$AL$5:$AM$139,2) -> 0.005 | BN143: 0 | BO143: 0 | BP143: =IF(BI143>=T15,0,BM143*BO143) -> 0 | BQ143: =IF(BI143<BR1,BL143,0) -> 0 | BR143: =IF(BI143<BR1,BP143,0) -> 0 | BS143: =IFERROR(VLOOKUP(BI143,AP6:AQ138,2,FALSE),0) -> 0 | BT143: 0 | BU143: =IF(BI143<BR1,BS143,0) -> 0 | BW143: 0 | BX143: =DATE(R17,Q17,1) -> 1970-01-01 | BY143: =DATE(V17,U17,1) -> 1970-01-01 | BZ143: 1 | CA143: 0 | CB143: 0 | CC143: =DATE(R18,Q18,1) -> 1970-01-01 | CD143: =DATE(V18,U18,1) -> 1970-01-01 | CE143: 1 | CF143: 0 | CG143: 0 | CH143: =DATE(R19,Q19,1) -> 1970-01-01 | CI143: =DATE(V19,U19,1) -> 1970-01-01 | CJ143: 1 | CK143: 0 | CL143: 0
BD144: =W9 -> 2022-01-01 | BE144: =W14 -> 2022-03-01 | BF144: =VLOOKUP(BI144,AE5:AF140,2) ->  | BG144: =VLOOKUP(BI144,التسويات!$AU$5:$AX$59,2) -> 6 | BH144: =IF(K6="نعم",BF144,BG144) -> 6 | BI144: 1988-05-01 | BJ144: 0 | BK144: 1 | BL144: 0 | BM144: =VLOOKUP(BI144,التسويات!$AL$5:$AM$139,2) -> 0.005 | BN144: 0 | BO144: 0 | BP144: =IF(BI144>=T15,0,BM144*BO144) -> 0 | BQ144: =IF(BI144<BR1,BL144,0) -> 0 | BR144: =IF(BI144<BR1,BP144,0) -> 0 | BS144: =IFERROR(VLOOKUP(BI144,AP6:AQ138,2,FALSE),0) -> 0 | BT144: 0 | BU144: =IF(BI144<BR1,BS144,0) -> 0 | BW144: 0 | BX144: =DATE(R17,Q17,1) -> 1970-01-01 | BY144: =DATE(V17,U17,1) -> 1970-01-01 | BZ144: 1 | CA144: 0 | CB144: 0 | CC144: =DATE(R18,Q18,1) -> 1970-01-01 | CD144: =DATE(V18,U18,1) -> 1970-01-01 | CE144: 1 | CF144: 0 | CG144: 0 | CH144: =DATE(R19,Q19,1) -> 1970-01-01 | CI144: =DATE(V19,U19,1) -> 1970-01-01 | CJ144: 1 | CK144: 0 | CL144: 0
BD145: =W9 -> 2022-01-01 | BE145: =W14 -> 2022-03-01 | BF145: =VLOOKUP(BI145,AE5:AF140,2) ->  | BG145: =VLOOKUP(BI145,التسويات!$AU$5:$AX$59,2) -> 6 | BH145: =IF(K6="نعم",BF145,BG145) -> 6 | BI145: 1988-06-01 | BJ145: 0 | BK145: 1 | BL145: 0 | BM145: =VLOOKUP(BI145,التسويات!$AL$5:$AM$139,2) -> 0.005 | BN145: 0 | BO145: 0 | BP145: =IF(BI145>=T15,0,BM145*BO145) -> 0 | BQ145: =IF(BI145<BR1,BL145,0) -> 0 | BR145: =IF(BI145<BR1,BP145,0) -> 0 | BS145: =IFERROR(VLOOKUP(BI145,AP6:AQ138,2,FALSE),0) -> 0 | BT145: 0 | BU145: =IF(BI145<BR1,BS145,0) -> 0 | BW145: 0 | BX145: =DATE(R17,Q17,1) -> 1970-01-01 | BY145: =DATE(V17,U17,1) -> 1970-01-01 | BZ145: 1 | CA145: 0 | CB145: 0 | CC145: =DATE(R18,Q18,1) -> 1970-01-01 | CD145: =DATE(V18,U18,1) -> 1970-01-01 | CE145: 1 | CF145: 0 | CG145: 0 | CH145: =DATE(R19,Q19,1) -> 1970-01-01 | CI145: =DATE(V19,U19,1) -> 1970-01-01 | CJ145: 1 | CK145: 0 | CL145: 0
BD146: =W9 -> 2022-01-01 | BE146: =W14 -> 2022-03-01 | BF146: =VLOOKUP(BI146,AE5:AF140,2) ->  | BG146: =VLOOKUP(BI146,التسويات!$AU$5:$AX$59,2) -> 6 | BH146: =IF(K6="نعم",BF146,BG146) -> 6 | BI146: 1988-07-01 | BJ146: 0 | BK146: 1 | BL146: 0 | BM146: =VLOOKUP(BI146,التسويات!$AL$5:$AM$139,2) -> 0.005 | BN146: 0 | BO146: 0 | BP146: =IF(BI146>=T15,0,BM146*BO146) -> 0 | BQ146: =IF(BI146<BR1,BL146,0) -> 0 | BR146: =IF(BI146<BR1,BP146,0) -> 0 | BS146: =IFERROR(VLOOKUP(BI146,AP6:AQ138,2,FALSE),0) -> 0 | BT146: 0 | BU146: =IF(BI146<BR1,BS146,0) -> 0 | BW146: 0 | BX146: =DATE(R17,Q17,1) -> 1970-01-01 | BY146: =DATE(V17,U17,1) -> 1970-01-01 | BZ146: 1 | CA146: 0 | CB146: 0 | CC146: =DATE(R18,Q18,1) -> 1970-01-01 | CD146: =DATE(V18,U18,1) -> 1970-01-01 | CE146: 1 | CF146: 0 | CG146: 0 | CH146: =DATE(R19,Q19,1) -> 1970-01-01 | CI146: =DATE(V19,U19,1) -> 1970-01-01 | CJ146: 1 | CK146: 0 | CL146: 0
BD147: =W9 -> 2022-01-01 | BE147: =W14 -> 2022-03-01 | BF147: =VLOOKUP(BI147,AE5:AF140,2) ->  | BG147: =VLOOKUP(BI147,التسويات!$AU$5:$AX$59,2) -> 6 | BH147: =IF(K6="نعم",BF147,BG147) -> 6 | BI147: 1988-08-01 | BJ147: 0 | BK147: 1 | BL147: 0 | BM147: =VLOOKUP(BI147,التسويات!$AL$5:$AM$139,2) -> 0.005 | BN147: 0 | BO147: 0 | BP147: =IF(BI147>=T15,0,BM147*BO147) -> 0 | BQ147: =IF(BI147<BR1,BL147,0) -> 0 | BR147: =IF(BI147<BR1,BP147,0) -> 0 | BS147: =IFERROR(VLOOKUP(BI147,AP6:AQ138,2,FALSE),0) -> 0 | BT147: 0 | BU147: =IF(BI147<BR1,BS147,0) -> 0 | BW147: 0 | BX147: =DATE(R17,Q17,1) -> 1970-01-01 | BY147: =DATE(V17,U17,1) -> 1970-01-01 | BZ147: 1 | CA147: 0 | CB147: 0 | CC147: =DATE(R18,Q18,1) -> 1970-01-01 | CD147: =DATE(V18,U18,1) -> 1970-01-01 | CE147: 1 | CF147: 0 | CG147: 0 | CH147: =DATE(R19,Q19,1) -> 1970-01-01 | CI147: =DATE(V19,U19,1) -> 1970-01-01 | CJ147: 1 | CK147: 0 | CL147: 0
BD148: =W9 -> 2022-01-01 | BE148: =W14 -> 2022-03-01 | BF148: =VLOOKUP(BI148,AE5:AF140,2) ->  | BG148: =VLOOKUP(BI148,التسويات!$AU$5:$AX$59,2) -> 6 | BH148: =IF(K6="نعم",BF148,BG148) -> 6 | BI148: 1988-09-01 | BJ148: 0 | BK148: 1 | BL148: 0 | BM148: =VLOOKUP(BI148,التسويات!$AL$5:$AM$139,2) -> 0.005 | BN148: 0 | BO148: 0 | BP148: =IF(BI148>=T15,0,BM148*BO148) -> 0 | BQ148: =IF(BI148<BR1,BL148,0) -> 0 | BR148: =IF(BI148<BR1,BP148,0) -> 0 | BS148: =IFERROR(VLOOKUP(BI148,AP6:AQ138,2,FALSE),0) -> 0 | BT148: 0 | BU148: =IF(BI148<BR1,BS148,0) -> 0 | BW148: 0 | BX148: =DATE(R17,Q17,1) -> 1970-01-01 | BY148: =DATE(V17,U17,1) -> 1970-01-01 | BZ148: 1 | CA148: 0 | CB148: 0 | CC148: =DATE(R18,Q18,1) -> 1970-01-01 | CD148: =DATE(V18,U18,1) -> 1970-01-01 | CE148: 1 | CF148: 0 | CG148: 0 | CH148: =DATE(R19,Q19,1) -> 1970-01-01 | CI148: =DATE(V19,U19,1) -> 1970-01-01 | CJ148: 1 | CK148: 0 | CL148: 0
BD149: =W9 -> 2022-01-01 | BE149: =W14 -> 2022-03-01 | BF149: =VLOOKUP(BI149,AE5:AF140,2) ->  | BG149: =VLOOKUP(BI149,التسويات!$AU$5:$AX$59,2) -> 6 | BH149: =IF(K6="نعم",BF149,BG149) -> 6 | BI149: 1988-10-01 | BJ149: 0 | BK149: 1 | BL149: 0 | BM149: =VLOOKUP(BI149,التسويات!$AL$5:$AM$139,2) -> 0.005 | BN149: 0 | BO149: 0 | BP149: =IF(BI149>=T15,0,BM149*BO149) -> 0 | BQ149: =IF(BI149<BR1,BL149,0) -> 0 | BR149: =IF(BI149<BR1,BP149,0) -> 0 | BS149: =IFERROR(VLOOKUP(BI149,AP6:AQ138,2,FALSE),0) -> 0 | BT149: 0 | BU149: =IF(BI149<BR1,BS149,0) -> 0 | BW149: 0 | BX149: =DATE(R17,Q17,1) -> 1970-01-01 | BY149: =DATE(V17,U17,1) -> 1970-01-01 | BZ149: 1 | CA149: 0 | CB149: 0 | CC149: =DATE(R18,Q18,1) -> 1970-01-01 | CD149: =DATE(V18,U18,1) -> 1970-01-01 | CE149: 1 | CF149: 0 | CG149: 0 | CH149: =DATE(R19,Q19,1) -> 1970-01-01 | CI149: =DATE(V19,U19,1) -> 1970-01-01 | CJ149: 1 | CK149: 0 | CL149: 0
BD150: =W9 -> 2022-01-01 | BE150: =W14 -> 2022-03-01 | BF150: =VLOOKUP(BI150,AE5:AF140,2) ->  | BG150: =VLOOKUP(BI150,التسويات!$AU$5:$AX$59,2) -> 6 | BH150: =IF(K6="نعم",BF150,BG150) -> 6 | BI150: 1988-11-01 | BJ150: 0 | BK150: 1 | BL150: 0 | BM150: =VLOOKUP(BI150,التسويات!$AL$5:$AM$139,2) -> 0.005 | BN150: 0 | BO150: 0 | BP150: =IF(BI150>=T15,0,BM150*BO150) -> 0 | BQ150: =IF(BI150<BR1,BL150,0) -> 0 | BR150: =IF(BI150<BR1,BP150,0) -> 0 | BS150: =IFERROR(VLOOKUP(BI150,AP6:AQ138,2,FALSE),0) -> 0 | BT150: 0 | BU150: =IF(BI150<BR1,BS150,0) -> 0 | BW150: 0 | BX150: =DATE(R17,Q17,1) -> 1970-01-01 | BY150: =DATE(V17,U17,1) -> 1970-01-01 | BZ150: 1 | CA150: 0 | CB150: 0 | CC150: =DATE(R18,Q18,1) -> 1970-01-01 | CD150: =DATE(V18,U18,1) -> 1970-01-01 | CE150: 1 | CF150: 0 | CG150: 0 | CH150: =DATE(R19,Q19,1) -> 1970-01-01 | CI150: =DATE(V19,U19,1) -> 1970-01-01 | CJ150: 1 | CK150: 0 | CL150: 0
BD151: =W9 -> 2022-01-01 | BE151: =W14 -> 2022-03-01 | BF151: =VLOOKUP(BI151,AE5:AF140,2) ->  | BG151: =VLOOKUP(BI151,التسويات!$AU$5:$AX$59,2) -> 6 | BH151: =IF(K6="نعم",BF151,BG151) -> 6 | BI151: 1988-12-01 | BJ151: 0 | BK151: 1 | BL151: 0 | BM151: =VLOOKUP(BI151,التسويات!$AL$5:$AM$139,2) -> 0.005 | BN151: 0 | BO151: 0 | BP151: =IF(BI151>=T15,0,BM151*BO151) -> 0 | BQ151: =IF(BI151<BR1,BL151,0) -> 0 | BR151: =IF(BI151<BR1,BP151,0) -> 0 | BS151: =IFERROR(VLOOKUP(BI151,AP6:AQ138,2,FALSE),0) -> 0 | BT151: 0 | BU151: =IF(BI151<BR1,BS151,0) -> 0 | BW151: 0 | BX151: =DATE(R17,Q17,1) -> 1970-01-01 | BY151: =DATE(V17,U17,1) -> 1970-01-01 | BZ151: 1 | CA151: 0 | CB151: 0 | CC151: =DATE(R18,Q18,1) -> 1970-01-01 | CD151: =DATE(V18,U18,1) -> 1970-01-01 | CE151: 1 | CF151: 0 | CG151: 0 | CH151: =DATE(R19,Q19,1) -> 1970-01-01 | CI151: =DATE(V19,U19,1) -> 1970-01-01 | CJ151: 1 | CK151: 0 | CL151: 0
BD152: =W9 -> 2022-01-01 | BE152: =W14 -> 2022-03-01 | BF152: =VLOOKUP(BI152,AE5:AF140,2) ->  | BG152: =VLOOKUP(BI152,التسويات!$AU$5:$AX$59,2) -> 6 | BH152: =IF(K6="نعم",BF152,BG152) -> 6 | BI152: 1989-01-01 | BJ152: 0 | BK152: 1 | BL152: 0 | BM152: =VLOOKUP(BI152,التسويات!$AL$5:$AM$139,2) -> 0.005 | BN152: 0 | BO152: 0 | BP152: =IF(BI152>=T15,0,BM152*BO152) -> 0 | BQ152: =IF(BI152<BR1,BL152,0) -> 0 | BR152: =IF(BI152<BR1,BP152,0) -> 0 | BS152: =IFERROR(VLOOKUP(BI152,AP6:AQ138,2,FALSE),0) -> 0 | BT152: 0 | BU152: =IF(BI152<BR1,BS152,0) -> 0 | BW152: 0 | BX152: =DATE(R17,Q17,1) -> 1970-01-01 | BY152: =DATE(V17,U17,1) -> 1970-01-01 | BZ152: 1 | CA152: 0 | CB152: 0 | CC152: =DATE(R18,Q18,1) -> 1970-01-01 | CD152: =DATE(V18,U18,1) -> 1970-01-01 | CE152: 1 | CF152: 0 | CG152: 0 | CH152: =DATE(R19,Q19,1) -> 1970-01-01 | CI152: =DATE(V19,U19,1) -> 1970-01-01 | CJ152: 1 | CK152: 0 | CL152: 0
BD153: =W9 -> 2022-01-01 | BE153: =W14 -> 2022-03-01 | BF153: =VLOOKUP(BI153,AE5:AF140,2) ->  | BG153: =VLOOKUP(BI153,التسويات!$AU$5:$AX$59,2) -> 6 | BH153: =IF(K6="نعم",BF153,BG153) -> 6 | BI153: 1989-02-01 | BJ153: 0 | BK153: 1 | BL153: 0 | BM153: =VLOOKUP(BI153,التسويات!$AL$5:$AM$139,2) -> 0.005 | BN153: 0 | BO153: 0 | BP153: =IF(BI153>=T15,0,BM153*BO153) -> 0 | BQ153: =IF(BI153<BR1,BL153,0) -> 0 | BR153: =IF(BI153<BR1,BP153,0) -> 0 | BS153: =IFERROR(VLOOKUP(BI153,AP6:AQ138,2,FALSE),0) -> 0 | BT153: 0 | BU153: =IF(BI153<BR1,BS153,0) -> 0 | BW153: 0 | BX153: =DATE(R17,Q17,1) -> 1970-01-01 | BY153: =DATE(V17,U17,1) -> 1970-01-01 | BZ153: 1 | CA153: 0 | CB153: 0 | CC153: =DATE(R18,Q18,1) -> 1970-01-01 | CD153: =DATE(V18,U18,1) -> 1970-01-01 | CE153: 1 | CF153: 0 | CG153: 0 | CH153: =DATE(R19,Q19,1) -> 1970-01-01 | CI153: =DATE(V19,U19,1) -> 1970-01-01 | CJ153: 1 | CK153: 0 | CL153: 0
BD154: =W9 -> 2022-01-01 | BE154: =W14 -> 2022-03-01 | BF154: =VLOOKUP(BI154,AE5:AF140,2) ->  | BG154: =VLOOKUP(BI154,التسويات!$AU$5:$AX$59,2) -> 6 | BH154: =IF(K6="نعم",BF154,BG154) -> 6 | BI154: 1989-03-01 | BJ154: 0 | BK154: 1 | BL154: 0 | BM154: =VLOOKUP(BI154,التسويات!$AL$5:$AM$139,2) -> 0.005 | BN154: 0 | BO154: 0 | BP154: =IF(BI154>=T15,0,BM154*BO154) -> 0 | BQ154: =IF(BI154<BR1,BL154,0) -> 0 | BR154: =IF(BI154<BR1,BP154,0) -> 0 | BS154: =IFERROR(VLOOKUP(BI154,AP6:AQ138,2,FALSE),0) -> 0 | BT154: 0 | BU154: =IF(BI154<BR1,BS154,0) -> 0 | BW154: 0 | BX154: =DATE(R17,Q17,1) -> 1970-01-01 | BY154: =DATE(V17,U17,1) -> 1970-01-01 | BZ154: 1 | CA154: 0 | CB154: 0 | CC154: =DATE(R18,Q18,1) -> 1970-01-01 | CD154: =DATE(V18,U18,1) -> 1970-01-01 | CE154: 1 | CF154: 0 | CG154: 0 | CH154: =DATE(R19,Q19,1) -> 1970-01-01 | CI154: =DATE(V19,U19,1) -> 1970-01-01 | CJ154: 1 | CK154: 0 | CL154: 0
BD155: =W9 -> 2022-01-01 | BE155: =W14 -> 2022-03-01 | BF155: =VLOOKUP(BI155,AE5:AF140,2) ->  | BG155: =VLOOKUP(BI155,التسويات!$AU$5:$AX$59,2) -> 6 | BH155: =IF(K6="نعم",BF155,BG155) -> 6 | BI155: 1989-04-01 | BJ155: 0 | BK155: 1 | BL155: 0 | BM155: =VLOOKUP(BI155,التسويات!$AL$5:$AM$139,2) -> 0.005 | BN155: 0 | BO155: 0 | BP155: =IF(BI155>=T15,0,BM155*BO155) -> 0 | BQ155: =IF(BI155<BR1,BL155,0) -> 0 | BR155: =IF(BI155<BR1,BP155,0) -> 0 | BS155: =IFERROR(VLOOKUP(BI155,AP6:AQ138,2,FALSE),0) -> 0 | BT155: 0 | BU155: =IF(BI155<BR1,BS155,0) -> 0 | BW155: 0 | BX155: =DATE(R17,Q17,1) -> 1970-01-01 | BY155: =DATE(V17,U17,1) -> 1970-01-01 | BZ155: 1 | CA155: 0 | CB155: 0 | CC155: =DATE(R18,Q18,1) -> 1970-01-01 | CD155: =DATE(V18,U18,1) -> 1970-01-01 | CE155: 1 | CF155: 0 | CG155: 0 | CH155: =DATE(R19,Q19,1) -> 1970-01-01 | CI155: =DATE(V19,U19,1) -> 1970-01-01 | CJ155: 1 | CK155: 0 | CL155: 0
BD156: =W9 -> 2022-01-01 | BE156: =W14 -> 2022-03-01 | BF156: =VLOOKUP(BI156,AE5:AF140,2) ->  | BG156: =VLOOKUP(BI156,التسويات!$AU$5:$AX$59,2) -> 6 | BH156: =IF(K6="نعم",BF156,BG156) -> 6 | BI156: 1989-05-01 | BJ156: 0 | BK156: 1 | BL156: 0 | BM156: =VLOOKUP(BI156,التسويات!$AL$5:$AM$139,2) -> 0.005 | BN156: 0 | BO156: 0 | BP156: =IF(BI156>=T15,0,BM156*BO156) -> 0 | BQ156: =IF(BI156<BR1,BL156,0) -> 0 | BR156: =IF(BI156<BR1,BP156,0) -> 0 | BS156: =IFERROR(VLOOKUP(BI156,AP6:AQ138,2,FALSE),0) -> 0 | BT156: 0 | BU156: =IF(BI156<BR1,BS156,0) -> 0 | BW156: 0 | BX156: =DATE(R17,Q17,1) -> 1970-01-01 | BY156: =DATE(V17,U17,1) -> 1970-01-01 | BZ156: 1 | CA156: 0 | CB156: 0 | CC156: =DATE(R18,Q18,1) -> 1970-01-01 | CD156: =DATE(V18,U18,1) -> 1970-01-01 | CE156: 1 | CF156: 0 | CG156: 0 | CH156: =DATE(R19,Q19,1) -> 1970-01-01 | CI156: =DATE(V19,U19,1) -> 1970-01-01 | CJ156: 1 | CK156: 0 | CL156: 0
BD157: =W9 -> 2022-01-01 | BE157: =W14 -> 2022-03-01 | BF157: =VLOOKUP(BI157,AE5:AF140,2) ->  | BG157: =VLOOKUP(BI157,التسويات!$AU$5:$AX$59,2) -> 6 | BH157: =IF(K6="نعم",BF157,BG157) -> 6 | BI157: 1989-06-01 | BJ157: 0 | BK157: 1 | BL157: 0 | BM157: =VLOOKUP(BI157,التسويات!$AL$5:$AM$139,2) -> 0.005 | BN157: 0 | BO157: 0 | BP157: =IF(BI157>=T15,0,BM157*BO157) -> 0 | BQ157: =IF(BI157<BR1,BL157,0) -> 0 | BR157: =IF(BI157<BR1,BP157,0) -> 0 | BS157: =IFERROR(VLOOKUP(BI157,AP6:AQ138,2,FALSE),0) -> 0 | BT157: 0 | BU157: =IF(BI157<BR1,BS157,0) -> 0 | BW157: 0 | BX157: =DATE(R17,Q17,1) -> 1970-01-01 | BY157: =DATE(V17,U17,1) -> 1970-01-01 | BZ157: 1 | CA157: 0 | CB157: 0 | CC157: =DATE(R18,Q18,1) -> 1970-01-01 | CD157: =DATE(V18,U18,1) -> 1970-01-01 | CE157: 1 | CF157: 0 | CG157: 0 | CH157: =DATE(R19,Q19,1) -> 1970-01-01 | CI157: =DATE(V19,U19,1) -> 1970-01-01 | CJ157: 1 | CK157: 0 | CL157: 0
BD158: =W9 -> 2022-01-01 | BE158: =W14 -> 2022-03-01 | BF158: =VLOOKUP(BI158,AE5:AF140,2) ->  | BG158: =VLOOKUP(BI158,التسويات!$AU$5:$AX$59,2) -> 6 | BH158: =IF(K6="نعم",BF158,BG158) -> 6 | BI158: 1989-07-01 | BJ158: 0 | BK158: 1 | BL158: 0 | BM158: =VLOOKUP(BI158,التسويات!$AL$5:$AM$139,2) -> 0.005 | BN158: 0 | BO158: 0 | BP158: =IF(BI158>=T15,0,BM158*BO158) -> 0 | BQ158: =IF(BI158<BR1,BL158,0) -> 0 | BR158: =IF(BI158<BR1,BP158,0) -> 0 | BS158: =IFERROR(VLOOKUP(BI158,AP6:AQ138,2,FALSE),0) -> 0 | BT158: 0 | BU158: =IF(BI158<BR1,BS158,0) -> 0 | BW158: 0 | BX158: =DATE(R17,Q17,1) -> 1970-01-01 | BY158: =DATE(V17,U17,1) -> 1970-01-01 | BZ158: 1 | CA158: 0 | CB158: 0 | CC158: =DATE(R18,Q18,1) -> 1970-01-01 | CD158: =DATE(V18,U18,1) -> 1970-01-01 | CE158: 1 | CF158: 0 | CG158: 0 | CH158: =DATE(R19,Q19,1) -> 1970-01-01 | CI158: =DATE(V19,U19,1) -> 1970-01-01 | CJ158: 1 | CK158: 0 | CL158: 0
BD159: =W9 -> 2022-01-01 | BE159: =W14 -> 2022-03-01 | BF159: =VLOOKUP(BI159,AE5:AF140,2) ->  | BG159: =VLOOKUP(BI159,التسويات!$AU$5:$AX$59,2) -> 6 | BH159: =IF(K6="نعم",BF159,BG159) -> 6 | BI159: 1989-08-01 | BJ159: 0 | BK159: 1 | BL159: 0 | BM159: =VLOOKUP(BI159,التسويات!$AL$5:$AM$139,2) -> 0.005 | BN159: 0 | BO159: 0 | BP159: =IF(BI159>=T15,0,BM159*BO159) -> 0 | BQ159: =IF(BI159<BR1,BL159,0) -> 0 | BR159: =IF(BI159<BR1,BP159,0) -> 0 | BS159: =IFERROR(VLOOKUP(BI159,AP6:AQ138,2,FALSE),0) -> 0 | BT159: 0 | BU159: =IF(BI159<BR1,BS159,0) -> 0 | BW159: 0 | BX159: =DATE(R17,Q17,1) -> 1970-01-01 | BY159: =DATE(V17,U17,1) -> 1970-01-01 | BZ159: 1 | CA159: 0 | CB159: 0 | CC159: =DATE(R18,Q18,1) -> 1970-01-01 | CD159: =DATE(V18,U18,1) -> 1970-01-01 | CE159: 1 | CF159: 0 | CG159: 0 | CH159: =DATE(R19,Q19,1) -> 1970-01-01 | CI159: =DATE(V19,U19,1) -> 1970-01-01 | CJ159: 1 | CK159: 0 | CL159: 0
BD160: =W9 -> 2022-01-01 | BE160: =W14 -> 2022-03-01 | BF160: =VLOOKUP(BI160,AE5:AF140,2) ->  | BG160: =VLOOKUP(BI160,التسويات!$AU$5:$AX$59,2) -> 6 | BH160: =IF(K6="نعم",BF160,BG160) -> 6 | BI160: 1989-09-01 | BJ160: 0 | BK160: 1 | BL160: 0 | BM160: =VLOOKUP(BI160,التسويات!$AL$5:$AM$139,2) -> 0.005 | BN160: 0 | BO160: 0 | BP160: =IF(BI160>=T15,0,BM160*BO160) -> 0 | BQ160: =IF(BI160<BR1,BL160,0) -> 0 | BR160: =IF(BI160<BR1,BP160,0) -> 0 | BS160: =IFERROR(VLOOKUP(BI160,AP6:AQ138,2,FALSE),0) -> 0 | BT160: 0 | BU160: =IF(BI160<BR1,BS160,0) -> 0 | BW160: 0 | BX160: =DATE(R17,Q17,1) -> 1970-01-01 | BY160: =DATE(V17,U17,1) -> 1970-01-01 | BZ160: 1 | CA160: 0 | CB160: 0 | CC160: =DATE(R18,Q18,1) -> 1970-01-01 | CD160: =DATE(V18,U18,1) -> 1970-01-01 | CE160: 1 | CF160: 0 | CG160: 0 | CH160: =DATE(R19,Q19,1) -> 1970-01-01 | CI160: =DATE(V19,U19,1) -> 1970-01-01 | CJ160: 1 | CK160: 0 | CL160: 0
BD161: =W9 -> 2022-01-01 | BE161: =W14 -> 2022-03-01 | BF161: =VLOOKUP(BI161,AE5:AF140,2) ->  | BG161: =VLOOKUP(BI161,التسويات!$AU$5:$AX$59,2) -> 6 | BH161: =IF(K6="نعم",BF161,BG161) -> 6 | BI161: 1989-10-01 | BJ161: 0 | BK161: 1 | BL161: 0 | BM161: =VLOOKUP(BI161,التسويات!$AL$5:$AM$139,2) -> 0.005 | BN161: 0 | BO161: 0 | BP161: =IF(BI161>=T15,0,BM161*BO161) -> 0 | BQ161: =IF(BI161<BR1,BL161,0) -> 0 | BR161: =IF(BI161<BR1,BP161,0) -> 0 | BS161: =IFERROR(VLOOKUP(BI161,AP6:AQ138,2,FALSE),0) -> 0 | BT161: 0 | BU161: =IF(BI161<BR1,BS161,0) -> 0 | BW161: 0 | BX161: =DATE(R17,Q17,1) -> 1970-01-01 | BY161: =DATE(V17,U17,1) -> 1970-01-01 | BZ161: 1 | CA161: 0 | CB161: 0 | CC161: =DATE(R18,Q18,1) -> 1970-01-01 | CD161: =DATE(V18,U18,1) -> 1970-01-01 | CE161: 1 | CF161: 0 | CG161: 0 | CH161: =DATE(R19,Q19,1) -> 1970-01-01 | CI161: =DATE(V19,U19,1) -> 1970-01-01 | CJ161: 1 | CK161: 0 | CL161: 0
BD162: =W9 -> 2022-01-01 | BE162: =W14 -> 2022-03-01 | BF162: =VLOOKUP(BI162,AE5:AF140,2) ->  | BG162: =VLOOKUP(BI162,التسويات!$AU$5:$AX$59,2) -> 6 | BH162: =IF(K6="نعم",BF162,BG162) -> 6 | BI162: 1989-11-01 | BJ162: 0 | BK162: 1 | BL162: 0 | BM162: =VLOOKUP(BI162,التسويات!$AL$5:$AM$139,2) -> 0.005 | BN162: 0 | BO162: 0 | BP162: =IF(BI162>=T15,0,BM162*BO162) -> 0 | BQ162: =IF(BI162<BR1,BL162,0) -> 0 | BR162: =IF(BI162<BR1,BP162,0) -> 0 | BS162: =IFERROR(VLOOKUP(BI162,AP6:AQ138,2,FALSE),0) -> 0 | BT162: 0 | BU162: =IF(BI162<BR1,BS162,0) -> 0 | BW162: 0 | BX162: =DATE(R17,Q17,1) -> 1970-01-01 | BY162: =DATE(V17,U17,1) -> 1970-01-01 | BZ162: 1 | CA162: 0 | CB162: 0 | CC162: =DATE(R18,Q18,1) -> 1970-01-01 | CD162: =DATE(V18,U18,1) -> 1970-01-01 | CE162: 1 | CF162: 0 | CG162: 0 | CH162: =DATE(R19,Q19,1) -> 1970-01-01 | CI162: =DATE(V19,U19,1) -> 1970-01-01 | CJ162: 1 | CK162: 0 | CL162: 0
BD163: =W9 -> 2022-01-01 | BE163: =W14 -> 2022-03-01 | BF163: =VLOOKUP(BI163,AE5:AF140,2) ->  | BG163: =VLOOKUP(BI163,التسويات!$AU$5:$AX$59,2) -> 6 | BH163: =IF(K6="نعم",BF163,BG163) -> 6 | BI163: 1989-12-01 | BJ163: 0 | BK163: 1 | BL163: 0 | BM163: =VLOOKUP(BI163,التسويات!$AL$5:$AM$139,2) -> 0.005 | BN163: 0 | BO163: 0 | BP163: =IF(BI163>=T15,0,BM163*BO163) -> 0 | BQ163: =IF(BI163<BR1,BL163,0) -> 0 | BR163: =IF(BI163<BR1,BP163,0) -> 0 | BS163: =IFERROR(VLOOKUP(BI163,AP6:AQ138,2,FALSE),0) -> 0 | BT163: 0 | BU163: =IF(BI163<BR1,BS163,0) -> 0 | BW163: 0 | BX163: =DATE(R17,Q17,1) -> 1970-01-01 | BY163: =DATE(V17,U17,1) -> 1970-01-01 | BZ163: 1 | CA163: 0 | CB163: 0 | CC163: =DATE(R18,Q18,1) -> 1970-01-01 | CD163: =DATE(V18,U18,1) -> 1970-01-01 | CE163: 1 | CF163: 0 | CG163: 0 | CH163: =DATE(R19,Q19,1) -> 1970-01-01 | CI163: =DATE(V19,U19,1) -> 1970-01-01 | CJ163: 1 | CK163: 0 | CL163: 0
BD164: =W9 -> 2022-01-01 | BE164: =W14 -> 2022-03-01 | BF164: =VLOOKUP(BI164,AE5:AF140,2) ->  | BG164: =VLOOKUP(BI164,التسويات!$AU$5:$AX$59,2) -> 6 | BH164: =IF(K6="نعم",BF164,BG164) -> 6 | BI164: 1990-01-01 | BJ164: 0 | BK164: 1 | BL164: 0 | BM164: =VLOOKUP(BI164,التسويات!$AL$5:$AM$139,2) -> 0.005 | BN164: 0 | BO164: 0 | BP164: =IF(BI164>=T15,0,BM164*BO164) -> 0 | BQ164: =IF(BI164<BR1,BL164,0) -> 0 | BR164: =IF(BI164<BR1,BP164,0) -> 0 | BS164: =IFERROR(VLOOKUP(BI164,AP6:AQ138,2,FALSE),0) -> 0 | BT164: 0 | BU164: =IF(BI164<BR1,BS164,0) -> 0 | BW164: 0 | BX164: =DATE(R17,Q17,1) -> 1970-01-01 | BY164: =DATE(V17,U17,1) -> 1970-01-01 | BZ164: 1 | CA164: 0 | CB164: 0 | CC164: =DATE(R18,Q18,1) -> 1970-01-01 | CD164: =DATE(V18,U18,1) -> 1970-01-01 | CE164: 1 | CF164: 0 | CG164: 0 | CH164: =DATE(R19,Q19,1) -> 1970-01-01 | CI164: =DATE(V19,U19,1) -> 1970-01-01 | CJ164: 1 | CK164: 0 | CL164: 0
BD165: =W9 -> 2022-01-01 | BE165: =W14 -> 2022-03-01 | BF165: =VLOOKUP(BI165,AE5:AF140,2) ->  | BG165: =VLOOKUP(BI165,التسويات!$AU$5:$AX$59,2) -> 6 | BH165: =IF(K6="نعم",BF165,BG165) -> 6 | BI165: 1990-02-01 | BJ165: 0 | BK165: 1 | BL165: 0 | BM165: =VLOOKUP(BI165,التسويات!$AL$5:$AM$139,2) -> 0.005 | BN165: 0 | BO165: 0 | BP165: =IF(BI165>=T15,0,BM165*BO165) -> 0 | BQ165: =IF(BI165<BR1,BL165,0) -> 0 | BR165: =IF(BI165<BR1,BP165,0) -> 0 | BS165: =IFERROR(VLOOKUP(BI165,AP6:AQ138,2,FALSE),0) -> 0 | BT165: 0 | BU165: =IF(BI165<BR1,BS165,0) -> 0 | BW165: 0 | BX165: =DATE(R17,Q17,1) -> 1970-01-01 | BY165: =DATE(V17,U17,1) -> 1970-01-01 | BZ165: 1 | CA165: 0 | CB165: 0 | CC165: =DATE(R18,Q18,1) -> 1970-01-01 | CD165: =DATE(V18,U18,1) -> 1970-01-01 | CE165: 1 | CF165: 0 | CG165: 0 | CH165: =DATE(R19,Q19,1) -> 1970-01-01 | CI165: =DATE(V19,U19,1) -> 1970-01-01 | CJ165: 1 | CK165: 0 | CL165: 0
BD166: =W9 -> 2022-01-01 | BE166: =W14 -> 2022-03-01 | BF166: =VLOOKUP(BI166,AE5:AF140,2) ->  | BG166: =VLOOKUP(BI166,التسويات!$AU$5:$AX$59,2) -> 6 | BH166: =IF(K6="نعم",BF166,BG166) -> 6 | BI166: 1990-03-01 | BJ166: 0 | BK166: 1 | BL166: 0 | BM166: =VLOOKUP(BI166,التسويات!$AL$5:$AM$139,2) -> 0.005 | BN166: 0 | BO166: 0 | BP166: =IF(BI166>=T15,0,BM166*BO166) -> 0 | BQ166: =IF(BI166<BR1,BL166,0) -> 0 | BR166: =IF(BI166<BR1,BP166,0) -> 0 | BS166: =IFERROR(VLOOKUP(BI166,AP6:AQ138,2,FALSE),0) -> 0 | BT166: 0 | BU166: =IF(BI166<BR1,BS166,0) -> 0 | BW166: 0 | BX166: =DATE(R17,Q17,1) -> 1970-01-01 | BY166: =DATE(V17,U17,1) -> 1970-01-01 | BZ166: 1 | CA166: 0 | CB166: 0 | CC166: =DATE(R18,Q18,1) -> 1970-01-01 | CD166: =DATE(V18,U18,1) -> 1970-01-01 | CE166: 1 | CF166: 0 | CG166: 0 | CH166: =DATE(R19,Q19,1) -> 1970-01-01 | CI166: =DATE(V19,U19,1) -> 1970-01-01 | CJ166: 1 | CK166: 0 | CL166: 0
BD167: =W9 -> 2022-01-01 | BE167: =W14 -> 2022-03-01 | BF167: =VLOOKUP(BI167,AE5:AF140,2) ->  | BG167: =VLOOKUP(BI167,التسويات!$AU$5:$AX$59,2) -> 6 | BH167: =IF(K6="نعم",BF167,BG167) -> 6 | BI167: 1990-04-01 | BJ167: 0 | BK167: 1 | BL167: 0 | BM167: =VLOOKUP(BI167,التسويات!$AL$5:$AM$139,2) -> 0.005 | BN167: 0 | BO167: 0 | BP167: =IF(BI167>=T15,0,BM167*BO167) -> 0 | BQ167: =IF(BI167<BR1,BL167,0) -> 0 | BR167: =IF(BI167<BR1,BP167,0) -> 0 | BS167: =IFERROR(VLOOKUP(BI167,AP6:AQ138,2,FALSE),0) -> 0 | BT167: 0 | BU167: =IF(BI167<BR1,BS167,0) -> 0 | BW167: 0 | BX167: =DATE(R17,Q17,1) -> 1970-01-01 | BY167: =DATE(V17,U17,1) -> 1970-01-01 | BZ167: 1 | CA167: 0 | CB167: 0 | CC167: =DATE(R18,Q18,1) -> 1970-01-01 | CD167: =DATE(V18,U18,1) -> 1970-01-01 | CE167: 1 | CF167: 0 | CG167: 0 | CH167: =DATE(R19,Q19,1) -> 1970-01-01 | CI167: =DATE(V19,U19,1) -> 1970-01-01 | CJ167: 1 | CK167: 0 | CL167: 0
BD168: =W9 -> 2022-01-01 | BE168: =W14 -> 2022-03-01 | BF168: =VLOOKUP(BI168,AE5:AF140,2) ->  | BG168: =VLOOKUP(BI168,التسويات!$AU$5:$AX$59,2) -> 6 | BH168: =IF(K6="نعم",BF168,BG168) -> 6 | BI168: 1990-05-01 | BJ168: 0 | BK168: 1 | BL168: 0 | BM168: =VLOOKUP(BI168,التسويات!$AL$5:$AM$139,2) -> 0.005 | BN168: 0 | BO168: 0 | BP168: =IF(BI168>=T15,0,BM168*BO168) -> 0 | BQ168: =IF(BI168<BR1,BL168,0) -> 0 | BR168: =IF(BI168<BR1,BP168,0) -> 0 | BS168: =IFERROR(VLOOKUP(BI168,AP6:AQ138,2,FALSE),0) -> 0 | BT168: 0 | BU168: =IF(BI168<BR1,BS168,0) -> 0 | BW168: 0 | BX168: =DATE(R17,Q17,1) -> 1970-01-01 | BY168: =DATE(V17,U17,1) -> 1970-01-01 | BZ168: 1 | CA168: 0 | CB168: 0 | CC168: =DATE(R18,Q18,1) -> 1970-01-01 | CD168: =DATE(V18,U18,1) -> 1970-01-01 | CE168: 1 | CF168: 0 | CG168: 0 | CH168: =DATE(R19,Q19,1) -> 1970-01-01 | CI168: =DATE(V19,U19,1) -> 1970-01-01 | CJ168: 1 | CK168: 0 | CL168: 0
BD169: =W9 -> 2022-01-01 | BE169: =W14 -> 2022-03-01 | BF169: =VLOOKUP(BI169,AE5:AF140,2) ->  | BG169: =VLOOKUP(BI169,التسويات!$AU$5:$AX$59,2) -> 6 | BH169: =IF(K6="نعم",BF169,BG169) -> 6 | BI169: 1990-06-01 | BJ169: 0 | BK169: 1 | BL169: 0 | BM169: =VLOOKUP(BI169,التسويات!$AL$5:$AM$139,2) -> 0.005 | BN169: 0 | BO169: 0 | BP169: =IF(BI169>=T15,0,BM169*BO169) -> 0 | BQ169: =IF(BI169<BR1,BL169,0) -> 0 | BR169: =IF(BI169<BR1,BP169,0) -> 0 | BS169: =IFERROR(VLOOKUP(BI169,AP6:AQ138,2,FALSE),0) -> 0 | BT169: 0 | BU169: =IF(BI169<BR1,BS169,0) -> 0 | BW169: 0 | BX169: =DATE(R17,Q17,1) -> 1970-01-01 | BY169: =DATE(V17,U17,1) -> 1970-01-01 | BZ169: 1 | CA169: 0 | CB169: 0 | CC169: =DATE(R18,Q18,1) -> 1970-01-01 | CD169: =DATE(V18,U18,1) -> 1970-01-01 | CE169: 1 | CF169: 0 | CG169: 0 | CH169: =DATE(R19,Q19,1) -> 1970-01-01 | CI169: =DATE(V19,U19,1) -> 1970-01-01 | CJ169: 1 | CK169: 0 | CL169: 0
BD170: =W9 -> 2022-01-01 | BE170: =W14 -> 2022-03-01 | BF170: =VLOOKUP(BI170,AE5:AF140,2) ->  | BG170: =VLOOKUP(BI170,التسويات!$AU$5:$AX$59,2) -> 6 | BH170: =IF(K6="نعم",BF170,BG170) -> 6 | BI170: 1990-07-01 | BJ170: 0 | BK170: 1 | BL170: 0 | BM170: =VLOOKUP(BI170,التسويات!$AL$5:$AM$139,2) -> 0.005 | BN170: 0 | BO170: 0 | BP170: =IF(BI170>=T15,0,BM170*BO170) -> 0 | BQ170: =IF(BI170<BR1,BL170,0) -> 0 | BR170: =IF(BI170<BR1,BP170,0) -> 0 | BS170: =IFERROR(VLOOKUP(BI170,AP6:AQ138,2,FALSE),0) -> 0 | BT170: 0 | BU170: =IF(BI170<BR1,BS170,0) -> 0 | BW170: 0 | BX170: =DATE(R17,Q17,1) -> 1970-01-01 | BY170: =DATE(V17,U17,1) -> 1970-01-01 | BZ170: 1 | CA170: 0 | CB170: 0 | CC170: =DATE(R18,Q18,1) -> 1970-01-01 | CD170: =DATE(V18,U18,1) -> 1970-01-01 | CE170: 1 | CF170: 0 | CG170: 0 | CH170: =DATE(R19,Q19,1) -> 1970-01-01 | CI170: =DATE(V19,U19,1) -> 1970-01-01 | CJ170: 1 | CK170: 0 | CL170: 0
BD171: =W9 -> 2022-01-01 | BE171: =W14 -> 2022-03-01 | BF171: =VLOOKUP(BI171,AE5:AF140,2) ->  | BG171: =VLOOKUP(BI171,التسويات!$AU$5:$AX$59,2) -> 6 | BH171: =IF(K6="نعم",BF171,BG171) -> 6 | BI171: 1990-08-01 | BJ171: 0 | BK171: 1 | BL171: 0 | BM171: =VLOOKUP(BI171,التسويات!$AL$5:$AM$139,2) -> 0.005 | BN171: 0 | BO171: 0 | BP171: =IF(BI171>=T15,0,BM171*BO171) -> 0 | BQ171: =IF(BI171<BR1,BL171,0) -> 0 | BR171: =IF(BI171<BR1,BP171,0) -> 0 | BS171: =IFERROR(VLOOKUP(BI171,AP6:AQ138,2,FALSE),0) -> 0 | BT171: 0 | BU171: =IF(BI171<BR1,BS171,0) -> 0 | BW171: 0 | BX171: =DATE(R17,Q17,1) -> 1970-01-01 | BY171: =DATE(V17,U17,1) -> 1970-01-01 | BZ171: 1 | CA171: 0 | CB171: 0 | CC171: =DATE(R18,Q18,1) -> 1970-01-01 | CD171: =DATE(V18,U18,1) -> 1970-01-01 | CE171: 1 | CF171: 0 | CG171: 0 | CH171: =DATE(R19,Q19,1) -> 1970-01-01 | CI171: =DATE(V19,U19,1) -> 1970-01-01 | CJ171: 1 | CK171: 0 | CL171: 0
BD172: =W9 -> 2022-01-01 | BE172: =W14 -> 2022-03-01 | BF172: =VLOOKUP(BI172,AE5:AF140,2) ->  | BG172: =VLOOKUP(BI172,التسويات!$AU$5:$AX$59,2) -> 6 | BH172: =IF(K6="نعم",BF172,BG172) -> 6 | BI172: 1990-09-01 | BJ172: 0 | BK172: 1 | BL172: 0 | BM172: =VLOOKUP(BI172,التسويات!$AL$5:$AM$139,2) -> 0.005 | BN172: 0 | BO172: 0 | BP172: =IF(BI172>=T15,0,BM172*BO172) -> 0 | BQ172: =IF(BI172<BR1,BL172,0) -> 0 | BR172: =IF(BI172<BR1,BP172,0) -> 0 | BS172: =IFERROR(VLOOKUP(BI172,AP6:AQ138,2,FALSE),0) -> 0 | BT172: 0 | BU172: =IF(BI172<BR1,BS172,0) -> 0 | BW172: 0 | BX172: =DATE(R17,Q17,1) -> 1970-01-01 | BY172: =DATE(V17,U17,1) -> 1970-01-01 | BZ172: 1 | CA172: 0 | CB172: 0 | CC172: =DATE(R18,Q18,1) -> 1970-01-01 | CD172: =DATE(V18,U18,1) -> 1970-01-01 | CE172: 1 | CF172: 0 | CG172: 0 | CH172: =DATE(R19,Q19,1) -> 1970-01-01 | CI172: =DATE(V19,U19,1) -> 1970-01-01 | CJ172: 1 | CK172: 0 | CL172: 0
BD173: =W9 -> 2022-01-01 | BE173: =W14 -> 2022-03-01 | BF173: =VLOOKUP(BI173,AE5:AF140,2) ->  | BG173: =VLOOKUP(BI173,التسويات!$AU$5:$AX$59,2) -> 6 | BH173: =IF(K6="نعم",BF173,BG173) -> 6 | BI173: 1990-10-01 | BJ173: 0 | BK173: 1 | BL173: 0 | BM173: =VLOOKUP(BI173,التسويات!$AL$5:$AM$139,2) -> 0.005 | BN173: 0 | BO173: 0 | BP173: =IF(BI173>=T15,0,BM173*BO173) -> 0 | BQ173: =IF(BI173<BR1,BL173,0) -> 0 | BR173: =IF(BI173<BR1,BP173,0) -> 0 | BS173: =IFERROR(VLOOKUP(BI173,AP6:AQ138,2,FALSE),0) -> 0 | BT173: 0 | BU173: =IF(BI173<BR1,BS173,0) -> 0 | BW173: 0 | BX173: =DATE(R17,Q17,1) -> 1970-01-01 | BY173: =DATE(V17,U17,1) -> 1970-01-01 | BZ173: 1 | CA173: 0 | CB173: 0 | CC173: =DATE(R18,Q18,1) -> 1970-01-01 | CD173: =DATE(V18,U18,1) -> 1970-01-01 | CE173: 1 | CF173: 0 | CG173: 0 | CH173: =DATE(R19,Q19,1) -> 1970-01-01 | CI173: =DATE(V19,U19,1) -> 1970-01-01 | CJ173: 1 | CK173: 0 | CL173: 0
BD174: =W9 -> 2022-01-01 | BE174: =W14 -> 2022-03-01 | BF174: =VLOOKUP(BI174,AE5:AF140,2) ->  | BG174: =VLOOKUP(BI174,التسويات!$AU$5:$AX$59,2) -> 6 | BH174: =IF(K6="نعم",BF174,BG174) -> 6 | BI174: 1990-11-01 | BJ174: 0 | BK174: 1 | BL174: 0 | BM174: =VLOOKUP(BI174,التسويات!$AL$5:$AM$139,2) -> 0.005 | BN174: 0 | BO174: 0 | BP174: =IF(BI174>=T15,0,BM174*BO174) -> 0 | BQ174: =IF(BI174<BR1,BL174,0) -> 0 | BR174: =IF(BI174<BR1,BP174,0) -> 0 | BS174: =IFERROR(VLOOKUP(BI174,AP6:AQ138,2,FALSE),0) -> 0 | BT174: 0 | BU174: =IF(BI174<BR1,BS174,0) -> 0 | BW174: 0 | BX174: =DATE(R17,Q17,1) -> 1970-01-01 | BY174: =DATE(V17,U17,1) -> 1970-01-01 | BZ174: 1 | CA174: 0 | CB174: 0 | CC174: =DATE(R18,Q18,1) -> 1970-01-01 | CD174: =DATE(V18,U18,1) -> 1970-01-01 | CE174: 1 | CF174: 0 | CG174: 0 | CH174: =DATE(R19,Q19,1) -> 1970-01-01 | CI174: =DATE(V19,U19,1) -> 1970-01-01 | CJ174: 1 | CK174: 0 | CL174: 0
BD175: =W9 -> 2022-01-01 | BE175: =W14 -> 2022-03-01 | BF175: =VLOOKUP(BI175,AE5:AF140,2) ->  | BG175: =VLOOKUP(BI175,التسويات!$AU$5:$AX$59,2) -> 6 | BH175: =IF(K6="نعم",BF175,BG175) -> 6 | BI175: 1990-12-01 | BJ175: 0 | BK175: 1 | BL175: 0 | BM175: =VLOOKUP(BI175,التسويات!$AL$5:$AM$139,2) -> 0.005 | BN175: 0 | BO175: 0 | BP175: =IF(BI175>=T15,0,BM175*BO175) -> 0 | BQ175: =IF(BI175<BR1,BL175,0) -> 0 | BR175: =IF(BI175<BR1,BP175,0) -> 0 | BS175: =IFERROR(VLOOKUP(BI175,AP6:AQ138,2,FALSE),0) -> 0 | BT175: 0 | BU175: =IF(BI175<BR1,BS175,0) -> 0 | BW175: 0 | BX175: =DATE(R17,Q17,1) -> 1970-01-01 | BY175: =DATE(V17,U17,1) -> 1970-01-01 | BZ175: 1 | CA175: 0 | CB175: 0 | CC175: =DATE(R18,Q18,1) -> 1970-01-01 | CD175: =DATE(V18,U18,1) -> 1970-01-01 | CE175: 1 | CF175: 0 | CG175: 0 | CH175: =DATE(R19,Q19,1) -> 1970-01-01 | CI175: =DATE(V19,U19,1) -> 1970-01-01 | CJ175: 1 | CK175: 0 | CL175: 0
BD176: =W9 -> 2022-01-01 | BE176: =W14 -> 2022-03-01 | BF176: =VLOOKUP(BI176,AE5:AF140,2) ->  | BG176: =VLOOKUP(BI176,التسويات!$AU$5:$AX$59,2) -> 6 | BH176: =IF(K6="نعم",BF176,BG176) -> 6 | BI176: 1991-01-01 | BJ176: 0 | BK176: 1 | BL176: 0 | BM176: =VLOOKUP(BI176,التسويات!$AL$5:$AM$139,2) -> 0.005 | BN176: 0 | BO176: 0 | BP176: =IF(BI176>=T15,0,BM176*BO176) -> 0 | BQ176: =IF(BI176<BR1,BL176,0) -> 0 | BR176: =IF(BI176<BR1,BP176,0) -> 0 | BS176: =IFERROR(VLOOKUP(BI176,AP6:AQ138,2,FALSE),0) -> 0 | BT176: 0 | BU176: =IF(BI176<BR1,BS176,0) -> 0 | BW176: 0 | BX176: =DATE(R17,Q17,1) -> 1970-01-01 | BY176: =DATE(V17,U17,1) -> 1970-01-01 | BZ176: 1 | CA176: 0 | CB176: 0 | CC176: =DATE(R18,Q18,1) -> 1970-01-01 | CD176: =DATE(V18,U18,1) -> 1970-01-01 | CE176: 1 | CF176: 0 | CG176: 0 | CH176: =DATE(R19,Q19,1) -> 1970-01-01 | CI176: =DATE(V19,U19,1) -> 1970-01-01 | CJ176: 1 | CK176: 0 | CL176: 0
BD177: =W9 -> 2022-01-01 | BE177: =W14 -> 2022-03-01 | BF177: =VLOOKUP(BI177,AE5:AF140,2) ->  | BG177: =VLOOKUP(BI177,التسويات!$AU$5:$AX$59,2) -> 6 | BH177: =IF(K6="نعم",BF177,BG177) -> 6 | BI177: 1991-02-01 | BJ177: 0 | BK177: 1 | BL177: 0 | BM177: =VLOOKUP(BI177,التسويات!$AL$5:$AM$139,2) -> 0.005 | BN177: 0 | BO177: 0 | BP177: =IF(BI177>=T15,0,BM177*BO177) -> 0 | BQ177: =IF(BI177<BR1,BL177,0) -> 0 | BR177: =IF(BI177<BR1,BP177,0) -> 0 | BS177: =IFERROR(VLOOKUP(BI177,AP6:AQ138,2,FALSE),0) -> 0 | BT177: 0 | BU177: =IF(BI177<BR1,BS177,0) -> 0 | BW177: 0 | BX177: =DATE(R17,Q17,1) -> 1970-01-01 | BY177: =DATE(V17,U17,1) -> 1970-01-01 | BZ177: 1 | CA177: 0 | CB177: 0 | CC177: =DATE(R18,Q18,1) -> 1970-01-01 | CD177: =DATE(V18,U18,1) -> 1970-01-01 | CE177: 1 | CF177: 0 | CG177: 0 | CH177: =DATE(R19,Q19,1) -> 1970-01-01 | CI177: =DATE(V19,U19,1) -> 1970-01-01 | CJ177: 1 | CK177: 0 | CL177: 0
BD178: =W9 -> 2022-01-01 | BE178: =W14 -> 2022-03-01 | BF178: =VLOOKUP(BI178,AE5:AF140,2) ->  | BG178: =VLOOKUP(BI178,التسويات!$AU$5:$AX$59,2) -> 6 | BH178: =IF(K6="نعم",BF178,BG178) -> 6 | BI178: 1991-03-01 | BJ178: 0 | BK178: 1 | BL178: 0 | BM178: =VLOOKUP(BI178,التسويات!$AL$5:$AM$139,2) -> 0.005 | BN178: 0 | BO178: 0 | BP178: =IF(BI178>=T15,0,BM178*BO178) -> 0 | BQ178: =IF(BI178<BR1,BL178,0) -> 0 | BR178: =IF(BI178<BR1,BP178,0) -> 0 | BS178: =IFERROR(VLOOKUP(BI178,AP6:AQ138,2,FALSE),0) -> 0 | BT178: 0 | BU178: =IF(BI178<BR1,BS178,0) -> 0 | BW178: 0 | BX178: =DATE(R17,Q17,1) -> 1970-01-01 | BY178: =DATE(V17,U17,1) -> 1970-01-01 | BZ178: 1 | CA178: 0 | CB178: 0 | CC178: =DATE(R18,Q18,1) -> 1970-01-01 | CD178: =DATE(V18,U18,1) -> 1970-01-01 | CE178: 1 | CF178: 0 | CG178: 0 | CH178: =DATE(R19,Q19,1) -> 1970-01-01 | CI178: =DATE(V19,U19,1) -> 1970-01-01 | CJ178: 1 | CK178: 0 | CL178: 0
BD179: =W9 -> 2022-01-01 | BE179: =W14 -> 2022-03-01 | BF179: =VLOOKUP(BI179,AE5:AF140,2) ->  | BG179: =VLOOKUP(BI179,التسويات!$AU$5:$AX$59,2) -> 6 | BH179: =IF(K6="نعم",BF179,BG179) -> 6 | BI179: 1991-04-01 | BJ179: 0 | BK179: 1 | BL179: 0 | BM179: =VLOOKUP(BI179,التسويات!$AL$5:$AM$139,2) -> 0.005 | BN179: 0 | BO179: 0 | BP179: =IF(BI179>=T15,0,BM179*BO179) -> 0 | BQ179: =IF(BI179<BR1,BL179,0) -> 0 | BR179: =IF(BI179<BR1,BP179,0) -> 0 | BS179: =IFERROR(VLOOKUP(BI179,AP6:AQ138,2,FALSE),0) -> 0 | BT179: 0 | BU179: =IF(BI179<BR1,BS179,0) -> 0 | BW179: 0 | BX179: =DATE(R17,Q17,1) -> 1970-01-01 | BY179: =DATE(V17,U17,1) -> 1970-01-01 | BZ179: 1 | CA179: 0 | CB179: 0 | CC179: =DATE(R18,Q18,1) -> 1970-01-01 | CD179: =DATE(V18,U18,1) -> 1970-01-01 | CE179: 1 | CF179: 0 | CG179: 0 | CH179: =DATE(R19,Q19,1) -> 1970-01-01 | CI179: =DATE(V19,U19,1) -> 1970-01-01 | CJ179: 1 | CK179: 0 | CL179: 0
BD180: =W9 -> 2022-01-01 | BE180: =W14 -> 2022-03-01 | BF180: =VLOOKUP(BI180,AE5:AF140,2) ->  | BG180: =VLOOKUP(BI180,التسويات!$AU$5:$AX$59,2) -> 6 | BH180: =IF(K6="نعم",BF180,BG180) -> 6 | BI180: 1991-05-01 | BJ180: 0 | BK180: 1 | BL180: 0 | BM180: =VLOOKUP(BI180,التسويات!$AL$5:$AM$139,2) -> 0.005 | BN180: 0 | BO180: 0 | BP180: =IF(BI180>=T15,0,BM180*BO180) -> 0 | BQ180: =IF(BI180<BR1,BL180,0) -> 0 | BR180: =IF(BI180<BR1,BP180,0) -> 0 | BS180: =IFERROR(VLOOKUP(BI180,AP6:AQ138,2,FALSE),0) -> 0 | BT180: 0 | BU180: =IF(BI180<BR1,BS180,0) -> 0 | BW180: 0 | BX180: =DATE(R17,Q17,1) -> 1970-01-01 | BY180: =DATE(V17,U17,1) -> 1970-01-01 | BZ180: 1 | CA180: 0 | CB180: 0 | CC180: =DATE(R18,Q18,1) -> 1970-01-01 | CD180: =DATE(V18,U18,1) -> 1970-01-01 | CE180: 1 | CF180: 0 | CG180: 0 | CH180: =DATE(R19,Q19,1) -> 1970-01-01 | CI180: =DATE(V19,U19,1) -> 1970-01-01 | CJ180: 1 | CK180: 0 | CL180: 0
BD181: =W9 -> 2022-01-01 | BE181: =W14 -> 2022-03-01 | BF181: =VLOOKUP(BI181,AE5:AF140,2) ->  | BG181: =VLOOKUP(BI181,التسويات!$AU$5:$AX$59,2) -> 6 | BH181: =IF(K6="نعم",BF181,BG181) -> 6 | BI181: 1991-06-01 | BJ181: 0 | BK181: 1 | BL181: 0 | BM181: =VLOOKUP(BI181,التسويات!$AL$5:$AM$139,2) -> 0.005 | BN181: 0 | BO181: 0 | BP181: =IF(BI181>=T15,0,BM181*BO181) -> 0 | BQ181: =IF(BI181<BR1,BL181,0) -> 0 | BR181: =IF(BI181<BR1,BP181,0) -> 0 | BS181: =IFERROR(VLOOKUP(BI181,AP6:AQ138,2,FALSE),0) -> 0 | BT181: 0 | BU181: =IF(BI181<BR1,BS181,0) -> 0 | BW181: 0 | BX181: =DATE(R17,Q17,1) -> 1970-01-01 | BY181: =DATE(V17,U17,1) -> 1970-01-01 | BZ181: 1 | CA181: 0 | CB181: 0 | CC181: =DATE(R18,Q18,1) -> 1970-01-01 | CD181: =DATE(V18,U18,1) -> 1970-01-01 | CE181: 1 | CF181: 0 | CG181: 0 | CH181: =DATE(R19,Q19,1) -> 1970-01-01 | CI181: =DATE(V19,U19,1) -> 1970-01-01 | CJ181: 1 | CK181: 0 | CL181: 0
BD182: =W9 -> 2022-01-01 | BE182: =W14 -> 2022-03-01 | BF182: =VLOOKUP(BI182,AE5:AF140,2) ->  | BG182: =VLOOKUP(BI182,التسويات!$AU$5:$AX$59,2) -> 6 | BH182: =IF(K6="نعم",BF182,BG182) -> 6 | BI182: 1991-07-01 | BJ182: 0 | BK182: 1 | BL182: 0 | BM182: =VLOOKUP(BI182,التسويات!$AL$5:$AM$139,2) -> 0.005 | BN182: 0 | BO182: 0 | BP182: =IF(BI182>=T15,0,BM182*BO182) -> 0 | BQ182: =IF(BI182<BR1,BL182,0) -> 0 | BR182: =IF(BI182<BR1,BP182,0) -> 0 | BS182: =IFERROR(VLOOKUP(BI182,AP6:AQ138,2,FALSE),0) -> 0 | BT182: 0 | BU182: =IF(BI182<BR1,BS182,0) -> 0 | BW182: 0 | BX182: =DATE(R17,Q17,1) -> 1970-01-01 | BY182: =DATE(V17,U17,1) -> 1970-01-01 | BZ182: 1 | CA182: 0 | CB182: 0 | CC182: =DATE(R18,Q18,1) -> 1970-01-01 | CD182: =DATE(V18,U18,1) -> 1970-01-01 | CE182: 1 | CF182: 0 | CG182: 0 | CH182: =DATE(R19,Q19,1) -> 1970-01-01 | CI182: =DATE(V19,U19,1) -> 1970-01-01 | CJ182: 1 | CK182: 0 | CL182: 0
BD183: =W9 -> 2022-01-01 | BE183: =W14 -> 2022-03-01 | BF183: =VLOOKUP(BI183,AE5:AF140,2) ->  | BG183: =VLOOKUP(BI183,التسويات!$AU$5:$AX$59,2) -> 6 | BH183: =IF(K6="نعم",BF183,BG183) -> 6 | BI183: 1991-08-01 | BJ183: 0 | BK183: 1 | BL183: 0 | BM183: =VLOOKUP(BI183,التسويات!$AL$5:$AM$139,2) -> 0.005 | BN183: 0 | BO183: 0 | BP183: =IF(BI183>=T15,0,BM183*BO183) -> 0 | BQ183: =IF(BI183<BR1,BL183,0) -> 0 | BR183: =IF(BI183<BR1,BP183,0) -> 0 | BS183: =IFERROR(VLOOKUP(BI183,AP6:AQ138,2,FALSE),0) -> 0 | BT183: 0 | BU183: =IF(BI183<BR1,BS183,0) -> 0 | BW183: 0 | BX183: =DATE(R17,Q17,1) -> 1970-01-01 | BY183: =DATE(V17,U17,1) -> 1970-01-01 | BZ183: 1 | CA183: 0 | CB183: 0 | CC183: =DATE(R18,Q18,1) -> 1970-01-01 | CD183: =DATE(V18,U18,1) -> 1970-01-01 | CE183: 1 | CF183: 0 | CG183: 0 | CH183: =DATE(R19,Q19,1) -> 1970-01-01 | CI183: =DATE(V19,U19,1) -> 1970-01-01 | CJ183: 1 | CK183: 0 | CL183: 0
BD184: =W9 -> 2022-01-01 | BE184: =W14 -> 2022-03-01 | BF184: =VLOOKUP(BI184,AE5:AF140,2) ->  | BG184: =VLOOKUP(BI184,التسويات!$AU$5:$AX$59,2) -> 6 | BH184: =IF(K6="نعم",BF184,BG184) -> 6 | BI184: 1991-09-01 | BJ184: 0 | BK184: 1 | BL184: 0 | BM184: =VLOOKUP(BI184,التسويات!$AL$5:$AM$139,2) -> 0.005 | BN184: 0 | BO184: 0 | BP184: =IF(BI184>=T15,0,BM184*BO184) -> 0 | BQ184: =IF(BI184<BR1,BL184,0) -> 0 | BR184: =IF(BI184<BR1,BP184,0) -> 0 | BS184: =IFERROR(VLOOKUP(BI184,AP6:AQ138,2,FALSE),0) -> 0 | BT184: 0 | BU184: =IF(BI184<BR1,BS184,0) -> 0 | BW184: 0 | BX184: =DATE(R17,Q17,1) -> 1970-01-01 | BY184: =DATE(V17,U17,1) -> 1970-01-01 | BZ184: 1 | CA184: 0 | CB184: 0 | CC184: =DATE(R18,Q18,1) -> 1970-01-01 | CD184: =DATE(V18,U18,1) -> 1970-01-01 | CE184: 1 | CF184: 0 | CG184: 0 | CH184: =DATE(R19,Q19,1) -> 1970-01-01 | CI184: =DATE(V19,U19,1) -> 1970-01-01 | CJ184: 1 | CK184: 0 | CL184: 0
BD185: =W9 -> 2022-01-01 | BE185: =W14 -> 2022-03-01 | BF185: =VLOOKUP(BI185,AE5:AF140,2) ->  | BG185: =VLOOKUP(BI185,التسويات!$AU$5:$AX$59,2) -> 6 | BH185: =IF(K6="نعم",BF185,BG185) -> 6 | BI185: 1991-10-01 | BJ185: 0 | BK185: 1 | BL185: 0 | BM185: =VLOOKUP(BI185,التسويات!$AL$5:$AM$139,2) -> 0.005 | BN185: 0 | BO185: 0 | BP185: =IF(BI185>=T15,0,BM185*BO185) -> 0 | BQ185: =IF(BI185<BR1,BL185,0) -> 0 | BR185: =IF(BI185<BR1,BP185,0) -> 0 | BS185: =IFERROR(VLOOKUP(BI185,AP6:AQ138,2,FALSE),0) -> 0 | BT185: 0 | BU185: =IF(BI185<BR1,BS185,0) -> 0 | BW185: 0 | BX185: =DATE(R17,Q17,1) -> 1970-01-01 | BY185: =DATE(V17,U17,1) -> 1970-01-01 | BZ185: 1 | CA185: 0 | CB185: 0 | CC185: =DATE(R18,Q18,1) -> 1970-01-01 | CD185: =DATE(V18,U18,1) -> 1970-01-01 | CE185: 1 | CF185: 0 | CG185: 0 | CH185: =DATE(R19,Q19,1) -> 1970-01-01 | CI185: =DATE(V19,U19,1) -> 1970-01-01 | CJ185: 1 | CK185: 0 | CL185: 0
BD186: =W9 -> 2022-01-01 | BE186: =W14 -> 2022-03-01 | BF186: =VLOOKUP(BI186,AE5:AF140,2) ->  | BG186: =VLOOKUP(BI186,التسويات!$AU$5:$AX$59,2) -> 6 | BH186: =IF(K6="نعم",BF186,BG186) -> 6 | BI186: 1991-11-01 | BJ186: 0 | BK186: 1 | BL186: 0 | BM186: =VLOOKUP(BI186,التسويات!$AL$5:$AM$139,2) -> 0.005 | BN186: 0 | BO186: 0 | BP186: =IF(BI186>=T15,0,BM186*BO186) -> 0 | BQ186: =IF(BI186<BR1,BL186,0) -> 0 | BR186: =IF(BI186<BR1,BP186,0) -> 0 | BS186: =IFERROR(VLOOKUP(BI186,AP6:AQ138,2,FALSE),0) -> 0 | BT186: 0 | BU186: =IF(BI186<BR1,BS186,0) -> 0 | BW186: 0 | BX186: =DATE(R17,Q17,1) -> 1970-01-01 | BY186: =DATE(V17,U17,1) -> 1970-01-01 | BZ186: 1 | CA186: 0 | CB186: 0 | CC186: =DATE(R18,Q18,1) -> 1970-01-01 | CD186: =DATE(V18,U18,1) -> 1970-01-01 | CE186: 1 | CF186: 0 | CG186: 0 | CH186: =DATE(R19,Q19,1) -> 1970-01-01 | CI186: =DATE(V19,U19,1) -> 1970-01-01 | CJ186: 1 | CK186: 0 | CL186: 0
BD187: =W9 -> 2022-01-01 | BE187: =W14 -> 2022-03-01 | BF187: =VLOOKUP(BI187,AE5:AF140,2) ->  | BG187: =VLOOKUP(BI187,التسويات!$AU$5:$AX$59,2) -> 6 | BH187: =IF(K6="نعم",BF187,BG187) -> 6 | BI187: 1991-12-01 | BJ187: 0 | BK187: 1 | BL187: 0 | BM187: =VLOOKUP(BI187,التسويات!$AL$5:$AM$139,2) -> 0.005 | BN187: 0 | BO187: 0 | BP187: =IF(BI187>=T15,0,BM187*BO187) -> 0 | BQ187: =IF(BI187<BR1,BL187,0) -> 0 | BR187: =IF(BI187<BR1,BP187,0) -> 0 | BS187: =IFERROR(VLOOKUP(BI187,AP6:AQ138,2,FALSE),0) -> 0 | BT187: 0 | BU187: =IF(BI187<BR1,BS187,0) -> 0 | BW187: 0 | BX187: =DATE(R17,Q17,1) -> 1970-01-01 | BY187: =DATE(V17,U17,1) -> 1970-01-01 | BZ187: 1 | CA187: 0 | CB187: 0 | CC187: =DATE(R18,Q18,1) -> 1970-01-01 | CD187: =DATE(V18,U18,1) -> 1970-01-01 | CE187: 1 | CF187: 0 | CG187: 0 | CH187: =DATE(R19,Q19,1) -> 1970-01-01 | CI187: =DATE(V19,U19,1) -> 1970-01-01 | CJ187: 1 | CK187: 0 | CL187: 0
BD188: =W9 -> 2022-01-01 | BE188: =W14 -> 2022-03-01 | BF188: =VLOOKUP(BI188,AE5:AF140,2) ->  | BG188: =VLOOKUP(BI188,التسويات!$AU$5:$AX$59,2) -> 6 | BH188: =IF(K6="نعم",BF188,BG188) -> 6 | BI188: 1992-01-01 | BJ188: 0 | BK188: 1 | BL188: 0 | BM188: =VLOOKUP(BI188,التسويات!$AL$5:$AM$139,2) -> 0.005 | BN188: 0 | BO188: 0 | BP188: =IF(BI188>=T15,0,BM188*BO188) -> 0 | BQ188: =IF(BI188<BR1,BL188,0) -> 0 | BR188: =IF(BI188<BR1,BP188,0) -> 0 | BS188: =IFERROR(VLOOKUP(BI188,AP6:AQ138,2,FALSE),0) -> 0 | BT188: 0 | BU188: =IF(BI188<BR1,BS188,0) -> 0 | BW188: 0 | BX188: =DATE(R17,Q17,1) -> 1970-01-01 | BY188: =DATE(V17,U17,1) -> 1970-01-01 | BZ188: 1 | CA188: 0 | CB188: 0 | CC188: =DATE(R18,Q18,1) -> 1970-01-01 | CD188: =DATE(V18,U18,1) -> 1970-01-01 | CE188: 1 | CF188: 0 | CG188: 0 | CH188: =DATE(R19,Q19,1) -> 1970-01-01 | CI188: =DATE(V19,U19,1) -> 1970-01-01 | CJ188: 1 | CK188: 0 | CL188: 0
BD189: =W9 -> 2022-01-01 | BE189: =W14 -> 2022-03-01 | BF189: =VLOOKUP(BI189,AE5:AF140,2) ->  | BG189: =VLOOKUP(BI189,التسويات!$AU$5:$AX$59,2) -> 6 | BH189: =IF(K6="نعم",BF189,BG189) -> 6 | BI189: 1992-02-01 | BJ189: 0 | BK189: 1 | BL189: 0 | BM189: =VLOOKUP(BI189,التسويات!$AL$5:$AM$139,2) -> 0.005 | BN189: 0 | BO189: 0 | BP189: =IF(BI189>=T15,0,BM189*BO189) -> 0 | BQ189: =IF(BI189<BR1,BL189,0) -> 0 | BR189: =IF(BI189<BR1,BP189,0) -> 0 | BS189: =IFERROR(VLOOKUP(BI189,AP6:AQ138,2,FALSE),0) -> 0 | BT189: 0 | BU189: =IF(BI189<BR1,BS189,0) -> 0 | BW189: 0 | BX189: =DATE(R17,Q17,1) -> 1970-01-01 | BY189: =DATE(V17,U17,1) -> 1970-01-01 | BZ189: 1 | CA189: 0 | CB189: 0 | CC189: =DATE(R18,Q18,1) -> 1970-01-01 | CD189: =DATE(V18,U18,1) -> 1970-01-01 | CE189: 1 | CF189: 0 | CG189: 0 | CH189: =DATE(R19,Q19,1) -> 1970-01-01 | CI189: =DATE(V19,U19,1) -> 1970-01-01 | CJ189: 1 | CK189: 0 | CL189: 0
BD190: =W9 -> 2022-01-01 | BE190: =W14 -> 2022-03-01 | BF190: =VLOOKUP(BI190,AE5:AF140,2) ->  | BG190: =VLOOKUP(BI190,التسويات!$AU$5:$AX$59,2) -> 6 | BH190: =IF(K6="نعم",BF190,BG190) -> 6 | BI190: 1992-03-01 | BJ190: 0 | BK190: 1 | BL190: 0 | BM190: =VLOOKUP(BI190,التسويات!$AL$5:$AM$139,2) -> 0.005 | BN190: 0 | BO190: 0 | BP190: =IF(BI190>=T15,0,BM190*BO190) -> 0 | BQ190: =IF(BI190<BR1,BL190,0) -> 0 | BR190: =IF(BI190<BR1,BP190,0) -> 0 | BS190: =IFERROR(VLOOKUP(BI190,AP6:AQ138,2,FALSE),0) -> 0 | BT190: 0 | BU190: =IF(BI190<BR1,BS190,0) -> 0 | BW190: 0 | BX190: =DATE(R17,Q17,1) -> 1970-01-01 | BY190: =DATE(V17,U17,1) -> 1970-01-01 | BZ190: 1 | CA190: 0 | CB190: 0 | CC190: =DATE(R18,Q18,1) -> 1970-01-01 | CD190: =DATE(V18,U18,1) -> 1970-01-01 | CE190: 1 | CF190: 0 | CG190: 0 | CH190: =DATE(R19,Q19,1) -> 1970-01-01 | CI190: =DATE(V19,U19,1) -> 1970-01-01 | CJ190: 1 | CK190: 0 | CL190: 0
BD191: =W9 -> 2022-01-01 | BE191: =W14 -> 2022-03-01 | BF191: =VLOOKUP(BI191,AE5:AF140,2) ->  | BG191: =VLOOKUP(BI191,التسويات!$AU$5:$AX$59,2) -> 6 | BH191: =IF(K6="نعم",BF191,BG191) -> 6 | BI191: 1992-04-01 | BJ191: 0 | BK191: 1 | BL191: 0 | BM191: =VLOOKUP(BI191,التسويات!$AL$5:$AM$139,2) -> 0.005 | BN191: 0 | BO191: 0 | BP191: =IF(BI191>=T15,0,BM191*BO191) -> 0 | BQ191: =IF(BI191<BR1,BL191,0) -> 0 | BR191: =IF(BI191<BR1,BP191,0) -> 0 | BS191: =IFERROR(VLOOKUP(BI191,AP6:AQ138,2,FALSE),0) -> 0 | BT191: 0 | BU191: =IF(BI191<BR1,BS191,0) -> 0 | BW191: 0 | BX191: =DATE(R17,Q17,1) -> 1970-01-01 | BY191: =DATE(V17,U17,1) -> 1970-01-01 | BZ191: 1 | CA191: 0 | CB191: 0 | CC191: =DATE(R18,Q18,1) -> 1970-01-01 | CD191: =DATE(V18,U18,1) -> 1970-01-01 | CE191: 1 | CF191: 0 | CG191: 0 | CH191: =DATE(R19,Q19,1) -> 1970-01-01 | CI191: =DATE(V19,U19,1) -> 1970-01-01 | CJ191: 1 | CK191: 0 | CL191: 0
BD192: =W9 -> 2022-01-01 | BE192: =W14 -> 2022-03-01 | BF192: =VLOOKUP(BI192,AE5:AF140,2) ->  | BG192: =VLOOKUP(BI192,التسويات!$AU$5:$AX$59,2) -> 6 | BH192: =IF(K6="نعم",BF192,BG192) -> 6 | BI192: 1992-05-01 | BJ192: 0 | BK192: 1 | BL192: 0 | BM192: =VLOOKUP(BI192,التسويات!$AL$5:$AM$139,2) -> 0.005 | BN192: 0 | BO192: 0 | BP192: =IF(BI192>=T15,0,BM192*BO192) -> 0 | BQ192: =IF(BI192<BR1,BL192,0) -> 0 | BR192: =IF(BI192<BR1,BP192,0) -> 0 | BS192: =IFERROR(VLOOKUP(BI192,AP6:AQ138,2,FALSE),0) -> 0 | BT192: 0 | BU192: =IF(BI192<BR1,BS192,0) -> 0 | BW192: 0 | BX192: =DATE(R17,Q17,1) -> 1970-01-01 | BY192: =DATE(V17,U17,1) -> 1970-01-01 | BZ192: 1 | CA192: 0 | CB192: 0 | CC192: =DATE(R18,Q18,1) -> 1970-01-01 | CD192: =DATE(V18,U18,1) -> 1970-01-01 | CE192: 1 | CF192: 0 | CG192: 0 | CH192: =DATE(R19,Q19,1) -> 1970-01-01 | CI192: =DATE(V19,U19,1) -> 1970-01-01 | CJ192: 1 | CK192: 0 | CL192: 0
BD193: =W9 -> 2022-01-01 | BE193: =W14 -> 2022-03-01 | BF193: =VLOOKUP(BI193,AE5:AF140,2) ->  | BG193: =VLOOKUP(BI193,التسويات!$AU$5:$AX$59,2) -> 6 | BH193: =IF(K6="نعم",BF193,BG193) -> 6 | BI193: 1992-06-01 | BJ193: 0 | BK193: 1 | BL193: 0 | BM193: =VLOOKUP(BI193,التسويات!$AL$5:$AM$139,2) -> 0.005 | BN193: 0 | BO193: 0 | BP193: =IF(BI193>=T15,0,BM193*BO193) -> 0 | BQ193: =IF(BI193<BR1,BL193,0) -> 0 | BR193: =IF(BI193<BR1,BP193,0) -> 0 | BS193: =IFERROR(VLOOKUP(BI193,AP6:AQ138,2,FALSE),0) -> 0 | BT193: 0 | BU193: =IF(BI193<BR1,BS193,0) -> 0 | BW193: 0 | BX193: =DATE(R17,Q17,1) -> 1970-01-01 | BY193: =DATE(V17,U17,1) -> 1970-01-01 | BZ193: 1 | CA193: 0 | CB193: 0 | CC193: =DATE(R18,Q18,1) -> 1970-01-01 | CD193: =DATE(V18,U18,1) -> 1970-01-01 | CE193: 1 | CF193: 0 | CG193: 0 | CH193: =DATE(R19,Q19,1) -> 1970-01-01 | CI193: =DATE(V19,U19,1) -> 1970-01-01 | CJ193: 1 | CK193: 0 | CL193: 0
BD194: =W9 -> 2022-01-01 | BE194: =W14 -> 2022-03-01 | BF194: =VLOOKUP(BI194,AE5:AF140,2) ->  | BG194: =VLOOKUP(BI194,التسويات!$AU$5:$AX$59,2) -> 6 | BH194: =IF(K6="نعم",BF194,BG194) -> 6 | BI194: 1992-07-01 | BJ194: 0 | BK194: 1 | BL194: 0 | BM194: =VLOOKUP(BI194,التسويات!$AL$5:$AM$139,2) -> 0.005 | BN194: 0 | BO194: 0 | BP194: =IF(BI194>=T15,0,BM194*BO194) -> 0 | BQ194: =IF(BI194<BR1,BL194,0) -> 0 | BR194: =IF(BI194<BR1,BP194,0) -> 0 | BS194: =IFERROR(VLOOKUP(BI194,AP6:AQ138,2,FALSE),0) -> 0 | BT194: 0 | BU194: =IF(BI194<BR1,BS194,0) -> 0 | BW194: 0 | BX194: =DATE(R17,Q17,1) -> 1970-01-01 | BY194: =DATE(V17,U17,1) -> 1970-01-01 | BZ194: 1 | CA194: 0 | CB194: 0 | CC194: =DATE(R18,Q18,1) -> 1970-01-01 | CD194: =DATE(V18,U18,1) -> 1970-01-01 | CE194: 1 | CF194: 0 | CG194: 0 | CH194: =DATE(R19,Q19,1) -> 1970-01-01 | CI194: =DATE(V19,U19,1) -> 1970-01-01 | CJ194: 1 | CK194: 0 | CL194: 0
BD195: =W9 -> 2022-01-01 | BE195: =W14 -> 2022-03-01 | BF195: =VLOOKUP(BI195,AE5:AF140,2) ->  | BG195: =VLOOKUP(BI195,التسويات!$AU$5:$AX$59,2) -> 6 | BH195: =IF(K6="نعم",BF195,BG195) -> 6 | BI195: 1992-08-01 | BJ195: 0 | BK195: 1 | BL195: 0 | BM195: =VLOOKUP(BI195,التسويات!$AL$5:$AM$139,2) -> 0.005 | BN195: =BN194+BL195 -> 0 | BO195: 0 | BP195: =IF(BI195>=T15,0,BM195*BO195) -> 0 | BQ195: =IF(BI195<BR1,BL195,0) -> 0 | BR195: =IF(BI195<BR1,BP195,0) -> 0 | BS195: =IFERROR(VLOOKUP(BI195,AP6:AQ138,2,FALSE),0) -> 0 | BT195: =BT194+BS195 -> 0 | BU195: =IF(BI195<BR1,BS195,0) -> 0 | BW195: 0 | BX195: =DATE(R17,Q17,1) -> 1970-01-01 | BY195: =DATE(V17,U17,1) -> 1970-01-01 | BZ195: 1 | CA195: 0 | CB195: 0 | CC195: =DATE(R18,Q18,1) -> 1970-01-01 | CD195: =DATE(V18,U18,1) -> 1970-01-01 | CE195: 1 | CF195: 0 | CG195: 0 | CH195: =DATE(R19,Q19,1) -> 1970-01-01 | CI195: =DATE(V19,U19,1) -> 1970-01-01 | CJ195: 1 | CK195: 0 | CL195: 0
BD196: =W9 -> 2022-01-01 | BE196: =W14 -> 2022-03-01 | BF196: =VLOOKUP(BI196,AE5:AF140,2) ->  | BG196: =VLOOKUP(BI196,التسويات!$AU$5:$AX$59,2) -> 6 | BH196: =IF(K6="نعم",BF196,BG196) -> 6 | BI196: 1992-09-01 | BJ196: 0 | BK196: 1 | BL196: 0 | BM196: =VLOOKUP(BI196,التسويات!$AL$5:$AM$139,2) -> 0.005 | BN196: 0 | BO196: 0 | BP196: =IF(BI196>=T15,0,BM196*BO196) -> 0 | BQ196: =IF(BI196<BR1,BL196,0) -> 0 | BR196: =IF(BI196<BR1,BP196,0) -> 0 | BS196: =IFERROR(VLOOKUP(BI196,AP6:AQ138,2,FALSE),0) -> 0 | BT196: 0 | BU196: =IF(BI196<BR1,BS196,0) -> 0 | BW196: 0 | BX196: =DATE(R17,Q17,1) -> 1970-01-01 | BY196: =DATE(V17,U17,1) -> 1970-01-01 | BZ196: 1 | CA196: 0 | CB196: 0 | CC196: =DATE(R18,Q18,1) -> 1970-01-01 | CD196: =DATE(V18,U18,1) -> 1970-01-01 | CE196: 1 | CF196: 0 | CG196: 0 | CH196: =DATE(R19,Q19,1) -> 1970-01-01 | CI196: =DATE(V19,U19,1) -> 1970-01-01 | CJ196: 1 | CK196: 0 | CL196: 0
BD197: =W9 -> 2022-01-01 | BE197: =W14 -> 2022-03-01 | BF197: =VLOOKUP(BI197,AE5:AF140,2) ->  | BG197: =VLOOKUP(BI197,التسويات!$AU$5:$AX$59,2) -> 6 | BH197: =IF(K6="نعم",BF197,BG197) -> 6 | BI197: 1992-10-01 | BJ197: 0 | BK197: 1 | BL197: 0 | BM197: =VLOOKUP(BI197,التسويات!$AL$5:$AM$139,2) -> 0.005 | BN197: 0 | BO197: 0 | BP197: =IF(BI197>=T15,0,BM197*BO197) -> 0 | BQ197: =IF(BI197<BR1,BL197,0) -> 0 | BR197: =IF(BI197<BR1,BP197,0) -> 0 | BS197: =IFERROR(VLOOKUP(BI197,AP6:AQ138,2,FALSE),0) -> 0 | BT197: 0 | BU197: =IF(BI197<BR1,BS197,0) -> 0 | BW197: 0 | BX197: =DATE(R17,Q17,1) -> 1970-01-01 | BY197: =DATE(V17,U17,1) -> 1970-01-01 | BZ197: 1 | CA197: 0 | CB197: 0 | CC197: =DATE(R18,Q18,1) -> 1970-01-01 | CD197: =DATE(V18,U18,1) -> 1970-01-01 | CE197: 1 | CF197: 0 | CG197: 0 | CH197: =DATE(R19,Q19,1) -> 1970-01-01 | CI197: =DATE(V19,U19,1) -> 1970-01-01 | CJ197: 1 | CK197: 0 | CL197: 0
BD198: =W9 -> 2022-01-01 | BE198: =W14 -> 2022-03-01 | BF198: =VLOOKUP(BI198,AE5:AF140,2) ->  | BG198: =VLOOKUP(BI198,التسويات!$AU$5:$AX$59,2) -> 6 | BH198: =IF(K6="نعم",BF198,BG198) -> 6 | BI198: 1992-11-01 | BJ198: 0 | BK198: 1 | BL198: 0 | BM198: =VLOOKUP(BI198,التسويات!$AL$5:$AM$139,2) -> 0.005 | BN198: 0 | BO198: 0 | BP198: =IF(BI198>=T15,0,BM198*BO198) -> 0 | BQ198: =IF(BI198<BR1,BL198,0) -> 0 | BR198: =IF(BI198<BR1,BP198,0) -> 0 | BS198: =IFERROR(VLOOKUP(BI198,AP6:AQ138,2,FALSE),0) -> 0 | BT198: 0 | BU198: =IF(BI198<BR1,BS198,0) -> 0 | BW198: 0 | BX198: =DATE(R17,Q17,1) -> 1970-01-01 | BY198: =DATE(V17,U17,1) -> 1970-01-01 | BZ198: 1 | CA198: 0 | CB198: 0 | CC198: =DATE(R18,Q18,1) -> 1970-01-01 | CD198: =DATE(V18,U18,1) -> 1970-01-01 | CE198: 1 | CF198: 0 | CG198: 0 | CH198: =DATE(R19,Q19,1) -> 1970-01-01 | CI198: =DATE(V19,U19,1) -> 1970-01-01 | CJ198: 1 | CK198: 0 | CL198: 0
BD199: =W9 -> 2022-01-01 | BE199: =W14 -> 2022-03-01 | BF199: =VLOOKUP(BI199,AE5:AF140,2) ->  | BG199: =VLOOKUP(BI199,التسويات!$AU$5:$AX$59,2) -> 6 | BH199: =IF(K6="نعم",BF199,BG199) -> 6 | BI199: 1992-12-01 | BJ199: 0 | BK199: 1 | BL199: 0 | BM199: =VLOOKUP(BI199,التسويات!$AL$5:$AM$139,2) -> 0.005 | BN199: 0 | BO199: 0 | BP199: =IF(BI199>=T15,0,BM199*BO199) -> 0 | BQ199: =IF(BI199<BR1,BL199,0) -> 0 | BR199: =IF(BI199<BR1,BP199,0) -> 0 | BS199: =IFERROR(VLOOKUP(BI199,AP6:AQ138,2,FALSE),0) -> 0 | BT199: 0 | BU199: =IF(BI199<BR1,BS199,0) -> 0 | BW199: 0 | BX199: =DATE(R17,Q17,1) -> 1970-01-01 | BY199: =DATE(V17,U17,1) -> 1970-01-01 | BZ199: 1 | CA199: 0 | CB199: 0 | CC199: =DATE(R18,Q18,1) -> 1970-01-01 | CD199: =DATE(V18,U18,1) -> 1970-01-01 | CE199: 1 | CF199: 0 | CG199: 0 | CH199: =DATE(R19,Q19,1) -> 1970-01-01 | CI199: =DATE(V19,U19,1) -> 1970-01-01 | CJ199: 1 | CK199: 0 | CL199: 0
BD200: =W9 -> 2022-01-01 | BE200: =W14 -> 2022-03-01 | BF200: =VLOOKUP(BI200,AE5:AF140,2) ->  | BG200: =VLOOKUP(BI200,التسويات!$AU$5:$AX$59,2) -> 6 | BH200: =IF(K6="نعم",BF200,BG200) -> 6 | BI200: 1993-01-01 | BJ200: 0 | BK200: 1 | BL200: 0 | BM200: =VLOOKUP(BI200,التسويات!$AL$5:$AM$139,2) -> 0.005 | BN200: 0 | BO200: 0 | BP200: =IF(BI200>=T15,0,BM200*BO200) -> 0 | BQ200: =IF(BI200<BR1,BL200,0) -> 0 | BR200: =IF(BI200<BR1,BP200,0) -> 0 | BS200: =IFERROR(VLOOKUP(BI200,AP6:AQ138,2,FALSE),0) -> 0 | BT200: 0 | BU200: =IF(BI200<BR1,BS200,0) -> 0 | BW200: 0 | BX200: =DATE(R17,Q17,1) -> 1970-01-01 | BY200: =DATE(V17,U17,1) -> 1970-01-01 | BZ200: 1 | CA200: 0 | CB200: 0 | CC200: =DATE(R18,Q18,1) -> 1970-01-01 | CD200: =DATE(V18,U18,1) -> 1970-01-01 | CE200: 1 | CF200: 0 | CG200: 0 | CH200: =DATE(R19,Q19,1) -> 1970-01-01 | CI200: =DATE(V19,U19,1) -> 1970-01-01 | CJ200: 1 | CK200: 0 | CL200: 0
... 420 more rows
